Organisation,Invoice Date,Supplier Name,Proclass Category,Service Area,Cost Centre Name,Invoiced
Rochdale,01/04/2014,LINK4LIFE (CHARITY),Arts & Leisure Services,FINANCE SERVICES,CONTRACT FEE LEISURE TRUST,"44,925.00"
Rochdale,01/04/2014,LINK4LIFE (CHARITY),Arts & Leisure Services,FINANCE SERVICES,CONTRACT FEE LEISURE TRUST,"302,575.00"
Rochdale,10/04/2014,LINK4LIFE (CHARITY),Arts & Leisure Services,CHILDREN�S SOCIAL CARE,FOSTERING TEAM,705.60
Rochdale,01/04/2014,LINK4LIFE (TRADING),Arts & Leisure Services,FINANCE SERVICES,CONTRACT FEE LEISURE TRUST,"7,300.00"
Rochdale,04/04/2014,NATIONAL CYCLING ACADEMY,Arts & Leisure Services,PROPERTY AND HIGHWAYS,17-25 YOUNG DRIVER PROJECT,"13,125.00"
Rochdale,22/04/2014,A & S BUILDING & ROOFING,Building Construction Materials,PHYSICAL DIS & OLDER PEOPLE,DISABLED FACILITIES GRANT,"3,126.00"
Rochdale,08/04/2014,ABBEY ARCHITECTURAL IRONMONGERY,Building Construction Materials,PROPERTY AND HIGHWAYS,BUSINESS SUPPORT TEAM,832.09
Rochdale,08/04/2014,ABC INDUSTRIAL DOORS LTD,Building Construction Materials,PROPERTY AND HIGHWAYS,ALKRINGTON LIBRARY,590.50
Rochdale,22/04/2014,ABC INDUSTRIAL DOORS LTD,Building Construction Materials,EARLY HELP AND SCHOOLS,MEANWOOD CHILDRENS CENTRE,545.50
Rochdale,22/04/2014,ABC INDUSTRIAL DOORS LTD,Building Construction Materials,PROPERTY AND HIGHWAYS,SMALLBRIDGE LIBRARY,590.50
Rochdale,23/04/2014,ANGLIA SIGN CASTING COMPANY LIMITED,Building Construction Materials,ECONOMY AND ENVIRONMENT,ALL CREMETORIA,636.66
Rochdale,23/04/2014,AQUABLAST SERVICES LIMITED,Building Construction Materials,ECONOMY AND ENVIRONMENT,DEPOT GREEN LANE GENERAL,890.00
Rochdale,23/04/2014,BOARSHURST LOFTS & DORMERS,Building Construction Materials,LEARNING DIS & MENTAL HEALTH,CARERS RESOURCE CENTRE,"7,728.63"
Rochdale,09/04/2014,BODEN & DAVIES LTD,Building Construction Materials,ECONOMY AND ENVIRONMENT,BOWLEE AND GARDEN MAILSHOP,786.00
Rochdale,09/04/2014,BODEN & DAVIES LTD,Building Construction Materials,ECONOMY AND ENVIRONMENT,BOWLEE AND GARDEN MAILSHOP,786.00
Rochdale,16/04/2014,BOYTON BROS AND HALLAM  RANSKILL LTD,Building Construction Materials,ECONOMY AND ENVIRONMENT,STREETS MIDDLETON GENERAL,690.00
Rochdale,16/04/2014,BOYTON BROS AND HALLAM  RANSKILL LTD,Building Construction Materials,ECONOMY AND ENVIRONMENT,STREETS PENNINES GENERAL,"1,380.00"
Rochdale,16/04/2014,BOYTON BROS AND HALLAM  RANSKILL LTD,Building Construction Materials,ECONOMY AND ENVIRONMENT,STREETS ROCHDALE GENERAL,920.00
Rochdale,07/04/2014,CARTER FENCING LTD                   (S),Building Construction Materials,ECONOMY AND ENVIRONMENT,CEMETERIES GENERAL,"2,525.00"
Rochdale,24/04/2014,CLONSHALL LTD,Building Construction Materials,PROPERTY AND HIGHWAYS,STANNYCLIFFE SC REPLACE AC ROOF,"6,222.23"
Rochdale,14/04/2014,F S MOULT & SON,Building Construction Materials,ECONOMY AND ENVIRONMENT,HOMELESS TRANSFER COSTS,"2,400.00"
Rochdale,11/04/2014,F S MOULT & SON,Building Construction Materials,ECONOMY AND ENVIRONMENT,HOMELESS TRANSFER COSTS,"8,400.00"
Rochdale,11/04/2014,F S MOULT & SON,Building Construction Materials,ECONOMY AND ENVIRONMENT,HOMELESS TRANSFER COSTS,"2,225.00"
Rochdale,14/04/2014,F S MOULT & SON,Building Construction Materials,ECONOMY AND ENVIRONMENT,HOMELESS TRANSFER COSTS,"8,850.00"
Rochdale,14/04/2014,F S MOULT & SON,Building Construction Materials,ECONOMY AND ENVIRONMENT,ROCH VALE CARAVAN SITE,"4,940.00"
Rochdale,14/04/2014,F S MOULT & SON,Building Construction Materials,ECONOMY AND ENVIRONMENT,ROCH VALE CARAVAN SITE,"8,600.00"
Rochdale,14/04/2014,F S MOULT & SON,Building Construction Materials,ECONOMY AND ENVIRONMENT,ROCH VALE CARAVAN SITE,"7,311.26"
Rochdale,16/04/2014,GRAVOGRAPH LTD,Building Construction Materials,EARLY HELP AND SCHOOLS,CLC RUNNING COSTS 2011/12,"1,589.54"
Rochdale,22/04/2014,GTM ELECTRICAL SERVICES LIMITED,Building Construction Materials,ECONOMY AND ENVIRONMENT,1 RIVERSIDE,765.96
Rochdale,22/04/2014,GTM ELECTRICAL SERVICES LIMITED,Building Construction Materials,PROPERTY AND HIGHWAYS,WORK IDENTIFIED BY FRA,"2,761.37"
Rochdale,22/04/2014,GTM ELECTRICAL SERVICES LIMITED,Building Construction Materials,PROPERTY AND HIGHWAYS,WORK IDENTIFIED BY FRA,"1,251.34"
Rochdale,22/04/2014,GTM ELECTRICAL SERVICES LIMITED,Building Construction Materials,PROPERTY AND HIGHWAYS,WORK IDENTIFIED BY FRA,647.13
Rochdale,07/04/2014,JACKSON JACKSON & SONS LTD           (S),Building Construction Materials,EARLY HELP AND SCHOOLS,MIDDLETON PARISH - PLACE PLANNING,"94,545.59"
Rochdale,08/04/2014,JACKSON JACKSON & SONS LTD           (S),Building Construction Materials,EARLY HELP AND SCHOOLS,ST ANDREW'S CE - PLACE PLANNING,"42,257.90"
Rochdale,04/04/2014,S T HEATINGS SERVICES LTD,Building Construction Materials,ECONOMY AND ENVIRONMENT,BAILLIE STREET RENTAL AC,663.64
Rochdale,07/04/2014,SIMPLY SIGNS NW LTD,Building Construction Materials,ECONOMY AND ENVIRONMENT,TCCP RUNNING COSTS,"1,470.00"
Rochdale,04/04/2014,BRAKE BROS FOOD SERVICE LTD,Catering,ECONOMY AND ENVIRONMENT,LITTLEBOROUGH,520.36
Rochdale,23/04/2014,BRAKE BROS FOOD SERVICE LTD,Catering,ECONOMY AND ENVIRONMENT,SANDBROOK PRIMARY SCHOOL,543.54
Rochdale,01/04/2014,BRAKE BROS FOOD SERVICE LTD,Catering,PHYSICAL DIS & OLDER PEOPLE,SPRINGHILL EMI UNIT,515.34
Rochdale,23/04/2014,BRAKE BROS FOOD SERVICE LTD,Catering,ECONOMY AND ENVIRONMENT,ST EDWARDS,619.39
Rochdale,09/04/2014,WLG (WHOLESALERS),Catering,ECONOMY AND ENVIRONMENT,TOWN HALL BAR,"1,002.17"
Rochdale,15/04/2014,J G SHELTON & CO LIMITED             (S),Cemetery & Crematorium,ECONOMY AND ENVIRONMENT,ALL CREMETORIA,"2,845.80"
Rochdale,15/04/2014,J G SHELTON & CO LIMITED             (S),Cemetery & Crematorium,ECONOMY AND ENVIRONMENT,ALL CREMETORIA,"2,260.00"
Rochdale,03/04/2014,JOHNSTON BROS,Cemetery & Crematorium,CUSTOMERS & CORPORATE SERVICES,CORONERS SERVICE GENERAL,760.00
Rochdale,03/04/2014,JOHNSTON BROS,Cemetery & Crematorium,CUSTOMERS & CORPORATE SERVICES,CORONERS SERVICE GENERAL,950.00
Rochdale,17/04/2014,KILPATRICKS FUNERAL SERVICE LIMITED,Cemetery & Crematorium,LEARNING DIS & MENTAL HEALTH,ADULT CARE ADMIN,"1,568.00"
Rochdale,07/04/2014,DEFENCE COMPOSITS,Clothing,ECONOMY AND ENVIRONMENT,ROGUE LANDLORDS,"2,973.00"
Rochdale,23/04/2014,POST OFFICE COUNTERS LTD,Clothing,ECONOMY AND ENVIRONMENT,FLEET MAINTENANCE,"6,230.00"
Rochdale,16/04/2014,VIZ REFLECTIVES,Clothing,ECONOMY AND ENVIRONMENT,DOMESTIC WASTE,804.00
Rochdale,04/04/2014,ACIES GROUP LLP,Consultancy,EARLY HELP AND SCHOOLS,SEN SUPPORT MAINSTREAM  LEA,679.25
Rochdale,10/04/2014,ACIES GROUP LLP,Consultancy,ECONOMY AND ENVIRONMENT,WHEATSHEAF ENTRANCE WORK,"4,000.00"
Rochdale,09/04/2014,AECOM PROFESSIONAL SERVICES LTD,Consultancy,ECONOMY AND ENVIRONMENT,WHEATSHEAF ENTRANCE WORK,"8,000.00"
Rochdale,15/04/2014,AECOM PROFESSIONAL SERVICES LTD,Consultancy,ECONOMY AND ENVIRONMENT,WHEATSHEAF ENTRANCE WORK,"4,000.00"
Rochdale,16/04/2014,ANTHONY COLLINS SOLICITORS LLP,Consultancy,ECONOMY AND ENVIRONMENT,HOMELESS TRANSFER COSTS,869.50
Rochdale,16/04/2014,ANTHONY COLLINS SOLICITORS LLP,Consultancy,ECONOMY AND ENVIRONMENT,HOMELESS TRANSFER COSTS,"1,696.50"
Rochdale,08/04/2014,AVENTIS SOLUTIONS LIMITED,Consultancy,EARLY HELP AND SCHOOLS,ADVISORY SERVICE  GENERAL,"1,500.00"
Rochdale,10/04/2014,AVENTIS SOLUTIONS LIMITED,Consultancy,EARLY HELP AND SCHOOLS,ADVISORY SERVICE  GENERAL,"1,750.00"
Rochdale,10/04/2014,AVENTIS SOLUTIONS LIMITED,Consultancy,EARLY HELP AND SCHOOLS,ADVISORY SERVICE  GENERAL,"1,500.00"
Rochdale,07/04/2014,AVENTIS SOLUTIONS LIMITED,Consultancy,CHILDREN�S SOCIAL CARE,MANAGEMENT STRUCTURE,832.00
Rochdale,07/04/2014,B & C BEAL CONSULTANCY LTD,Consultancy,EARLY HELP AND SCHOOLS,GOVERNORS SERVICES,774.30
Rochdale,16/04/2014,BEVAN BRITTAN LLP,Consultancy,EARLY HELP AND SCHOOLS,BSF DEVELOPMENT (MOD0809),618.70
Rochdale,16/04/2014,BEVAN BRITTAN LLP,Consultancy,CUSTOMERS & CORPORATE SERVICES,LEGAL SERVICES,500.00
Rochdale,15/04/2014,BEVAN BRITTAN LLP,Consultancy,CUSTOMERS & CORPORATE SERVICES,LEGAL SERVICES,"1,014.30"
Rochdale,25/04/2014,BEVAN BRITTAN LLP,Consultancy,CUSTOMERS & CORPORATE SERVICES,LEGAL SERVICES,"2,000.00"
Rochdale,07/04/2014,CONNOR ASSOCIATES LTD,Consultancy,PHYSICAL DIS & OLDER PEOPLE,MENTAL HEALTH CAPACITY ACT GRANT,614.75
Rochdale,16/04/2014,DTZ DEBENHAM TIE LEUNG LIMITED,Consultancy,ECONOMY AND ENVIRONMENT,TOWN CENTRE EAST FEASIBILITY 51K 07/08,"5,432.30"
Rochdale,04/04/2014,EC SAFEGUARDING CONSULTANCY LTD,Consultancy,CHILDREN�S SOCIAL CARE,MANAGEMENT STRUCTURE,750.00
Rochdale,17/04/2014,EC SAFEGUARDING CONSULTANCY LTD,Consultancy,CHILDREN�S SOCIAL CARE,MANAGEMENT STRUCTURE,750.00
Rochdale,17/04/2014,EC SAFEGUARDING CONSULTANCY LTD,Consultancy,CHILDREN�S SOCIAL CARE,MANAGEMENT STRUCTURE,750.00
Rochdale,24/04/2014,EC SAFEGUARDING CONSULTANCY LTD,Consultancy,CHILDREN�S SOCIAL CARE,MANAGEMENT STRUCTURE,750.00
Rochdale,24/04/2014,EC SAFEGUARDING CONSULTANCY LTD,Consultancy,CHILDREN�S SOCIAL CARE,MANAGEMENT STRUCTURE,"4,767.50"
Rochdale,02/04/2014,GARDINER & THEOBALD LLP,Consultancy,ECONOMY AND ENVIRONMENT,TOWN CENTRE EAST FEASIBILITY 51K 07/08,750.00
Rochdale,02/04/2014,GARNER TOWN PLANNING,Consultancy,ECONOMY AND ENVIRONMENT,DEVELOPMENT MANAGEMENT - PLANNING APPS,"2,714.75"
Rochdale,22/04/2014,GLOBAL ENERGY CONSULTANCY,Consultancy,PHYSICAL DIS & OLDER PEOPLE,ADULT CARE HEAD OF SERVICE,790.00
Rochdale,25/04/2014,GLOBAL ENERGY CONSULTANCY,Consultancy,PROPERTY AND HIGHWAYS,DISPOSAL COSTS,"1,040.00"
Rochdale,16/04/2014,HIGHWAY SURVEYORS LTD,Consultancy,PROPERTY AND HIGHWAYS,BWIDE VAR STREETS FW/CW SURVEYS,"15,664.17"
Rochdale,16/04/2014,IDOX SOFTWARE LTD,Consultancy,CUSTOMERS & CORPORATE SERVICES,THIRD PARTY CONTRACTS,"20,971.34"
Rochdale,07/04/2014,JEREMY BENN ASSOCIATES LTD,Consultancy,ECONOMY AND ENVIRONMENT,SURFACE WATER MGT PLAN,"3,500.00"
Rochdale,22/04/2014,JOANNE PLATT ASSOCIATES LTD,Consultancy,CHILDREN�S SOCIAL CARE,MANAGEMENT STRUCTURE,"10,920.00"
Rochdale,07/04/2014,JULIE MARTIN ASSOCIATES,Consultancy,ECONOMY AND ENVIRONMENT,SCOUT MOOR WIND FARM,"4,484.48"
Rochdale,16/04/2014,KEPPIE MASSIE,Consultancy,ECONOMY AND ENVIRONMENT,TOWN CENTRE EAST FEASIBILITY 51K 07/08,"1,721.67"
Rochdale,07/04/2014,M N PROPERTY CONSULTANTS,Consultancy,ECONOMY AND ENVIRONMENT,DEPOT GREEN LANE GENERAL,"22,200.82"
Rochdale,07/04/2014,MACE LIMITED,Consultancy,ECONOMY AND ENVIRONMENT,HOUSING STRATEGY,"1,600.00"
Rochdale,07/04/2014,MACE LIMITED,Consultancy,FINANCE SERVICES,SOCIAL FUND,"4,210.00"
Rochdale,16/04/2014,NORTHERN STAGE SERVICES LTD,Consultancy,ECONOMY AND ENVIRONMENT,TOWN HALL,745.00
Rochdale,17/04/2014,OSBORNE RICHARDSON,Consultancy,ECONOMY AND ENVIRONMENT,HEALTHY WORKPLACES,"1,017.50"
Rochdale,22/04/2014,OSBORNE RICHARDSON,Consultancy,ECONOMY AND ENVIRONMENT,HEALTHY WORKPLACES,965.00
Rochdale,22/04/2014,OSBORNE RICHARDSON,Consultancy,ECONOMY AND ENVIRONMENT,HEALTHY WORKPLACES,"1,180.00"
Rochdale,03/04/2014,OXFORD COMPUTER CONSULTANTS LIMITED,Consultancy,CUSTOMERS & CORPORATE SERVICES,CAF DEMONSTRATOR,"8,926.00"
Rochdale,03/04/2014,RISUAL LTD,Consultancy,CUSTOMERS & CORPORATE SERVICES,BUSINESS INTELLIGENCE SYSTEMS,"4,750.00"
Rochdale,01/04/2014,S KERSHAW & SONS,Consultancy,CUSTOMERS & CORPORATE SERVICES,WARDLE LIBRARY,"3,187.50"
Rochdale,08/04/2014,SHARPLES CONSULTANCY LTD,Consultancy,ECONOMY AND ENVIRONMENT,SKILLS OUTREACH,"1,200.00"
Rochdale,07/04/2014,TEAM NETSOL LTD,Consultancy,FINANCE SERVICES,TECHNICAL SUPPORT,"20,000.00"
Rochdale,25/04/2014,CRAWFORD DOMESTIC APPLIANCES LIMITED,Domestic Goods,CHILDREN�S SOCIAL CARE,YOUNG PEOPLES SUPPORT TEAM,530.83
Rochdale,10/04/2014,ADVANCED CHILDCARE LIMITED,Education,CHILDREN�S SOCIAL CARE,EXTERNAL RESIDENTIAL PLACEMENTS,"11,071.34"
Rochdale,10/04/2014,ADVANCED CHILDCARE LIMITED,Education,CHILDREN�S SOCIAL CARE,EXTERNAL RESIDENTIAL PLACEMENTS,"8,852.67"
Rochdale,10/04/2014,ADVANCED CHILDCARE LIMITED,Education,CHILDREN�S SOCIAL CARE,EXTERNAL RESIDENTIAL PLACEMENTS,"13,728.66"
Rochdale,10/04/2014,ADVANCED CHILDCARE LIMITED,Education,CHILDREN�S SOCIAL CARE,INDEPENDENT FOSTER CARE,"3,321.34"
Rochdale,03/04/2014,AXIOM EDUCATION (ROCHDALE) LIMITED,Education,EARLY HELP AND SCHOOLS,HOLLIN - PLACE PLANNING,"7,500.00"
Rochdale,09/04/2014,AXIOM EDUCATION (ROCHDALE) LIMITED,Education,EARLY HELP AND SCHOOLS,PFI CONTRACT GENERAL,"2,217.56"
Rochdale,15/04/2014,AXIOM EDUCATION (ROCHDALE) LIMITED,Education,EARLY HELP AND SCHOOLS,PFI CONTRACT GENERAL,"470,393.41"
Rochdale,16/04/2014,AXIOM EDUCATION (ROCHDALE) LIMITED,Education,EARLY HELP AND SCHOOLS,PFI CONTRACT GENERAL,"22,707.30"
Rochdale,02/04/2014,AXIOM EDUCATION (ROCHDALE) LIMITED,Education,EARLY HELP AND SCHOOLS,PFI VARIATIONS,"6,209.13"
Rochdale,02/04/2014,AXIOM EDUCATION (ROCHDALE) LIMITED,Education,EARLY HELP AND SCHOOLS,PFI VARIATIONS,"1,600.00"
Rochdale,03/04/2014,AXIOM EDUCATION (ROCHDALE) LIMITED,Education,EARLY HELP AND SCHOOLS,PFI VARIATIONS,"2,091.59"
Rochdale,23/04/2014,AXIOM EDUCATION (ROCHDALE) LIMITED,Education,EARLY HELP AND SCHOOLS,PFI VARIATIONS,"11,688.98"
Rochdale,14/04/2014,BERTRAM TRADING LIMITED,Education,CUSTOMERS & CORPORATE SERVICES,BIBS UNIT,562.44
Rochdale,14/04/2014,BERTRAM TRADING LIMITED,Education,CUSTOMERS & CORPORATE SERVICES,BIBS UNIT,643.66
Rochdale,25/04/2014,BERTRAM TRADING LIMITED,Education,CUSTOMERS & CORPORATE SERVICES,BIBS UNIT,601.17
Rochdale,03/04/2014,BIBLIOGRAPHIC DATA SERVICES LTD,Education,CUSTOMERS & CORPORATE SERVICES,BIBS UNIT,"3,400.00"
Rochdale,22/04/2014,CONNECTIONS 4 CHILDHOOD LTD,Education,EARLY HELP AND SCHOOLS,CHILDRENS CENTRE MANAGEMENT TEAM,561.50
Rochdale,07/04/2014,CONNEXION 2 LIMITED,Education,ECONOMY AND ENVIRONMENT,REG LIC  GENERAL,833.80
Rochdale,25/04/2014,HEALTH BOOKS UK LTD,Education,PUBLIC HEALTH,SUPPORTING CHANGE & COMMUNITIES,559.00
Rochdale,23/04/2014,MYERSCOUGH COLLEGE,Education,ECONOMY AND ENVIRONMENT,EM TRAINING BUDGETS,760.00
Rochdale,08/04/2014,NISAI LEARNING,Education,EARLY HELP AND SCHOOLS,POST 16 RDALE PUPILS IN COLLEGES/ISP,"1,500.00"
Rochdale,24/04/2014,ROCHDALE EDUCATION & LEARNING TRUST,Education,EARLY HELP AND SCHOOLS,SUPPLY AGENCY,"1,050.00"
Rochdale,09/04/2014,STYLE MAGAZINE,Education,CUSTOMERS & CORPORATE SERVICES,CRIME PREVENTION AND COMMUNITY SAFETY,500.00
Rochdale,03/04/2014,TRINITY MIRROR NORTH WEST & NORTH WALES LTD,Education,FINANCE SERVICES,PR MEDIA AND MARKETING,956.00
Rochdale,07/04/2014,TRINITY MIRROR NORTH WEST & NORTH WALES LTD,Education,FINANCE SERVICES,PR MEDIA AND MARKETING,"3,200.00"
Rochdale,10/04/2014,TRINITY MIRROR NORTH WEST & NORTH WALES LTD,Education,FINANCE SERVICES,PR MEDIA AND MARKETING,700.00
Rochdale,25/04/2014,ULVERSCROFT LARGE PRINT BOOKS LTD,Education,CUSTOMERS & CORPORATE SERVICES,BIBS UNIT,538.40
Rochdale,14/04/2014,WELL INFORMED LTD,Education,CUSTOMERS & CORPORATE SERVICES,BIBS UNIT,615.00
Rochdale,03/04/2014,APPLIED GEOLOGY,Environmental Services,ECONOMY AND ENVIRONMENT,WHEATSHEAF ENTRANCE WORK,"3,335.00"
Rochdale,22/04/2014,CONCATENO UK LTD,Environmental Services,CUSTOMERS & CORPORATE SERVICES,DRUGS & ALCOHOL - SPECIALIST D&A SRVC,860.60
Rochdale,24/04/2014,ENTERPRISE MANCHESTER,Environmental Services,ECONOMY AND ENVIRONMENT,1 RIVERSIDE,690.74
Rochdale,23/04/2014,ENTERPRISE MANCHESTER,Environmental Services,ECONOMY AND ENVIRONMENT,DOMESTIC WASTE,"1,011.50"
Rochdale,01/04/2014,ENVIRONMENT AGENCY,Environmental Services,PROPERTY AND HIGHWAYS,FLOOD DEFENCE LEVY,"23,492.00"
Rochdale,08/04/2014,FORENSICS LTD,Environmental Services,CUSTOMERS & CORPORATE SERVICES,CORONERS SERVICE GENERAL,"3,480.00"
Rochdale,08/04/2014,FORENSICS LTD,Environmental Services,CUSTOMERS & CORPORATE SERVICES,CORONERS SERVICE GENERAL,"1,685.00"
Rochdale,08/04/2014,FORENSICS LTD,Environmental Services,CUSTOMERS & CORPORATE SERVICES,CORONERS SERVICE GENERAL,"2,180.00"
Rochdale,08/04/2014,FORENSICS LTD,Environmental Services,CUSTOMERS & CORPORATE SERVICES,CORONERS SERVICE GENERAL,"1,520.00"
Rochdale,08/04/2014,FORENSICS LTD,Environmental Services,CUSTOMERS & CORPORATE SERVICES,CORONERS SERVICE GENERAL,600.00
Rochdale,08/04/2014,FORENSICS LTD,Environmental Services,CUSTOMERS & CORPORATE SERVICES,CORONERS SERVICE GENERAL,955.00
Rochdale,23/04/2014,G M WASTE DISPOSAL AUTHORITY,Environmental Services,ECONOMY AND ENVIRONMENT,WASTE DISPOSAL LEVY,"1,242,500.00"
Rochdale,25/04/2014,KILLGERM CHEMICALS LIMITED,Environmental Services,ECONOMY AND ENVIRONMENT,PEST CONTROL,678.33
Rochdale,22/04/2014,MANCHESTER DOGS HOME,Environmental Services,ECONOMY AND ENVIRONMENT,DOG WARDEN,"1,269.04"
Rochdale,08/04/2014,NO GRAFFITI (MANCHESTER) LTD,Environmental Services,ECONOMY AND ENVIRONMENT,GRAFFITI TEAM,950.00
Rochdale,24/04/2014,NO GRAFFITI (MANCHESTER) LTD,Environmental Services,ECONOMY AND ENVIRONMENT,GRAFFITI TEAM,538.00
Rochdale,25/04/2014,NORTHWEST ASBESTOS REMOVALS LTD,Environmental Services,ECONOMY AND ENVIRONMENT,STREETS HEYWOOD GENERAL,830.00
Rochdale,04/04/2014,RESTORE PLC,Environmental Services,EARLY HELP AND SCHOOLS,MAN & ADMIN  MISC INCOME & EXPENDITURE,581.14
Rochdale,17/04/2014,RHODAR LIMITED,Environmental Services,PROPERTY AND HIGHWAYS,INDUSTRIAL ESTATE,600.00
Rochdale,22/04/2014,SSI SCHAEFER LIMITED,Environmental Services,ECONOMY AND ENVIRONMENT,BLUE WASTE PAPER BINS,"3,484.00"
Rochdale,22/04/2014,SSI SCHAEFER LIMITED,Environmental Services,ECONOMY AND ENVIRONMENT,WHEEL BINS,"10,050.00"
Rochdale,16/04/2014,TRENCH RIGHT LTD,Environmental Services,PROPERTY AND HIGHWAYS,CORING,"6,147.15"
Rochdale,09/04/2014,WHEELDON BROTHERS WASTE LIMITED,Environmental Services,ECONOMY AND ENVIRONMENT,STAKEHILL INDUSTRIAL ESTATE,600.00
Rochdale,10/04/2014,ASIAN LEADER,Facilities & Management Services,FINANCE SERVICES,PR MEDIA AND MARKETING,"1,224.00"
Rochdale,25/04/2014,ATG ACCESS LTD,Facilities & Management Services,PROPERTY AND HIGHWAYS,HEYWOOD RISING BOLLARD,"3,377.92"
Rochdale,04/04/2014,BENCHMARK SECURITY SOLUTIONS LTD,Facilities & Management Services,EARLY HELP AND SCHOOLS,NEWHEY - PLACE PLANNING,560.70
Rochdale,22/04/2014,BINDMONT PRINT SERVICES LTD,Facilities & Management Services,CUSTOMERS & CORPORATE SERVICES,GENERAL ELECTION,"6,958.00"
Rochdale,02/04/2014,BOWLEE PARK COMMUNITY SCHOOL,Facilities & Management Services,PHYSICAL DIS & OLDER PEOPLE,TRAINING COMMISSIONING,525.00
Rochdale,11/04/2014,BURY MBC,Facilities & Management Services,CUSTOMERS & CORPORATE SERVICES,COMMITTEE SERVICES,"4,800.00"
Rochdale,08/04/2014,BURY MBC,Facilities & Management Services,CHILDREN�S SOCIAL CARE,FOSTERING TEAM,"30,500.00"
Rochdale,02/04/2014,BURY MBC,Facilities & Management Services,EARLY HELP AND SCHOOLS,HOSPITAL TUITION,"25,087.02"
Rochdale,25/04/2014,CALEDONIAN LIFT SERVICES LTD,Facilities & Management Services,PROPERTY AND HIGHWAYS,FASHION CORNER,588.00
Rochdale,25/04/2014,CALEDONIAN LIFT SERVICES LTD,Facilities & Management Services,PROPERTY AND HIGHWAYS,FASHION CORNER,"2,210.00"
Rochdale,03/04/2014,CBS OUTDOOR LIMITED,Facilities & Management Services,FINANCE SERVICES,PR MEDIA AND MARKETING,700.00
Rochdale,03/04/2014,CBS OUTDOOR LIMITED,Facilities & Management Services,FINANCE SERVICES,PR MEDIA AND MARKETING,"3,000.00"
Rochdale,07/04/2014,HILLSIDE PRINTING SERVICES LIMITED,Facilities & Management Services,ECONOMY AND ENVIRONMENT,TCCP RUNNING COSTS,790.00
Rochdale,07/04/2014,HILLSIDE PRINTING SERVICES LIMITED,Facilities & Management Services,ECONOMY AND ENVIRONMENT,TCCP RUNNING COSTS,"1,600.00"
Rochdale,07/04/2014,HILLSIDE PRINTING SERVICES LIMITED,Facilities & Management Services,ECONOMY AND ENVIRONMENT,TCCP RUNNING COSTS,"2,350.00"
Rochdale,11/04/2014,HOLIDAY INN EXPRESS GLENROTHES,Facilities & Management Services,EARLY HELP AND SCHOOLS,SCHOOLS BUSINESS UNIT,"2,990.00"
Rochdale,03/04/2014,JONES LANG LASALLE,Facilities & Management Services,ECONOMY AND ENVIRONMENT,ROCHDALE MARKET,"25,248.20"
Rochdale,03/04/2014,OCE (UK) LIMITED,Facilities & Management Services,CUSTOMERS & CORPORATE SERVICES,PRODUCTION,807.20
Rochdale,23/04/2014,ORGANIC PHOTOGRAPHY,Facilities & Management Services,EARLY HELP AND SCHOOLS,LOOKED AFTER CHILDREN ACHIEVED OFFICER,593.40
Rochdale,02/04/2014,PATROL,Facilities & Management Services,PROPERTY AND HIGHWAYS,DECRIMINALISATION OF CAR PARKING,"1,871.10"
Rochdale,16/04/2014,PRESTIGE SALES AND LETTINGS LTD,Facilities & Management Services,CHILDREN�S SOCIAL CARE,ASYLUM SEEKERS,550.00
Rochdale,24/04/2014,PROFILE SECURITY SERVICES LIMITED,Facilities & Management Services,ECONOMY AND ENVIRONMENT,1 RIVERSIDE,"3,803.75"
Rochdale,25/04/2014,RICOH UK LTD,Facilities & Management Services,CUSTOMERS & CORPORATE SERVICES,ADULT & CHILD CARE SOLICITORS,675.96
Rochdale,25/04/2014,RICOH UK LTD,Facilities & Management Services,CUSTOMERS & CORPORATE SERVICES,COMMITTEE SERVICES,573.87
Rochdale,25/04/2014,RICOH UK LTD,Facilities & Management Services,ECONOMY AND ENVIRONMENT,FACILITIES MANAGEMENT ADMIN,"1,440.77"
Rochdale,25/04/2014,RICOH UK LTD,Facilities & Management Services,CUSTOMERS & CORPORATE SERVICES,LAND CHARGES,687.68
Rochdale,25/04/2014,RICOH UK LTD,Facilities & Management Services,CUSTOMERS & CORPORATE SERVICES,LEGAL SERVICES,598.28
Rochdale,25/04/2014,RICOH UK LTD,Facilities & Management Services,CUSTOMERS & CORPORATE SERVICES,PRODUCTION,628.14
Rochdale,25/04/2014,RICOH UK LTD,Facilities & Management Services,EARLY HELP AND SCHOOLS,RANS  MANAGEMENT,664.39
Rochdale,25/04/2014,RICOH UK LTD,Facilities & Management Services,CHILDREN�S SOCIAL CARE,SAFEGUARDING CHILDREN UNIT,529.06
Rochdale,25/04/2014,RICOH UK LTD,Facilities & Management Services,EARLY HELP AND SCHOOLS,SCHOOLS BUSINESS UNIT,642.97
Rochdale,25/04/2014,RICOH UK LTD,Facilities & Management Services,EARLY HELP AND SCHOOLS,SURE START SHARED COSTS,"1,886.51"
Rochdale,25/04/2014,RICOH UK LTD,Facilities & Management Services,FINANCE SERVICES,TECHNICAL SUPPORT,"1,189.78"
Rochdale,25/04/2014,RICOH UK LTD,Facilities & Management Services,CHILDREN�S SOCIAL CARE,YOUNG PEOPLES SUPPORT TEAM,"1,098.51"
Rochdale,08/04/2014,RNC ENTERPRISES LTD,Facilities & Management Services,EARLY HELP AND SCHOOLS,NON MAINTAINED POST 16,"10,317.66"
Rochdale,25/04/2014,SAFETY IN NUMBERS SECURITY SERVICES LTD,Facilities & Management Services,PROPERTY AND HIGHWAYS,LITTLEBOROUGH COMMUNITY CAMPUS,505.00
Rochdale,01/04/2014,ST JAMES CE PRIMARY SCHOOL,Facilities & Management Services,EARLY HELP AND SCHOOLS,SEN SUPPORT MAINSTREAM  LEA,"1,269.00"
Rochdale,08/04/2014,STANNAH LIFT SERVICES LTD,Facilities & Management Services,PHYSICAL DIS & OLDER PEOPLE,DISABLED FACILITIES GRANT,"4,632.00"
Rochdale,08/04/2014,STANNAH LIFT SERVICES LTD,Facilities & Management Services,PHYSICAL DIS & OLDER PEOPLE,DISABLED FACILITIES GRANT,"3,712.00"
Rochdale,22/04/2014,STANNAH LIFT SERVICES LTD,Facilities & Management Services,PHYSICAL DIS & OLDER PEOPLE,DISABLED FACILITIES GRANT,"2,075.00"
Rochdale,16/04/2014,STANNAH LIFT SERVICES LTD,Facilities & Management Services,PHYSICAL DIS & OLDER PEOPLE,POOLED ICES,"1,095.00"
Rochdale,02/04/2014,SWIFT SECURITY PRODUCTS LTD,Facilities & Management Services,EARLY HELP AND SCHOOLS,HIGHWOOD RESOURCE CENTRE,"1,291.26"
Rochdale,16/04/2014,UNITED FLAG & FLAGSTAFFS LIMITED,Facilities & Management Services,CUSTOMERS & CORPORATE SERVICES,ARMED FORCES EVENTS,834.35
Rochdale,17/04/2014,ABRACADABRA PRE SCHOOL,Financial Services,EARLY HELP AND SCHOOLS,FREE NURSERY PLACES 2 YEAR OLDS,"1,603.80"
Rochdale,17/04/2014,ABRACADABRA PRE SCHOOL,Financial Services,EARLY HELP AND SCHOOLS,NURSERY EDUCATION GRANT  3YR OLDS,"9,177.18"
Rochdale,25/04/2014,ABRACADABRA PRE SCHOOL,Financial Services,EARLY HELP AND SCHOOLS,NURSERY EDUCATION GRANT  3YR OLDS,"1,000.00"
Rochdale,17/04/2014,ALKRINGTON PRE SCHOOL,Financial Services,EARLY HELP AND SCHOOLS,NURSERY EDUCATION GRANT  3YR OLDS,"11,473.92"
Rochdale,25/04/2014,ALKRINGTON PRE SCHOOL,Financial Services,EARLY HELP AND SCHOOLS,NURSERY EDUCATION GRANT  3YR OLDS,"1,000.00"
Rochdale,17/04/2014,AUNT MARYS PRIVATE DAY NURSERY,Financial Services,EARLY HELP AND SCHOOLS,FREE NURSERY PLACES 2 YEAR OLDS,"1,603.80"
Rochdale,17/04/2014,AUNT MARYS PRIVATE DAY NURSERY,Financial Services,EARLY HELP AND SCHOOLS,NURSERY EDUCATION GRANT  3YR OLDS,"10,555.92"
Rochdale,25/04/2014,AUNT MARYS PRIVATE DAY NURSERY,Financial Services,EARLY HELP AND SCHOOLS,NURSERY EDUCATION GRANT  3YR OLDS,"1,000.00"
Rochdale,03/04/2014,B E T R A,Financial Services,LEARNING DIS & MENTAL HEALTH,DAY SERVICES MANAGEMENT/ADMIN,800.00
Rochdale,01/04/2014,BACK OTH MOSS COMMUNITY CENTRE,Financial Services,CUSTOMERS & CORPORATE SERVICES,BACK O TH MOSS COMMUNITY CENTRE,"10,575.00"
Rochdale,17/04/2014,BAMFORD PLAYGROUP,Financial Services,EARLY HELP AND SCHOOLS,FREE NURSERY PLACES 2 YEAR OLDS,534.60
Rochdale,17/04/2014,BAMFORD PLAYGROUP,Financial Services,EARLY HELP AND SCHOOLS,NURSERY EDUCATION GRANT  3YR OLDS,"10,542.31"
Rochdale,25/04/2014,BAMFORD PLAYGROUP,Financial Services,EARLY HELP AND SCHOOLS,NURSERY EDUCATION GRANT  3YR OLDS,"1,000.00"
Rochdale,17/04/2014,BEECH HOUSE SCHOOL LTD,Financial Services,EARLY HELP AND SCHOOLS,FREE NURSERY PLACES 2 YEAR OLDS,"2,673.00"
Rochdale,17/04/2014,BEECH HOUSE SCHOOL LTD,Financial Services,EARLY HELP AND SCHOOLS,NURSERY EDUCATION GRANT  3YR OLDS,"13,329.36"
Rochdale,25/04/2014,BEECH HOUSE SCHOOL LTD,Financial Services,EARLY HELP AND SCHOOLS,NURSERY EDUCATION GRANT  3YR OLDS,"1,000.00"
Rochdale,08/04/2014,BELMONT SCHOOL LIMITED,Financial Services,EARLY HELP AND SCHOOLS,IND SCHOOLS  RESIDENTIAL,"10,658.00"
Rochdale,08/04/2014,BELMONT SCHOOL LIMITED,Financial Services,EARLY HELP AND SCHOOLS,IND SCHOOLS  RESIDENTIAL,"9,810.12"
Rochdale,08/04/2014,BELMONT SCHOOL LIMITED,Financial Services,EARLY HELP AND SCHOOLS,IND SCHOOLS  RESIDENTIAL,"10,347.68"
Rochdale,08/04/2014,BELMONT SCHOOL LIMITED,Financial Services,EARLY HELP AND SCHOOLS,IND SCHOOLS  RESIDENTIAL,"10,658.00"
Rochdale,23/04/2014,BRIGHT FUTURES SCHOOL LTD,Financial Services,EARLY HELP AND SCHOOLS,PRE 16 RDALE PUPILS IN NON MAINTAINED,"16,281.65"
Rochdale,01/04/2014,BROOKSIDE COMMUNITY ASSOCIATION,Financial Services,CUSTOMERS & CORPORATE SERVICES,BROOKSIDE COMMUNITY CENTRE,900.00
Rochdale,01/04/2014,BURNSIDE CENTRE MANAGERS,Financial Services,CUSTOMERS & CORPORATE SERVICES,BURNSIDE CENTRE,"6,550.00"
Rochdale,17/04/2014,BURNSIDE PRE-SCHOOL ACCOUNT,Financial Services,EARLY HELP AND SCHOOLS,FREE NURSERY PLACES 2 YEAR OLDS,"3,564.00"
Rochdale,17/04/2014,BURNSIDE PRE-SCHOOL ACCOUNT,Financial Services,EARLY HELP AND SCHOOLS,NURSERY EDUCATION GRANT  3YR OLDS,"7,348.32"
Rochdale,25/04/2014,BURNSIDE PRE-SCHOOL ACCOUNT,Financial Services,EARLY HELP AND SCHOOLS,NURSERY EDUCATION GRANT  3YR OLDS,"1,000.00"
Rochdale,17/04/2014,BUTTERCUPS PRIVATE DAY NURSERY,Financial Services,EARLY HELP AND SCHOOLS,FREE NURSERY PLACES 2 YEAR OLDS,"2,673.00"
Rochdale,17/04/2014,BUTTERCUPS PRIVATE DAY NURSERY,Financial Services,EARLY HELP AND SCHOOLS,NURSERY EDUCATION GRANT  3YR OLDS,"10,432.80"
Rochdale,25/04/2014,BUTTERCUPS PRIVATE DAY NURSERY,Financial Services,EARLY HELP AND SCHOOLS,NURSERY EDUCATION GRANT  3YR OLDS,"1,000.00"
Rochdale,17/04/2014,BUTTONS & BOWS PLAYGROUP,Financial Services,EARLY HELP AND SCHOOLS,FREE NURSERY PLACES 2 YEAR OLDS,"3,207.60"
Rochdale,17/04/2014,BUTTONS & BOWS PLAYGROUP,Financial Services,EARLY HELP AND SCHOOLS,NURSERY EDUCATION GRANT  3YR OLDS,"3,742.85"
Rochdale,25/04/2014,BUTTONS & BOWS PLAYGROUP,Financial Services,EARLY HELP AND SCHOOLS,NURSERY EDUCATION GRANT  3YR OLDS,"1,000.00"
Rochdale,17/04/2014,CABBAGE PATCH PRESCHOOL,Financial Services,EARLY HELP AND SCHOOLS,FREE NURSERY PLACES 2 YEAR OLDS,"9,088.20"
Rochdale,17/04/2014,CABBAGE PATCH PRESCHOOL,Financial Services,EARLY HELP AND SCHOOLS,NURSERY EDUCATION GRANT  3YR OLDS,"13,512.20"
Rochdale,25/04/2014,CABBAGE PATCH PRESCHOOL,Financial Services,EARLY HELP AND SCHOOLS,NURSERY EDUCATION GRANT  3YR OLDS,"1,000.00"
Rochdale,25/04/2014,CARDINAL LANGLEY R C HIGH SCHOOL,Financial Services,EARLY HELP AND SCHOOLS,16-19 BURSARY FUND YPLA,"4,222.00"
Rochdale,01/04/2014,CARDINAL LANGLEY R C HIGH SCHOOL,Financial Services,EARLY HELP AND SCHOOLS,6TH FORM FUNDING,"2,000.00"
Rochdale,01/04/2014,CARDINAL LANGLEY R C HIGH SCHOOL,Financial Services,EARLY HELP AND SCHOOLS,6TH FORM FUNDING,"52,930.00"
Rochdale,25/04/2014,CARDINAL LANGLEY R C HIGH SCHOOL,Financial Services,EARLY HELP AND SCHOOLS,6TH FORM FUNDING,"2,000.00"
Rochdale,25/04/2014,CARDINAL LANGLEY R C HIGH SCHOOL,Financial Services,EARLY HELP AND SCHOOLS,6TH FORM FUNDING,"52,930.00"
Rochdale,01/04/2014,CARDINAL LANGLEY R C HIGH SCHOOL,Financial Services,EARLY HELP AND SCHOOLS,TEACHER`S PAY GRANT YPLA,"3,457.00"
Rochdale,08/04/2014,CATHOLIC BLIND INSTITUTE,Financial Services,EARLY HELP AND SCHOOLS,POST 16 RDALE PUPILS IN COLLEGES/ISP,"13,139.00"
Rochdale,17/04/2014,CHANNINGS EARLY YEARS SCHOOL,Financial Services,EARLY HELP AND SCHOOLS,FREE NURSERY PLACES 2 YEAR OLDS,"1,603.80"
Rochdale,17/04/2014,CHANNINGS EARLY YEARS SCHOOL,Financial Services,EARLY HELP AND SCHOOLS,NURSERY EDUCATION GRANT  3YR OLDS,"18,174.41"
Rochdale,25/04/2014,CHANNINGS EARLY YEARS SCHOOL,Financial Services,EARLY HELP AND SCHOOLS,NURSERY EDUCATION GRANT  3YR OLDS,"1,000.00"
Rochdale,17/04/2014,CLEWORTH ROAD PRE-SCHOOL,Financial Services,EARLY HELP AND SCHOOLS,FREE NURSERY PLACES 2 YEAR OLDS,"1,069.20"
Rochdale,17/04/2014,CLEWORTH ROAD PRE-SCHOOL,Financial Services,EARLY HELP AND SCHOOLS,NURSERY EDUCATION GRANT  3YR OLDS,"8,164.80"
Rochdale,25/04/2014,CLEWORTH ROAD PRE-SCHOOL,Financial Services,EARLY HELP AND SCHOOLS,NURSERY EDUCATION GRANT  3YR OLDS,"1,000.00"
Rochdale,17/04/2014,COSY TOES PRIVATE DAY NURSERY,Financial Services,EARLY HELP AND SCHOOLS,NURSERY EDUCATION GRANT  3YR OLDS,"11,663.64"
Rochdale,25/04/2014,COSY TOES PRIVATE DAY NURSERY,Financial Services,EARLY HELP AND SCHOOLS,NURSERY EDUCATION GRANT  3YR OLDS,"1,000.00"
Rochdale,08/04/2014,COUNCIL FOR VOLUNTARY SERVICE ROCHDALE,Financial Services,PHYSICAL DIS & OLDER PEOPLE,OLDER PEOPLES AGENCY PROVISION,"3,484.00"
Rochdale,16/04/2014,COUNCIL FOR VOLUNTARY SERVICE ROCHDALE,Financial Services,PHYSICAL DIS & OLDER PEOPLE,OLDER PEOPLES AGENCY PROVISION,"3,484.00"
Rochdale,01/04/2014,CRIMBLE CROFT COMMUNITY CENTRE,Financial Services,CUSTOMERS & CORPORATE SERVICES,HEYWOOD EAST COMMUNITY CENTRE,"8,125.00"
Rochdale,17/04/2014,CRIMBLE CROFT PLAYGROUP,Financial Services,EARLY HELP AND SCHOOLS,FREE NURSERY PLACES 2 YEAR OLDS,"7,484.40"
Rochdale,17/04/2014,CRIMBLE CROFT PLAYGROUP,Financial Services,EARLY HELP AND SCHOOLS,NURSERY EDUCATION GRANT  3YR OLDS,"15,185.88"
Rochdale,25/04/2014,CRIMBLE CROFT PLAYGROUP,Financial Services,EARLY HELP AND SCHOOLS,NURSERY EDUCATION GRANT  3YR OLDS,"1,000.00"
Rochdale,01/04/2014,CROSSGATES PRIMARY SCHOOL,Financial Services,EARLY HELP AND SCHOOLS,SEN SUPPORT MAINSTREAM  LEA,"1,351.00"
Rochdale,17/04/2014,CUTGATE PLAYGROUP,Financial Services,EARLY HELP AND SCHOOLS,FREE NURSERY PLACES 2 YEAR OLDS,534.60
Rochdale,17/04/2014,CUTGATE PLAYGROUP,Financial Services,EARLY HELP AND SCHOOLS,NURSERY EDUCATION GRANT  3YR OLDS,"7,302.96"
Rochdale,25/04/2014,CUTGATE PLAYGROUP,Financial Services,EARLY HELP AND SCHOOLS,NURSERY EDUCATION GRANT  3YR OLDS,"1,000.00"
Rochdale,17/04/2014,DAISY CHAINS PRIVATE NURSERY,Financial Services,EARLY HELP AND SCHOOLS,FREE NURSERY PLACES 2 YEAR OLDS,"3,742.20"
Rochdale,17/04/2014,DAISY CHAINS PRIVATE NURSERY,Financial Services,EARLY HELP AND SCHOOLS,NURSERY EDUCATION GRANT  3YR OLDS,"9,395.50"
Rochdale,25/04/2014,DAISY CHAINS PRIVATE NURSERY,Financial Services,EARLY HELP AND SCHOOLS,NURSERY EDUCATION GRANT  3YR OLDS,"1,000.00"
Rochdale,01/04/2014,DEEPLISH COMMUNITY CENTRE,Financial Services,CUSTOMERS & CORPORATE SERVICES,DEEPLISH COMMUNITY CENTRE,"10,800.00"
Rochdale,01/04/2014,DEMESNE COMMUNITY ASSOCIATION,Financial Services,CUSTOMERS & CORPORATE SERVICES,DEMESNE COMMUNITY CENTRE,"10,100.00"
Rochdale,17/04/2014,DERBY STREET NURSERY UNIT,Financial Services,EARLY HELP AND SCHOOLS,FREE NURSERY PLACES 2 YEAR OLDS,"1,069.20"
Rochdale,25/04/2014,DERBY STREET NURSERY UNIT,Financial Services,EARLY HELP AND SCHOOLS,NURSERY EDUCATION GRANT  3YR OLDS,"1,000.00"
Rochdale,17/04/2014,ELM STREET PLAYGROUP,Financial Services,EARLY HELP AND SCHOOLS,FREE NURSERY PLACES 2 YEAR OLDS,"2,138.40"
Rochdale,17/04/2014,ELM STREET PLAYGROUP,Financial Services,EARLY HELP AND SCHOOLS,NURSERY EDUCATION GRANT  3YR OLDS,"7,584.19"
Rochdale,25/04/2014,ELM STREET PLAYGROUP,Financial Services,EARLY HELP AND SCHOOLS,NURSERY EDUCATION GRANT  3YR OLDS,"1,000.00"
Rochdale,17/04/2014,FAIRYFEET PLAYGROUP,Financial Services,EARLY HELP AND SCHOOLS,FREE NURSERY PLACES 2 YEAR OLDS,"8,553.60"
Rochdale,17/04/2014,FAIRYFEET PLAYGROUP,Financial Services,EARLY HELP AND SCHOOLS,NURSERY EDUCATION GRANT  3YR OLDS,"11,611.83"
Rochdale,25/04/2014,FAIRYFEET PLAYGROUP,Financial Services,EARLY HELP AND SCHOOLS,NURSERY EDUCATION GRANT  3YR OLDS,"1,000.00"
Rochdale,10/04/2014,FAMILY ACTION,Financial Services,CHILDREN�S SOCIAL CARE,YOUNG CARERS,"40,375.00"
Rochdale,17/04/2014,FIRST STEPS NURSERY,Financial Services,EARLY HELP AND SCHOOLS,FREE NURSERY PLACES 2 YEAR OLDS,"3,742.20"
Rochdale,17/04/2014,FIRST STEPS NURSERY,Financial Services,EARLY HELP AND SCHOOLS,NURSERY EDUCATION GRANT  3YR OLDS,"10,193.04"
Rochdale,25/04/2014,FIRST STEPS NURSERY,Financial Services,EARLY HELP AND SCHOOLS,NURSERY EDUCATION GRANT  3YR OLDS,"1,000.00"
Rochdale,08/04/2014,FIRWOOD MANOR PREPARATORY SCHOOL,Financial Services,EARLY HELP AND SCHOOLS,IND SCHOOLS  RESIDENTIAL,"1,519.70"
Rochdale,17/04/2014,FISHERFIELD FARM NURSERY,Financial Services,EARLY HELP AND SCHOOLS,FREE NURSERY PLACES 2 YEAR OLDS,"4,276.80"
Rochdale,17/04/2014,FISHERFIELD FARM NURSERY,Financial Services,EARLY HELP AND SCHOOLS,FREE NURSERY PLACES 2 YEAR OLDS,"1,603.80"
Rochdale,17/04/2014,FISHERFIELD FARM NURSERY,Financial Services,EARLY HELP AND SCHOOLS,NURSERY EDUCATION GRANT  3YR OLDS,"19,954.84"
Rochdale,25/04/2014,FISHERFIELD FARM NURSERY,Financial Services,EARLY HELP AND SCHOOLS,NURSERY EDUCATION GRANT  3YR OLDS,"1,000.00"
Rochdale,17/04/2014,FISHERFIELD FARM NURSERY,Financial Services,EARLY HELP AND SCHOOLS,NURSERY EDUCATION GRANT  3YR OLDS,"12,019.32"
Rochdale,25/04/2014,FISHERFIELD FARM NURSERY,Financial Services,EARLY HELP AND SCHOOLS,NURSERY EDUCATION GRANT  3YR OLDS,"1,000.00"
Rochdale,17/04/2014,FISHERFIELD FARM NURSERY LTD,Financial Services,EARLY HELP AND SCHOOLS,FREE NURSERY PLACES 2 YEAR OLDS,"3,742.20"
Rochdale,17/04/2014,FISHERFIELD FARM NURSERY LTD,Financial Services,EARLY HELP AND SCHOOLS,NURSERY EDUCATION GRANT  3YR OLDS,"9,273.88"
Rochdale,25/04/2014,FISHERFIELD FARM NURSERY LTD,Financial Services,EARLY HELP AND SCHOOLS,NURSERY EDUCATION GRANT  3YR OLDS,"1,000.00"
Rochdale,17/04/2014,GENESIS DAY CARE NURSERY,Financial Services,EARLY HELP AND SCHOOLS,FREE NURSERY PLACES 2 YEAR OLDS,"14,434.20"
Rochdale,17/04/2014,GENESIS DAY CARE NURSERY,Financial Services,EARLY HELP AND SCHOOLS,NURSERY EDUCATION GRANT  3YR OLDS,"17,187.12"
Rochdale,25/04/2014,GENESIS DAY CARE NURSERY,Financial Services,EARLY HELP AND SCHOOLS,NURSERY EDUCATION GRANT  3YR OLDS,"1,000.00"
Rochdale,17/04/2014,GENESIS DAY CARE NURSERY LIMITED,Financial Services,EARLY HELP AND SCHOOLS,FREE NURSERY PLACES 2 YEAR OLDS,"6,415.20"
Rochdale,17/04/2014,GENESIS DAY CARE NURSERY LIMITED,Financial Services,EARLY HELP AND SCHOOLS,NURSERY EDUCATION GRANT  3YR OLDS,"18,714.24"
Rochdale,25/04/2014,GENESIS DAY CARE NURSERY LIMITED,Financial Services,EARLY HELP AND SCHOOLS,NURSERY EDUCATION GRANT  3YR OLDS,"1,000.00"
Rochdale,15/04/2014,GMCA,Financial Services,ECONOMY AND ENVIRONMENT,GMPTE LEVY,"1,554,300.00"
Rochdale,16/04/2014,GREATER MANCHESTER BUILDING PRESERVATION TRUST,Financial Services,ECONOMY AND ENVIRONMENT,MIDDLETON TOWNSHIP HERITAGE INITIATIVE,750.00
Rochdale,08/04/2014,GREENHALGH KERR,Financial Services,FINANCE SERVICES,BUSINESS RATES BILLING AND COLLECTION,"2,382.00"
Rochdale,08/04/2014,GREENHALGH KERR,Financial Services,FINANCE SERVICES,BUSINESS RATES BILLING AND COLLECTION,"1,581.00"
Rochdale,17/04/2014,HAPPY JACKS CHILDREN DAY NURSERY LTD,Financial Services,EARLY HELP AND SCHOOLS,FREE NURSERY PLACES 2 YEAR OLDS,"2,138.40"
Rochdale,17/04/2014,HAPPY JACKS CHILDREN DAY NURSERY LTD,Financial Services,EARLY HELP AND SCHOOLS,NURSERY EDUCATION GRANT  3YR OLDS,"10,796.18"
Rochdale,25/04/2014,HAPPY JACKS CHILDREN DAY NURSERY LTD,Financial Services,EARLY HELP AND SCHOOLS,NURSERY EDUCATION GRANT  3YR OLDS,"1,000.00"
Rochdale,17/04/2014,HAPPYTOTS,Financial Services,EARLY HELP AND SCHOOLS,FREE NURSERY PLACES 2 YEAR OLDS,"5,880.60"
Rochdale,17/04/2014,HAPPYTOTS,Financial Services,EARLY HELP AND SCHOOLS,NURSERY EDUCATION GRANT  3YR OLDS,"17,445.02"
Rochdale,25/04/2014,HAPPYTOTS,Financial Services,EARLY HELP AND SCHOOLS,NURSERY EDUCATION GRANT  3YR OLDS,"1,000.00"
Rochdale,14/04/2014,HAWARDEN HOUSE PRIVATE NURSERY,Financial Services,EARLY HELP AND SCHOOLS,GRADUATE LEADER FUND,"1,000.00"
Rochdale,17/04/2014,HAWARDEN HOUSE PRIVATE NURSERY,Financial Services,EARLY HELP AND SCHOOLS,NURSERY EDUCATION GRANT  3YR OLDS,"2,721.60"
Rochdale,25/04/2014,HAWARDEN HOUSE PRIVATE NURSERY,Financial Services,EARLY HELP AND SCHOOLS,NURSERY EDUCATION GRANT  3YR OLDS,"1,000.00"
Rochdale,01/04/2014,HEYBROOK PRIMARY SCHOOL,Financial Services,EARLY HELP AND SCHOOLS,SCHOOL DIRECT TRAINING,"2,545.45"
Rochdale,17/04/2014,HOLLINS NURSERY CIC,Financial Services,EARLY HELP AND SCHOOLS,FREE NURSERY PLACES 2 YEAR OLDS,"5,880.60"
Rochdale,17/04/2014,HOLLINS NURSERY CIC,Financial Services,EARLY HELP AND SCHOOLS,NURSERY EDUCATION GRANT  3YR OLDS,"13,281.51"
Rochdale,25/04/2014,HOLLINS NURSERY CIC,Financial Services,EARLY HELP AND SCHOOLS,NURSERY EDUCATION GRANT  3YR OLDS,"1,000.00"
Rochdale,17/04/2014,HOPWOOD PARK PLAYGROUP,Financial Services,EARLY HELP AND SCHOOLS,NURSERY EDUCATION GRANT  3YR OLDS,"6,998.40"
Rochdale,25/04/2014,HOPWOOD PARK PLAYGROUP,Financial Services,EARLY HELP AND SCHOOLS,NURSERY EDUCATION GRANT  3YR OLDS,"1,000.00"
Rochdale,17/04/2014,HOWARD STREET NURSERY,Financial Services,EARLY HELP AND SCHOOLS,FREE NURSERY PLACES 2 YEAR OLDS,"9,622.80"
Rochdale,17/04/2014,HOWARD STREET NURSERY,Financial Services,EARLY HELP AND SCHOOLS,NURSERY EDUCATION GRANT  3YR OLDS,"4,112.64"
Rochdale,25/04/2014,HOWARD STREET NURSERY,Financial Services,EARLY HELP AND SCHOOLS,NURSERY EDUCATION GRANT  3YR OLDS,"1,000.00"
Rochdale,24/04/2014,INDEPENDENT CHOICES MANCHESTER LTD,Financial Services,CUSTOMERS & CORPORATE SERVICES,CRIME PREVENTION AND COMMUNITY SAFETY,500.00
Rochdale,01/04/2014,KINGSWAY PARK HIGH SCHOOL,Financial Services,EARLY HELP AND SCHOOLS,SEN SUPPORT MAINSTREAM  LEA,"2,233.00"
Rochdale,17/04/2014,KR INVEST LTD,Financial Services,EARLY HELP AND SCHOOLS,FREE NURSERY PLACES 2 YEAR OLDS,"7,484.40"
Rochdale,17/04/2014,KR INVEST LTD,Financial Services,EARLY HELP AND SCHOOLS,GRADUATE LEADER FUND,"1,000.00"
Rochdale,17/04/2014,KR INVEST LTD,Financial Services,EARLY HELP AND SCHOOLS,NURSERY EDUCATION GRANT  3YR OLDS,"13,292.64"
Rochdale,25/04/2014,KR INVEST LTD,Financial Services,EARLY HELP AND SCHOOLS,NURSERY EDUCATION GRANT  3YR OLDS,"1,000.00"
Rochdale,17/04/2014,LAROCHE DAY CARE NURSERY,Financial Services,EARLY HELP AND SCHOOLS,FREE NURSERY PLACES 2 YEAR OLDS,"10,692.00"
Rochdale,14/04/2014,LAROCHE DAY CARE NURSERY,Financial Services,EARLY HELP AND SCHOOLS,GRADUATE LEADER FUND,"1,000.00"
Rochdale,17/04/2014,LAROCHE DAY CARE NURSERY,Financial Services,EARLY HELP AND SCHOOLS,NURSERY EDUCATION GRANT  3YR OLDS,"27,578.88"
Rochdale,25/04/2014,LAROCHE DAY CARE NURSERY,Financial Services,EARLY HELP AND SCHOOLS,NURSERY EDUCATION GRANT  3YR OLDS,"1,000.00"
Rochdale,17/04/2014,LITTLE STEPS ROCHDALE LTD,Financial Services,EARLY HELP AND SCHOOLS,FREE NURSERY PLACES 2 YEAR OLDS,"4,276.80"
Rochdale,17/04/2014,LITTLE STEPS ROCHDALE LTD,Financial Services,EARLY HELP AND SCHOOLS,NURSERY EDUCATION GRANT  3YR OLDS,"15,222.18"
Rochdale,25/04/2014,LITTLE STEPS ROCHDALE LTD,Financial Services,EARLY HELP AND SCHOOLS,NURSERY EDUCATION GRANT  3YR OLDS,"1,000.00"
Rochdale,01/04/2014,MATTHEW MOSS HIGH SCHOOL,Financial Services,EARLY HELP AND SCHOOLS,SCHOOL DIRECT TRAINING,"16,181.82"
Rochdale,01/04/2014,MEADOWFIELD COMMUNITY CENTRE,Financial Services,CUSTOMERS & CORPORATE SERVICES,MEADOWFIELD,"9,575.00"
Rochdale,17/04/2014,MILNROW PLAYGROUP,Financial Services,EARLY HELP AND SCHOOLS,FREE NURSERY PLACES 2 YEAR OLDS,"2,673.00"
Rochdale,17/04/2014,MILNROW PLAYGROUP,Financial Services,EARLY HELP AND SCHOOLS,NURSERY EDUCATION GRANT  3YR OLDS,"16,064.11"
Rochdale,25/04/2014,MILNROW PLAYGROUP,Financial Services,EARLY HELP AND SCHOOLS,NURSERY EDUCATION GRANT  3YR OLDS,"1,000.00"
Rochdale,17/04/2014,NEWBOLD CHILDRENS CENTRE NURSERY,Financial Services,EARLY HELP AND SCHOOLS,FREE NURSERY PLACES 2 YEAR OLDS,"20,314.80"
Rochdale,17/04/2014,NEWBOLD CHILDRENS CENTRE NURSERY,Financial Services,EARLY HELP AND SCHOOLS,NURSERY EDUCATION GRANT  3YR OLDS,"25,460.06"
Rochdale,25/04/2014,NEWBOLD CHILDRENS CENTRE NURSERY,Financial Services,EARLY HELP AND SCHOOLS,NURSERY EDUCATION GRANT  3YR OLDS,"1,000.00"
Rochdale,16/04/2014,NFT DISTRIBUTION OPERATIONS LTD,Financial Services,EARLY HELP AND SCHOOLS,MIDDLETON APPRENTICESHIP PROJECT,"1,750.00"
Rochdale,17/04/2014,NORDEN PLAYGROUP,Financial Services,EARLY HELP AND SCHOOLS,FREE NURSERY PLACES 2 YEAR OLDS,"1,603.80"
Rochdale,17/04/2014,NORDEN PLAYGROUP,Financial Services,EARLY HELP AND SCHOOLS,NURSERY EDUCATION GRANT  3YR OLDS,"4,533.21"
Rochdale,25/04/2014,NORDEN PLAYGROUP,Financial Services,EARLY HELP AND SCHOOLS,NURSERY EDUCATION GRANT  3YR OLDS,"1,000.00"
Rochdale,23/04/2014,NORDEN PLAYGROUP,Financial Services,EARLY HELP AND SCHOOLS,SEN SUPPORT MAINSTREAM  LEA,876.00
Rochdale,01/04/2014,NORTH AREA PARTNERSHIP,Financial Services,CUSTOMERS & CORPORATE SERVICES,NORTH AREA PARTNERSHIP,"8,250.00"
Rochdale,08/04/2014,OAKFIELD HOUSE SCHOOL,Financial Services,EARLY HELP AND SCHOOLS,IND SCHOOLS  RESIDENTIAL,"10,398.00"
Rochdale,17/04/2014,OULDER HILL PLAYGROUP,Financial Services,EARLY HELP AND SCHOOLS,FREE NURSERY PLACES 2 YEAR OLDS,"3,207.60"
Rochdale,17/04/2014,OULDER HILL PLAYGROUP,Financial Services,EARLY HELP AND SCHOOLS,NURSERY EDUCATION GRANT  3YR OLDS,"5,270.40"
Rochdale,25/04/2014,OULDER HILL PLAYGROUP,Financial Services,EARLY HELP AND SCHOOLS,NURSERY EDUCATION GRANT  3YR OLDS,"1,000.00"
Rochdale,10/04/2014,PACE,Financial Services,CHILDREN�S SOCIAL CARE,OTHER CWDC FUNDS,"3,332.00"
Rochdale,08/04/2014,PONTVILLE SCHOOL,Financial Services,EARLY HELP AND SCHOOLS,IND SCHOOLS  RESIDENTIAL,"22,734.00"
Rochdale,23/04/2014,POSITIVE STEPS OLDHAM - KICKSTART,Financial Services,EARLY HELP AND SCHOOLS,ROCHDALE CONNEXTIONS PARTNERSHIP,"112,500.00"
Rochdale,24/04/2014,PROPERTY SOLUTIONS GB NORTH LTD,Financial Services,CHILDREN�S SOCIAL CARE,ASYLUM SEEKERS,650.00
Rochdale,25/04/2014,RADPAC,Financial Services,EARLY HELP AND SCHOOLS,PLAY DEVELOPMENT TEAM,"24,000.00"
Rochdale,25/04/2014,RADPAC,Financial Services,EARLY HELP AND SCHOOLS,PLAY DEVELOPMENT TEAM,"24,000.00"
Rochdale,17/04/2014,RAINBOWS END PRIVATE NURSERY,Financial Services,EARLY HELP AND SCHOOLS,FREE NURSERY PLACES 2 YEAR OLDS,"1,069.20"
Rochdale,17/04/2014,RAINBOWS END PRIVATE NURSERY,Financial Services,EARLY HELP AND SCHOOLS,NURSERY EDUCATION GRANT  3YR OLDS,"11,733.12"
Rochdale,25/04/2014,RAINBOWS END PRIVATE NURSERY,Financial Services,EARLY HELP AND SCHOOLS,NURSERY EDUCATION GRANT  3YR OLDS,"1,000.00"
Rochdale,08/04/2014,RAMILLIES HALL SCHOOL,Financial Services,EARLY HELP AND SCHOOLS,IND SCHOOLS  RESIDENTIAL,"2,063.50"
Rochdale,15/04/2014,RAMILLIES HALL SCHOOL,Financial Services,EARLY HELP AND SCHOOLS,IND SCHOOLS  RESIDENTIAL,"2,279.55"
Rochdale,22/04/2014,REDACTED-PERSONAL DATA,Financial Services,EARLY HELP AND SCHOOLS,NURSERY EDUCATION GRANT  3YR OLDS,507.60
Rochdale,17/04/2014,REDACTED-PERSONAL DATA,Financial Services,EARLY HELP AND SCHOOLS,NURSERY EDUCATION GRANT  3YR OLDS,534.60
Rochdale,01/04/2014,REDACTED-PERSONAL DATA,Financial Services,EARLY HELP AND SCHOOLS,PERSONALISED BUDGETS,695.27
Rochdale,01/04/2014,REDWOOD SECONDARY SCHOOL,Financial Services,EARLY HELP AND SCHOOLS,16-19 BURSARY FUND YPLA,"12,000.00"
Rochdale,25/04/2014,REDWOOD SECONDARY SCHOOL,Financial Services,EARLY HELP AND SCHOOLS,16-19 BURSARY FUND YPLA,"2,495.00"
Rochdale,17/04/2014,RHODES PRESCHOOL,Financial Services,EARLY HELP AND SCHOOLS,FREE NURSERY PLACES 2 YEAR OLDS,"2,673.00"
Rochdale,17/04/2014,RHODES PRESCHOOL,Financial Services,EARLY HELP AND SCHOOLS,NURSERY EDUCATION GRANT  3YR OLDS,"10,543.29"
Rochdale,25/04/2014,RHODES PRESCHOOL,Financial Services,EARLY HELP AND SCHOOLS,NURSERY EDUCATION GRANT  3YR OLDS,"1,000.00"
Rochdale,24/04/2014,ROCHDALE COUNCIL OF MOSQUES,Financial Services,CUSTOMERS & CORPORATE SERVICES,COMMUNITY COHESION STAFFING,"7,700.00"
Rochdale,25/04/2014,ROCHDALE PENSIONERS ASSOCIATION,Financial Services,CUSTOMERS & CORPORATE SERVICES,PENSIONERS ASSOCIATIONS,"1,000.00"
Rochdale,15/04/2014,ROCHDALE PETRUS COMMUNITY,Financial Services,LEARNING DIS & MENTAL HEALTH,GENERAL,"22,100.00"
Rochdale,24/04/2014,ROCHDALE STREET PASTORS,Financial Services,CUSTOMERS & CORPORATE SERVICES,SAFER COMMUNITIES OPER'L & CONT'Y BUDGET,"2,000.00"
Rochdale,01/04/2014,ROCHDALE WOMENS WELFARE ASSOCIATION,Financial Services,CUSTOMERS & CORPORATE SERVICES,WARDLEWORTH WOMENS CENTRE,"4,550.00"
Rochdale,08/04/2014,ROSSENDALE SCHOOL PRIORY,Financial Services,EARLY HELP AND SCHOOLS,IND SCHOOLS  RESIDENTIAL,"17,412.00"
Rochdale,08/04/2014,ROSSENDALE SCHOOL PRIORY,Financial Services,EARLY HELP AND SCHOOLS,IND SCHOOLS  RESIDENTIAL,"17,412.00"
Rochdale,08/04/2014,ROSSENDALE SCHOOL PRIORY,Financial Services,EARLY HELP AND SCHOOLS,IND SCHOOLS  RESIDENTIAL,"16,761.50"
Rochdale,08/04/2014,ROSSENDALE SCHOOL PRIORY,Financial Services,EARLY HELP AND SCHOOLS,IND SCHOOLS  RESIDENTIAL,"4,353.00"
Rochdale,08/04/2014,ROSSENDALE SCHOOL PRIORY,Financial Services,EARLY HELP AND SCHOOLS,IND SCHOOLS  RESIDENTIAL,"4,190.38"
Rochdale,08/04/2014,ROSSENDALE SCHOOL PRIORY,Financial Services,EARLY HELP AND SCHOOLS,IND SCHOOLS  RESIDENTIAL,"3,109.29"
Rochdale,17/04/2014,SANDBROOK CC NURSERY,Financial Services,EARLY HELP AND SCHOOLS,FREE NURSERY PLACES 2 YEAR OLDS,"7,484.40"
Rochdale,17/04/2014,SANDBROOK CC NURSERY,Financial Services,EARLY HELP AND SCHOOLS,NURSERY EDUCATION GRANT  3YR OLDS,"16,117.92"
Rochdale,25/04/2014,SANDBROOK CC NURSERY,Financial Services,EARLY HELP AND SCHOOLS,NURSERY EDUCATION GRANT  3YR OLDS,"1,000.00"
Rochdale,17/04/2014,SCAMPS PRE-SCHOOL PLAYGROUP,Financial Services,EARLY HELP AND SCHOOLS,FREE NURSERY PLACES 2 YEAR OLDS,"6,415.20"
Rochdale,17/04/2014,SCAMPS PRE-SCHOOL PLAYGROUP,Financial Services,EARLY HELP AND SCHOOLS,NURSERY EDUCATION GRANT  3YR OLDS,"21,905.93"
Rochdale,25/04/2014,SCAMPS PRE-SCHOOL PLAYGROUP,Financial Services,EARLY HELP AND SCHOOLS,NURSERY EDUCATION GRANT  3YR OLDS,"1,000.00"
Rochdale,17/04/2014,SHUTTERS VILLAGE NURSERY,Financial Services,EARLY HELP AND SCHOOLS,FREE NURSERY PLACES 2 YEAR OLDS,"6,415.20"
Rochdale,17/04/2014,SHUTTERS VILLAGE NURSERY,Financial Services,EARLY HELP AND SCHOOLS,NURSERY EDUCATION GRANT  3YR OLDS,"10,977.12"
Rochdale,25/04/2014,SHUTTERS VILLAGE NURSERY,Financial Services,EARLY HELP AND SCHOOLS,NURSERY EDUCATION GRANT  3YR OLDS,"1,000.00"
Rochdale,17/04/2014,SMALL WORLD NURSERIES LTD,Financial Services,EARLY HELP AND SCHOOLS,FREE NURSERY PLACES 2 YEAR OLDS,"6,949.80"
Rochdale,17/04/2014,SMALL WORLD NURSERIES LTD,Financial Services,EARLY HELP AND SCHOOLS,NURSERY EDUCATION GRANT  3YR OLDS,"14,230.08"
Rochdale,25/04/2014,SMALL WORLD NURSERIES LTD,Financial Services,EARLY HELP AND SCHOOLS,NURSERY EDUCATION GRANT  3YR OLDS,"1,000.00"
Rochdale,01/04/2014,SMITHYBRIDGE PRIMARY SCHOOL,Financial Services,EARLY HELP AND SCHOOLS,SEN SUPPORT MAINSTREAM  LEA,"2,679.00"
Rochdale,01/04/2014,SPARTH COMMUNITY CENTRE,Financial Services,CUSTOMERS & CORPORATE SERVICES,SPARTH COMMUNITY CENTRE,"11,425.00"
Rochdale,17/04/2014,SPARTH NURSERY,Financial Services,EARLY HELP AND SCHOOLS,FREE NURSERY PLACES 2 YEAR OLDS,534.60
Rochdale,17/04/2014,SPARTH NURSERY,Financial Services,EARLY HELP AND SCHOOLS,NURSERY EDUCATION GRANT  3YR OLDS,"4,611.60"
Rochdale,25/04/2014,SPARTH NURSERY,Financial Services,EARLY HELP AND SCHOOLS,NURSERY EDUCATION GRANT  3YR OLDS,"1,000.00"
Rochdale,17/04/2014,SPRING WILLOWS PLAYGROUP,Financial Services,EARLY HELP AND SCHOOLS,FREE NURSERY PLACES 2 YEAR OLDS,"2,138.40"
Rochdale,17/04/2014,SPRING WILLOWS PLAYGROUP,Financial Services,EARLY HELP AND SCHOOLS,NURSERY EDUCATION GRANT  3YR OLDS,"9,953.28"
Rochdale,25/04/2014,SPRING WILLOWS PLAYGROUP,Financial Services,EARLY HELP AND SCHOOLS,NURSERY EDUCATION GRANT  3YR OLDS,"1,000.00"
Rochdale,10/04/2014,ST ANNS MORRIS TROUPE,Financial Services,CUSTOMERS & CORPORATE SERVICES,TOWNSHIP PRIORITY PROJECT FUND,811.57
Rochdale,23/04/2014,ST DAVIDS COLLEGE,Financial Services,EARLY HELP AND SCHOOLS,IND SCHOOLS  RESIDENTIAL,"3,799.25"
Rochdale,17/04/2014,ST JOSEPHS PLAYGROUP,Financial Services,EARLY HELP AND SCHOOLS,FREE NURSERY PLACES 2 YEAR OLDS,"9,622.80"
Rochdale,17/04/2014,ST JOSEPHS PLAYGROUP,Financial Services,EARLY HELP AND SCHOOLS,NURSERY EDUCATION GRANT  3YR OLDS,"20,167.95"
Rochdale,25/04/2014,ST JOSEPHS PLAYGROUP,Financial Services,EARLY HELP AND SCHOOLS,NURSERY EDUCATION GRANT  3YR OLDS,"1,000.00"
Rochdale,17/04/2014,ST THOMAS MORE PLAYGROUP,Financial Services,EARLY HELP AND SCHOOLS,NURSERY EDUCATION GRANT  3YR OLDS,"5,793.75"
Rochdale,25/04/2014,ST THOMAS MORE PLAYGROUP,Financial Services,EARLY HELP AND SCHOOLS,NURSERY EDUCATION GRANT  3YR OLDS,"1,000.00"
Rochdale,14/04/2014,ST VINCENT`S PRE SCHOOL,Financial Services,EARLY HELP AND SCHOOLS,GRADUATE LEADER FUND,"1,000.00"
Rochdale,17/04/2014,ST VINCENT`S PRE SCHOOL,Financial Services,EARLY HELP AND SCHOOLS,NURSERY EDUCATION GRANT  3YR OLDS,"9,040.54"
Rochdale,25/04/2014,ST VINCENT`S PRE SCHOOL,Financial Services,EARLY HELP AND SCHOOLS,NURSERY EDUCATION GRANT  3YR OLDS,"1,000.00"
Rochdale,01/04/2014,SUDDEN & BRIMROD COMMUNITY CENTRE,Financial Services,CUSTOMERS & CORPORATE SERVICES,SUDDEN & BRIMROD CC,"2,325.00"
Rochdale,15/04/2014,SUNFLOWER NURSERIES LIMITED,Financial Services,EARLY HELP AND SCHOOLS,FREE NURSERY PLACES 2 YEAR OLDS,994.95
Rochdale,17/04/2014,SUNFLOWER NURSERIES LIMITED,Financial Services,EARLY HELP AND SCHOOLS,FREE NURSERY PLACES 2 YEAR OLDS,"11,761.20"
Rochdale,15/04/2014,SUNFLOWER NURSERIES LIMITED,Financial Services,EARLY HELP AND SCHOOLS,NURSERY EDUCATION GRANT  3YR OLDS,"1,321.20"
Rochdale,17/04/2014,SUNFLOWER NURSERIES LIMITED,Financial Services,EARLY HELP AND SCHOOLS,NURSERY EDUCATION GRANT  3YR OLDS,"13,433.12"
Rochdale,25/04/2014,SUNFLOWER NURSERIES LIMITED,Financial Services,EARLY HELP AND SCHOOLS,NURSERY EDUCATION GRANT  3YR OLDS,"1,000.00"
Rochdale,17/04/2014,SUNSHINE PLAYGROUP,Financial Services,EARLY HELP AND SCHOOLS,FREE NURSERY PLACES 2 YEAR OLDS,534.60
Rochdale,17/04/2014,SUNSHINE PLAYGROUP,Financial Services,EARLY HELP AND SCHOOLS,NURSERY EDUCATION GRANT  3YR OLDS,"6,135.48"
Rochdale,25/04/2014,SUNSHINE PLAYGROUP,Financial Services,EARLY HELP AND SCHOOLS,NURSERY EDUCATION GRANT  3YR OLDS,"1,000.00"
Rochdale,17/04/2014,SUPERTOTS DAY NURSERY,Financial Services,EARLY HELP AND SCHOOLS,FREE NURSERY PLACES 2 YEAR OLDS,"8,019.00"
Rochdale,14/04/2014,SUPERTOTS DAY NURSERY,Financial Services,EARLY HELP AND SCHOOLS,GRADUATE LEADER FUND,"2,000.00"
Rochdale,17/04/2014,SUPERTOTS DAY NURSERY,Financial Services,EARLY HELP AND SCHOOLS,NURSERY EDUCATION GRANT  3YR OLDS,"24,216.19"
Rochdale,25/04/2014,SUPERTOTS DAY NURSERY,Financial Services,EARLY HELP AND SCHOOLS,NURSERY EDUCATION GRANT  3YR OLDS,"1,000.00"
Rochdale,04/04/2014,TEDDY BEAR NURSERY LTD,Financial Services,EARLY HELP AND SCHOOLS,2 YEAR OLD TARGETED FREE ENTITLEMENT,"5,760.00"
Rochdale,04/04/2014,TEDDY BEAR NURSERY LTD,Financial Services,EARLY HELP AND SCHOOLS,FREE NURSERY PLACES 2 YEAR OLDS,"4,818.00"
Rochdale,17/04/2014,TEDDY BEAR NURSERY LTD,Financial Services,EARLY HELP AND SCHOOLS,FREE NURSERY PLACES 2 YEAR OLDS,"3,207.60"
Rochdale,25/04/2014,TEDDY BEAR NURSERY LTD,Financial Services,EARLY HELP AND SCHOOLS,NURSERY EDUCATION GRANT  3YR OLDS,"1,000.00"
Rochdale,03/04/2014,THE LESBIAN & GAY FOUNDATION,Financial Services,CUSTOMERS & CORPORATE SERVICES,COMMUNITY COHESION STAFFING,"24,643.00"
Rochdale,03/04/2014,"THE PARENTS FORUM FOR ROCHDALE, HEYWOOD & MIDDLETO",Financial Services,EARLY HELP AND SCHOOLS,SEND PATHFINDER,"6,038.64"
Rochdale,16/04/2014,THE SHARE FOUNDATION,Financial Services,CHILDREN�S SOCIAL CARE,ACCESS AND SUPPORT ADMIN,"1,907.08"
Rochdale,17/04/2014,THE WILLOWS PRIVATE DAY NURSERY,Financial Services,EARLY HELP AND SCHOOLS,FREE NURSERY PLACES 2 YEAR OLDS,"3,207.60"
Rochdale,17/04/2014,THE WILLOWS PRIVATE DAY NURSERY,Financial Services,EARLY HELP AND SCHOOLS,FREE NURSERY PLACES 2 YEAR OLDS,"7,484.40"
Rochdale,17/04/2014,THE WILLOWS PRIVATE DAY NURSERY,Financial Services,EARLY HELP AND SCHOOLS,NURSERY EDUCATION GRANT  3YR OLDS,"17,154.72"
Rochdale,25/04/2014,THE WILLOWS PRIVATE DAY NURSERY,Financial Services,EARLY HELP AND SCHOOLS,NURSERY EDUCATION GRANT  3YR OLDS,"1,000.00"
Rochdale,25/04/2014,THE WILLOWS PRIVATE DAY NURSERY,Financial Services,EARLY HELP AND SCHOOLS,NURSERY EDUCATION GRANT  3YR OLDS,"1,000.00"
Rochdale,16/04/2014,THE YOUTH JUSTICE BOARD FOR ENG & WALES,Financial Services,CHILDREN�S SOCIAL CARE,YOUTH REMAND,942.00
Rochdale,16/04/2014,THE YOUTH JUSTICE BOARD FOR ENG & WALES,Financial Services,CHILDREN�S SOCIAL CARE,YOUTH REMAND,"1,727.00"
Rochdale,16/04/2014,THE YOUTH JUSTICE BOARD FOR ENG & WALES,Financial Services,CHILDREN�S SOCIAL CARE,YOUTH REMAND,"1,413.00"
Rochdale,16/04/2014,THE YOUTH JUSTICE BOARD FOR ENG & WALES,Financial Services,CHILDREN�S SOCIAL CARE,YOUTH REMAND,"2,041.00"
Rochdale,16/04/2014,THE YOUTH JUSTICE BOARD FOR ENG & WALES,Financial Services,CHILDREN�S SOCIAL CARE,YOUTH REMAND,785.00
Rochdale,16/04/2014,THE YOUTH JUSTICE BOARD FOR ENG & WALES,Financial Services,CHILDREN�S SOCIAL CARE,YOUTH REMAND,"1,727.00"
Rochdale,16/04/2014,THE YOUTH JUSTICE BOARD FOR ENG & WALES,Financial Services,CHILDREN�S SOCIAL CARE,YOUTH REMAND,"1,099.00"
Rochdale,17/04/2014,TINKERBELL CHILDRENS DAY NURSERY,Financial Services,EARLY HELP AND SCHOOLS,FREE NURSERY PLACES 2 YEAR OLDS,"4,811.40"
Rochdale,14/04/2014,TINKERBELL CHILDRENS DAY NURSERY,Financial Services,EARLY HELP AND SCHOOLS,GRADUATE LEADER FUND,"1,000.00"
Rochdale,17/04/2014,TINKERBELL CHILDRENS DAY NURSERY,Financial Services,EARLY HELP AND SCHOOLS,NURSERY EDUCATION GRANT  3YR OLDS,"8,485.84"
Rochdale,25/04/2014,TINKERBELL CHILDRENS DAY NURSERY,Financial Services,EARLY HELP AND SCHOOLS,NURSERY EDUCATION GRANT  3YR OLDS,"1,000.00"
Rochdale,17/04/2014,TOTS JUNCTION,Financial Services,EARLY HELP AND SCHOOLS,FREE NURSERY PLACES 2 YEAR OLDS,"3,742.20"
Rochdale,17/04/2014,TOTS JUNCTION,Financial Services,EARLY HELP AND SCHOOLS,NURSERY EDUCATION GRANT  3YR OLDS,"8,142.12"
Rochdale,25/04/2014,TOTS JUNCTION,Financial Services,EARLY HELP AND SCHOOLS,NURSERY EDUCATION GRANT  3YR OLDS,"1,000.00"
Rochdale,16/04/2014,TRANSPORT FOR GREATER MANCHESTER,Financial Services,PROPERTY AND HIGHWAYS,HEYWOOD STRUCTURAL PATCHING DFT,"1,008.47"
Rochdale,07/04/2014,TRANSPORT FOR GREATER MANCHESTER,Financial Services,ECONOMY AND ENVIRONMENT,MUNICIPAL OFFICES,"14,356.80"
Rochdale,16/04/2014,TRANSPORT FOR GREATER MANCHESTER,Financial Services,PROPERTY AND HIGHWAYS,ROCHDALE STRUCTURAL PATCHING HIP,870.00
Rochdale,14/04/2014,TREETOPS NURSERY,Financial Services,EARLY HELP AND SCHOOLS,GRADUATE LEADER FUND,"1,000.00"
Rochdale,17/04/2014,TREETOPS NURSERY,Financial Services,EARLY HELP AND SCHOOLS,NURSERY EDUCATION GRANT  3YR OLDS,"6,578.25"
Rochdale,25/04/2014,TREETOPS NURSERY,Financial Services,EARLY HELP AND SCHOOLS,NURSERY EDUCATION GRANT  3YR OLDS,"1,000.00"
Rochdale,10/04/2014,TURF HILL INITIATIVE CENTRE,Financial Services,CUSTOMERS & CORPORATE SERVICES,TURF HILL COMMUNITY CENTRE,"2,800.00"
Rochdale,24/04/2014,VBA JOINT VENTURE LTD,Financial Services,ECONOMY AND ENVIRONMENT,RIVER REOPENING SITE,"14,786.43"
Rochdale,01/04/2014,WARDLEWORTH COMMUNITY CENTRE ASSOCIATION,Financial Services,CUSTOMERS & CORPORATE SERVICES,WARDLEWORTH COMMUNITY CENTRE,"11,675.00"
Rochdale,17/04/2014,WOODLAND PRIVATE DAY NURSERY,Financial Services,EARLY HELP AND SCHOOLS,FREE NURSERY PLACES 2 YEAR OLDS,"4,811.40"
Rochdale,17/04/2014,WOODLAND PRIVATE DAY NURSERY,Financial Services,EARLY HELP AND SCHOOLS,NURSERY EDUCATION GRANT  3YR OLDS,"6,960.82"
Rochdale,25/04/2014,WOODLAND PRIVATE DAY NURSERY,Financial Services,EARLY HELP AND SCHOOLS,NURSERY EDUCATION GRANT  3YR OLDS,"1,000.00"
Rochdale,24/04/2014,MORLEYS OF BICESTER LIMITED,Furniture & Soft Furnishings,CUSTOMERS & CORPORATE SERVICES,SMALLBRIDGE LIBRARY,543.85
Rochdale,22/04/2014,MR P E HOLT,Furniture & Soft Furnishings,CHILDREN�S SOCIAL CARE,FOSTERING TEAM,500.75
Rochdale,07/04/2014,O AND E S GROUP LTD,Furniture & Soft Furnishings,EARLY HELP AND SCHOOLS,HOWARD ST CHILDRENS CENTRE,"2,040.00"
Rochdale,22/04/2014,POSTURITE (UK) LTD,Furniture & Soft Furnishings,CUSTOMERS & CORPORATE SERVICES,REGISTRATIONS GENERAL,"2,260.00"
Rochdale,08/04/2014,CHUBB FIRE LIMITED,Health & Safety�,PROPERTY AND HIGHWAYS,CASTLETON COMMUNITY CENTRE,867.54
Rochdale,07/04/2014,HEALTH & SAFETY SOLUTIONS (NW) LTD,Health & Safety�,EARLY HELP AND SCHOOLS,GENERAL SURE START TRAINING,550.00
Rochdale,17/04/2014,4COURT PHARMACY,Healthcare,PUBLIC HEALTH,STOP SMOKING,550.97
Rochdale,09/04/2014,ALLIED HEALTHCARE GROUP LIMITED,Healthcare,PHYSICAL DIS & OLDER PEOPLE,NHS DELAYED TRANSFER,"2,110.50"
Rochdale,04/04/2014,ALLIED HEALTHCARE GROUP LIMITED,Healthcare,PHYSICAL DIS & OLDER PEOPLE,OLDER PEOPLES AGENCY PROVISION,"11,789.02"
Rochdale,14/04/2014,ALLIED HEALTHCARE GROUP LIMITED,Healthcare,PHYSICAL DIS & OLDER PEOPLE,OLDER PEOPLES AGENCY PROVISION,"11,493.66"
Rochdale,17/04/2014,ALLIED HEALTHCARE GROUP LIMITED,Healthcare,PHYSICAL DIS & OLDER PEOPLE,OLDER PEOPLES AGENCY PROVISION,"11,876.31"
Rochdale,25/04/2014,ALLIED HEALTHCARE GROUP LIMITED,Healthcare,PHYSICAL DIS & OLDER PEOPLE,OLDER PEOPLES AGENCY PROVISION,"11,971.32"
Rochdale,08/04/2014,BARKATH LIMITED,Healthcare,CUSTOMERS & CORPORATE SERVICES,CORONERS SERVICE GENERAL,"1,176.60"
Rochdale,23/04/2014,COMFORT CALL,Healthcare,LEARNING DIS & MENTAL HEALTH,GENERAL,600.00
Rochdale,23/04/2014,COMFORT CALL,Healthcare,LEARNING DIS & MENTAL HEALTH,GENERAL,951.00
Rochdale,04/04/2014,COMFORT CALL,Healthcare,PHYSICAL DIS & OLDER PEOPLE,OLDER PEOPLES AGENCY PROVISION,"11,878.14"
Rochdale,14/04/2014,COMFORT CALL,Healthcare,PHYSICAL DIS & OLDER PEOPLE,OLDER PEOPLES AGENCY PROVISION,"10,936.22"
Rochdale,17/04/2014,COMFORT CALL,Healthcare,PHYSICAL DIS & OLDER PEOPLE,OLDER PEOPLES AGENCY PROVISION,"11,434.18"
Rochdale,25/04/2014,COMFORT CALL,Healthcare,PHYSICAL DIS & OLDER PEOPLE,OLDER PEOPLES AGENCY PROVISION,"11,769.74"
Rochdale,15/04/2014,CTRL M/C & M/C CHILDRENS UNI HOSP NHS TR,Healthcare,PUBLIC HEALTH,SEXUAL HEALTH SERVICES,"5,412.00"
Rochdale,15/04/2014,CTRL M/C & M/C CHILDRENS UNI HOSP NHS TR,Healthcare,PUBLIC HEALTH,SEXUAL HEALTH SERVICES,"2,546.00"
Rochdale,03/04/2014,CTRL M/C & M/C CHILDRENS UNI HOSP NHS TR,Healthcare,PUBLIC HEALTH,SEXUAL HEALTH SERVICES,"2,036.00"
Rochdale,03/04/2014,CTRL M/C & M/C CHILDRENS UNI HOSP NHS TR,Healthcare,PUBLIC HEALTH,SEXUAL HEALTH SERVICES,"1,861.00"
Rochdale,09/04/2014,CTRL M/C & M/C CHILDRENS UNI HOSP NHS TR,Healthcare,PUBLIC HEALTH,SEXUAL HEALTH SERVICES,"10,436.00"
Rochdale,08/04/2014,DR A PADWELL,Healthcare,CUSTOMERS & CORPORATE SERVICES,CORONERS SERVICE GENERAL,"3,254.70"
Rochdale,08/04/2014,DR A PAIVA CORREIA,Healthcare,CUSTOMERS & CORPORATE SERVICES,CORONERS SERVICE GENERAL,"1,350.80"
Rochdale,08/04/2014,DR A PAIVA CORREIA,Healthcare,CUSTOMERS & CORPORATE SERVICES,CORONERS SERVICE GENERAL,"1,509.30"
Rochdale,08/04/2014,DR A PAIVA CORREIA,Healthcare,CUSTOMERS & CORPORATE SERVICES,CORONERS SERVICE GENERAL,"2,814.70"
Rochdale,08/04/2014,DR A U OYEGADE,Healthcare,CUSTOMERS & CORPORATE SERVICES,CORONERS SERVICE GENERAL,"3,366.00"
Rochdale,08/04/2014,DR A U OYEGADE,Healthcare,CUSTOMERS & CORPORATE SERVICES,CORONERS SERVICE GENERAL,"2,785.20"
Rochdale,08/04/2014,DR A U OYEGADE,Healthcare,CUSTOMERS & CORPORATE SERVICES,CORONERS SERVICE GENERAL,"2,781.10"
Rochdale,08/04/2014,DR ABDUL QUADER GANJIFROCKWALA,Healthcare,CUSTOMERS & CORPORATE SERVICES,CORONERS SERVICE GENERAL,"1,412.40"
Rochdale,08/04/2014,DR B BENATAR,Healthcare,CUSTOMERS & CORPORATE SERVICES,CORONERS SERVICE GENERAL,"1,548.30"
Rochdale,08/04/2014,DR C A WILSON,Healthcare,CUSTOMERS & CORPORATE SERVICES,CORONERS SERVICE GENERAL,595.90
Rochdale,08/04/2014,DR C A WILSON,Healthcare,CUSTOMERS & CORPORATE SERVICES,CORONERS SERVICE GENERAL,595.90
Rochdale,08/04/2014,DR K BAIDEN-AMISSAH,Healthcare,CUSTOMERS & CORPORATE SERVICES,CORONERS SERVICE GENERAL,"1,064.80"
Rochdale,08/04/2014,DR K BAIDEN-AMISSAH,Healthcare,CUSTOMERS & CORPORATE SERVICES,CORONERS SERVICE GENERAL,968.00
Rochdale,08/04/2014,DR K BAIDEN-AMISSAH,Healthcare,CUSTOMERS & CORPORATE SERVICES,HEAD OF SERVICE,"1,595.00"
Rochdale,08/04/2014,DR N CARTER,Healthcare,CUSTOMERS & CORPORATE SERVICES,CORONERS SERVICE GENERAL,595.90
Rochdale,08/04/2014,DR S TITI,Healthcare,CUSTOMERS & CORPORATE SERVICES,CORONERS SERVICE GENERAL,"2,008.30"
Rochdale,08/04/2014,DR V CHARAN,Healthcare,CUSTOMERS & CORPORATE SERVICES,CORONERS SERVICE GENERAL,"1,214.00"
Rochdale,02/04/2014,DRS ROTHERY & PARTNERS,Healthcare,CUSTOMERS & CORPORATE SERVICES,LOCAL ENHANCED SERVICES - LES,"1,395.00"
Rochdale,24/04/2014,INTERNET PHARMACY LTD,Healthcare,PUBLIC HEALTH,STOP SMOKING,"1,179.10"
Rochdale,24/04/2014,INTERNET PHARMACY LTD,Healthcare,PUBLIC HEALTH,STOP SMOKING,873.72
Rochdale,17/04/2014,L ROWLAND & CO LTD,Healthcare,PUBLIC HEALTH,STOP SMOKING,750.02
Rochdale,17/04/2014,L ROWLAND & CO LTD,Healthcare,PUBLIC HEALTH,STOP SMOKING,"1,400.47"
Rochdale,09/04/2014,PARKWOOD HEALTHCARE LIMITED,Healthcare,PHYSICAL DIS & OLDER PEOPLE,OLDER PEOPLES AGENCY PROVISION,"14,191.66"
Rochdale,23/04/2014,PENNINE CARE IN PATIENT SERVICES PRIORY,Healthcare,EARLY HELP AND SCHOOLS,HOSPITAL TUITION,"2,275.00"
Rochdale,23/04/2014,PENNINE CARE IN PATIENT SERVICES PRIORY,Healthcare,EARLY HELP AND SCHOOLS,HOSPITAL TUITION,"2,450.00"
Rochdale,02/04/2014,ROCHDALE OCCUPATIONAL HEALTH SERVICE LTD,Healthcare,CUSTOMERS & CORPORATE SERVICES,COURSES SCHOOL SAFETY,570.00
Rochdale,02/04/2014,ROCHDALE OCCUPATIONAL HEALTH SERVICE LTD,Healthcare,CUSTOMERS & CORPORATE SERVICES,COURSES SCHOOL SAFETY,540.00
Rochdale,07/04/2014,ROCHDALE OCCUPATIONAL HEALTH SERVICE LTD,Healthcare,CUSTOMERS & CORPORATE SERVICES,COURSES SCHOOL SAFETY,"1,215.00"
Rochdale,23/04/2014,STRAND PHARMACY,Healthcare,PUBLIC HEALTH,STOP SMOKING,"1,155.51"
Rochdale,15/04/2014,THE PENNINE ACUTE HOSPITALS NHS TRUST,Healthcare,PHYSICAL DIS & OLDER PEOPLE,COMMUNITY OCCUPATIONAL THERAPY &HANDLING,"3,641.37"
Rochdale,08/04/2014,THE PENNINE ACUTE HOSPITALS NHS TRUST,Healthcare,CUSTOMERS & CORPORATE SERVICES,CORONERS SERVICE GENERAL,"13,597.32"
Rochdale,08/04/2014,THE PENNINE ACUTE HOSPITALS NHS TRUST,Healthcare,CUSTOMERS & CORPORATE SERVICES,CORONERS SERVICE GENERAL,"11,238.24"
Rochdale,10/04/2014,THE PENNINE ACUTE HOSPITALS NHS TRUST,Healthcare,CUSTOMERS & CORPORATE SERVICES,CORONERS SERVICE GENERAL,"14,639.04"
Rochdale,23/04/2014,THE PENNINE ACUTE HOSPITALS NHS TRUST,Healthcare,CUSTOMERS & CORPORATE SERVICES,MANAGEMENT ADMIN,"25,498.50"
Rochdale,02/04/2014,THE PENNINE ACUTE HOSPITALS NHS TRUST,Healthcare,PUBLIC HEALTH,OBESITY COMMISSIONING,"65,474.00"
Rochdale,08/04/2014,TOTAL PHYSIOTHERAPY LIMITED,Healthcare,FINANCE SERVICES,BLUE BADGES,"1,290.00"
Rochdale,02/04/2014,UNIVERSITY HOSPITAL OF SOUTH MANCHESTER NHS TRUST,Healthcare,PUBLIC HEALTH,SEXUAL HEALTH SERVICES,545.59
Rochdale,08/04/2014,VIRGIN CARE BLACKPOOL LLP,Healthcare,PUBLIC HEALTH,SEXUAL HEALTH SERVICES,"6,075.00"
Rochdale,08/04/2014,VIRGIN CARE BLACKPOOL LLP,Healthcare,PUBLIC HEALTH,SEXUAL HEALTH SERVICES,"23,522.00"
Rochdale,23/04/2014,VISION BEYOND AUTISM,Healthcare,EARLY HELP AND SCHOOLS,PRE 16 RDALE PUPILS IN OLA SPECIAL,"1,441.67"
Rochdale,23/04/2014,VISION BEYOND AUTISM,Healthcare,EARLY HELP AND SCHOOLS,PRE 16 RDALE PUPILS IN OLA SPECIAL,"1,241.67"
Rochdale,23/04/2014,VISION BEYOND AUTISM,Healthcare,EARLY HELP AND SCHOOLS,PRE 16 RDALE PUPILS IN OLA SPECIAL,"1,241.67"
Rochdale,01/04/2014,NETWORK RAIL,Highway Equipment & Materials�,PROPERTY AND HIGHWAYS,PRINCIPAL ROADS BRIDGES AND STRUCTURES,"1,583.24"
Rochdale,17/04/2014,BALMER`S GARDEN MACHINERY CENTRE,Horticultural,ECONOMY AND ENVIRONMENT,GROUNDS MTCE EQUIPMENT,"6,900.00"
Rochdale,03/04/2014,BALMER`S GARDEN MACHINERY CENTRE,Horticultural,ECONOMY AND ENVIRONMENT,GROUNDS MTCE EQUIPMENT,"33,350.00"
Rochdale,15/04/2014,EARLEY ORNAMENTALS LTD,Horticultural,ECONOMY AND ENVIRONMENT,BOWLEE AND GARDEN MAILSHOP,"4,150.33"
Rochdale,23/04/2014,EARLEY ORNAMENTALS LTD,Horticultural,ECONOMY AND ENVIRONMENT,BOWLEE AND GARDEN MAILSHOP,713.75
Rochdale,25/04/2014,EARLEY ORNAMENTALS LTD,Horticultural,ECONOMY AND ENVIRONMENT,BOWLEE AND GARDEN MAILSHOP,694.54
Rochdale,07/04/2014,F R SHARROCK LIMITED,Horticultural,ECONOMY AND ENVIRONMENT,MECHANICS GENERAL MOWER R,680.00
Rochdale,08/04/2014,GROUNDWORK LANDSCAPES LIMITED,Horticultural,CUSTOMERS & CORPORATE SERVICES,BURGLARY REDUCTION SCHEME,"8,879.45"
Rochdale,22/04/2014,GROUNDWORK LANDSCAPES LIMITED,Horticultural,EARLY HELP AND SCHOOLS,HOPWOOD - PLACE PLANNING,"20,444.00"
Rochdale,15/04/2014,GROUNDWORK LANDSCAPES LIMITED,Horticultural,ECONOMY AND ENVIRONMENT,NEW CEMETERY (ROCHDALE),"57,344.28"
Rochdale,03/04/2014,GROUNDWORK LANDSCAPES LIMITED,Horticultural,ECONOMY AND ENVIRONMENT,ROCH VALE CARAVAN SITE,"1,650.00"
Rochdale,22/04/2014,LUBBE & SONS LTD,Horticultural,ECONOMY AND ENVIRONMENT,BOWLEE AND GARDEN MAILSHOP,600.00
Rochdale,23/04/2014,LUBBE & SONS LTD,Horticultural,ECONOMY AND ENVIRONMENT,Revenue Township,540.00
Rochdale,02/04/2014,MAHOOD BROTHERS,Horticultural,ECONOMY AND ENVIRONMENT,BOWLEE AND GARDEN MAILSHOP,702.00
Rochdale,07/04/2014,NATURESCAPE,Horticultural,ECONOMY AND ENVIRONMENT,BOWLEE AND GARDEN MAILSHOP,843.50
Rochdale,03/04/2014,TREE HEROES LTD,Horticultural,ECONOMY AND ENVIRONMENT,ARBORICULTURE,"2,190.00"
Rochdale,01/04/2014,ACORN TREATMENT & HOUSING,Housing Management,LEARNING DIS & MENTAL HEALTH,AGENCY PLACEMENTS,"14,500.00"
Rochdale,01/04/2014,ACORN TREATMENT & HOUSING,Housing Management,CUSTOMERS & CORPORATE SERVICES,DRUGS & ALCOHOL - SPECIALIST D&A SRVC,"18,750.00"
Rochdale,09/04/2014,BRAHM FUNDCO 2 LTD,Housing Management,ECONOMY AND ENVIRONMENT,HEYWOOD JSC - PHOENIX CENTRE,"22,470.73"
Rochdale,09/04/2014,PROGRESS CARE HOUSING ASSOCIATION LTD,Housing Management,LEARNING DIS & MENTAL HEALTH,LD SUPPORTED LIVING CLUSTER1  RMBC,"4,294.86"
Rochdale,09/04/2014,ROCHDALE HOUSING INITIATIVE,Housing Management,ECONOMY AND ENVIRONMENT,EMPTY PROPERTY GRANT,"81,000.00"
Rochdale,24/04/2014,ROCHDALE HOUSING INITIATIVE,Housing Management,ECONOMY AND ENVIRONMENT,EMPTY PROPERTY GRANT,"9,000.00"
Rochdale,03/04/2014,ROCHDALE HOUSING INITIATIVE,Housing Management,ECONOMY AND ENVIRONMENT,LANDLORD ASSISTANCE,"3,439.22"
Rochdale,09/04/2014,ST VINCENTS HOUSING ASSOCIATION,Housing Management,LEARNING DIS & MENTAL HEALTH,LD SUPPORTED LIVING CLUSTER1  RMBC,610.30
Rochdale,22/04/2014,ACT NOW TRAINING LIMITED,Human Resources,CUSTOMERS & CORPORATE SERVICES,LEGAL SERVICES,"1,000.00"
Rochdale,08/04/2014,ADOPTION MATTERS,Human Resources,CHILDREN�S SOCIAL CARE,INDEPENDENT FOSTER CARE,750.00
Rochdale,04/04/2014,CAPITA BUSINESS SERVICES LIMITED,Human Resources,CUSTOMERS & CORPORATE SERVICES,EDUCATION INFORMATION SYSTEMS TEAM,"3,450.00"
Rochdale,15/04/2014,CAPITA BUSINESS SERVICES LIMITED,Human Resources,CUSTOMERS & CORPORATE SERVICES,THIRD PARTY CONTRACTS,"103,144.90"
Rochdale,15/04/2014,CAREER DEVELOPMENT INSTITUTE,Human Resources,ECONOMY AND ENVIRONMENT,EMPLOYMENTS LINKS,600.00
Rochdale,15/04/2014,CAREER DEVELOPMENT INSTITUTE,Human Resources,ECONOMY AND ENVIRONMENT,EMPLOYMENTS LINKS,"1,100.00"
Rochdale,03/04/2014,CHAUFFEUR TRAVEL,Human Resources,ECONOMY AND ENVIRONMENT,EDUCATION HOME TO SCHOOL,"1,596.00"
Rochdale,10/04/2014,CHILD ACTION NORTHWEST,Human Resources,CHILDREN�S SOCIAL CARE,INDEPENDENT FOSTER CARE,"3,538.34"
Rochdale,10/04/2014,CHILD ACTION NORTHWEST,Human Resources,CHILDREN�S SOCIAL CARE,INDEPENDENT FOSTER CARE,"3,631.34"
Rochdale,10/04/2014,CHILD ACTION NORTHWEST,Human Resources,CHILDREN�S SOCIAL CARE,INDEPENDENT FOSTER CARE,"3,228.34"
Rochdale,10/04/2014,CHILD ACTION NORTHWEST,Human Resources,CHILDREN�S SOCIAL CARE,INDEPENDENT FOSTER CARE,"3,268.33"
Rochdale,10/04/2014,CHILD ACTION NORTHWEST,Human Resources,CHILDREN�S SOCIAL CARE,INDEPENDENT FOSTER CARE,"3,268.33"
Rochdale,10/04/2014,CHILD ACTION NORTHWEST,Human Resources,CHILDREN�S SOCIAL CARE,INDEPENDENT FOSTER CARE,"3,268.33"
Rochdale,10/04/2014,CHILD ACTION NORTHWEST,Human Resources,CHILDREN�S SOCIAL CARE,INDEPENDENT FOSTER CARE,"3,184.01"
Rochdale,10/04/2014,CHILD ACTION NORTHWEST,Human Resources,CHILDREN�S SOCIAL CARE,INDEPENDENT FOSTER CARE,"3,370.01"
Rochdale,10/04/2014,CHILD ACTION NORTHWEST,Human Resources,CHILDREN�S SOCIAL CARE,INDEPENDENT FOSTER CARE,"3,587.01"
Rochdale,10/04/2014,CHILD ACTION NORTHWEST,Human Resources,CHILDREN�S SOCIAL CARE,INDEPENDENT FOSTER CARE,"3,228.34"
Rochdale,10/04/2014,CHILD ACTION NORTHWEST,Human Resources,CHILDREN�S SOCIAL CARE,INDEPENDENT FOSTER CARE,"3,423.33"
Rochdale,10/04/2014,CHILD ACTION NORTHWEST,Human Resources,CHILDREN�S SOCIAL CARE,INDEPENDENT FOSTER CARE,"2,459.94"
Rochdale,10/04/2014,CHILD ACTION NORTHWEST,Human Resources,CHILDREN�S SOCIAL CARE,INDEPENDENT FOSTER CARE,"3,228.34"
Rochdale,10/04/2014,CHILD ACTION NORTHWEST,Human Resources,CHILDREN�S SOCIAL CARE,INDEPENDENT FOSTER CARE,"3,184.01"
Rochdale,01/04/2014,CHILD ACTION NORTHWEST,Human Resources,CHILDREN�S SOCIAL CARE,YPST SUPPORTING PEOPLE FUNDING,"15,833.33"
Rochdale,02/04/2014,CLEARWATER RISK MANAGEMENT LTD,Human Resources,CUSTOMERS & CORPORATE SERVICES,COURSES SCHOOL SAFETY,"1,800.00"
Rochdale,04/04/2014,D K TRAVEL,Human Resources,ECONOMY AND ENVIRONMENT,EDUCATION HOME TO SCHOOL,"3,402.00"
Rochdale,08/04/2014,DEVELOP TRAINING LTD,Human Resources,PROPERTY AND HIGHWAYS,BUSINESS SUPPORT TEAM,"1,455.00"
Rochdale,08/04/2014,EMPLOYEE ADVISORY RESOURCE LTD,Human Resources,CUSTOMERS & CORPORATE SERVICES,MANAGEMENT ADMIN,"3,250.00"
Rochdale,16/04/2014,ENERGIZE RECRUITMENT SOLUTIONS LTD,Human Resources,CUSTOMERS & CORPORATE SERVICES,REFRESH PROGRAMME,750.00
Rochdale,14/04/2014,HAYS SOCIAL CARE,Human Resources,CHILDREN�S SOCIAL CARE,ACCESS AND SUPPORT SOCIAL WORK,"29,360.43"
Rochdale,14/04/2014,HAYS SOCIAL CARE,Human Resources,CHILDREN�S SOCIAL CARE,ACCESS AND SUPPORT SOCIAL WORK,"36,478.10"
Rochdale,25/04/2014,HAYS SOCIAL CARE,Human Resources,CHILDREN�S SOCIAL CARE,ACCESS AND SUPPORT SOCIAL WORK,"20,766.48"
Rochdale,25/04/2014,HAYS SOCIAL CARE,Human Resources,CHILDREN�S SOCIAL CARE,ACCESS AND SUPPORT SOCIAL WORK,"37,958.84"
Rochdale,14/04/2014,HAYS SOCIAL CARE,Human Resources,CHILDREN�S SOCIAL CARE,ADOPTION PAYMENTS,"1,534.70"
Rochdale,14/04/2014,HAYS SOCIAL CARE,Human Resources,CHILDREN�S SOCIAL CARE,ADOPTION PAYMENTS,"2,129.72"
Rochdale,25/04/2014,HAYS SOCIAL CARE,Human Resources,CHILDREN�S SOCIAL CARE,ADOPTION PAYMENTS,"2,144.52"
Rochdale,25/04/2014,HAYS SOCIAL CARE,Human Resources,CHILDREN�S SOCIAL CARE,ADOPTION PAYMENTS,573.32
Rochdale,14/04/2014,HAYS SOCIAL CARE,Human Resources,CUSTOMERS & CORPORATE SERVICES,ADULT & CHILD CARE SOLICITORS,"1,615.05"
Rochdale,14/04/2014,HAYS SOCIAL CARE,Human Resources,CUSTOMERS & CORPORATE SERVICES,ADULT & CHILD CARE SOLICITORS,"1,615.05"
Rochdale,25/04/2014,HAYS SOCIAL CARE,Human Resources,CUSTOMERS & CORPORATE SERVICES,ADULT & CHILD CARE SOLICITORS,"7,635.07"
Rochdale,25/04/2014,HAYS SOCIAL CARE,Human Resources,CUSTOMERS & CORPORATE SERVICES,ADULT & CHILD CARE SOLICITORS,"7,443.49"
Rochdale,14/04/2014,HAYS SOCIAL CARE,Human Resources,CUSTOMERS & CORPORATE SERVICES,ARMED FORCES EVENTS,500.63
Rochdale,14/04/2014,HAYS SOCIAL CARE,Human Resources,CUSTOMERS & CORPORATE SERVICES,ARMED FORCES EVENTS,500.63
Rochdale,14/04/2014,HAYS SOCIAL CARE,Human Resources,FINANCE SERVICES,ASSESSMENTS,"2,267.42"
Rochdale,14/04/2014,HAYS SOCIAL CARE,Human Resources,FINANCE SERVICES,ASSESSMENTS,"1,480.50"
Rochdale,25/04/2014,HAYS SOCIAL CARE,Human Resources,FINANCE SERVICES,ASSESSMENTS,540.42
Rochdale,25/04/2014,HAYS SOCIAL CARE,Human Resources,FINANCE SERVICES,ASSESSMENTS,"3,465.84"
Rochdale,14/04/2014,HAYS SOCIAL CARE,Human Resources,PHYSICAL DIS & OLDER PEOPLE,ASSISTIVE TECHNOLOGY,"1,015.90"
Rochdale,25/04/2014,HAYS SOCIAL CARE,Human Resources,PHYSICAL DIS & OLDER PEOPLE,ASSISTIVE TECHNOLOGY,911.51
Rochdale,25/04/2014,HAYS SOCIAL CARE,Human Resources,PHYSICAL DIS & OLDER PEOPLE,ASSISTIVE TECHNOLOGY,520.36
Rochdale,14/04/2014,HAYS SOCIAL CARE,Human Resources,CUSTOMERS & CORPORATE SERVICES,BOROUGHWIDE LIBRARIES,"1,886.18"
Rochdale,14/04/2014,HAYS SOCIAL CARE,Human Resources,CUSTOMERS & CORPORATE SERVICES,BOROUGHWIDE LIBRARIES,"1,454.01"
Rochdale,14/04/2014,HAYS SOCIAL CARE,Human Resources,PROPERTY AND HIGHWAYS,BUSINESS SUPPORT TEAM,"1,891.16"
Rochdale,14/04/2014,HAYS SOCIAL CARE,Human Resources,PROPERTY AND HIGHWAYS,BUSINESS SUPPORT TEAM,925.62
Rochdale,25/04/2014,HAYS SOCIAL CARE,Human Resources,PROPERTY AND HIGHWAYS,BUSINESS SUPPORT TEAM,"1,420.73"
Rochdale,25/04/2014,HAYS SOCIAL CARE,Human Resources,CHILDREN�S SOCIAL CARE,CARED FOR CHILDREN CARE LEAVERS 1,"1,108.78"
Rochdale,25/04/2014,HAYS SOCIAL CARE,Human Resources,CHILDREN�S SOCIAL CARE,CARED FOR CHILDREN CARE LEAVERS 1,"1,350.30"
Rochdale,25/04/2014,HAYS SOCIAL CARE,Human Resources,CHILDREN�S SOCIAL CARE,CARED FOR CHILDREN CARE LEAVERS 2,"1,033.43"
Rochdale,25/04/2014,HAYS SOCIAL CARE,Human Resources,CHILDREN�S SOCIAL CARE,CARED FOR CHILDREN CARE LEAVERS 2,"1,033.41"
Rochdale,25/04/2014,HAYS SOCIAL CARE,Human Resources,CUSTOMERS & CORPORATE SERVICES,CASE MANAGEMENT SYSTEM,850.26
Rochdale,25/04/2014,HAYS SOCIAL CARE,Human Resources,CUSTOMERS & CORPORATE SERVICES,CASE MANAGEMENT SYSTEM,850.26
Rochdale,14/04/2014,HAYS SOCIAL CARE,Human Resources,ECONOMY AND ENVIRONMENT,CEMETERIES GENERAL,"4,721.96"
Rochdale,25/04/2014,HAYS SOCIAL CARE,Human Resources,ECONOMY AND ENVIRONMENT,CEMETERIES GENERAL,788.61
Rochdale,25/04/2014,HAYS SOCIAL CARE,Human Resources,ECONOMY AND ENVIRONMENT,CEMETERIES GENERAL,"5,433.11"
Rochdale,14/04/2014,HAYS SOCIAL CARE,Human Resources,ECONOMY AND ENVIRONMENT,CENTRAL HOMELESSNESS,727.82
Rochdale,14/04/2014,HAYS SOCIAL CARE,Human Resources,ECONOMY AND ENVIRONMENT,CENTRAL HOMELESSNESS,"2,424.86"
Rochdale,25/04/2014,HAYS SOCIAL CARE,Human Resources,ECONOMY AND ENVIRONMENT,CENTRAL HOMELESSNESS,"4,184.65"
Rochdale,25/04/2014,HAYS SOCIAL CARE,Human Resources,CHILDREN�S SOCIAL CARE,CHILD PROTECT & CARE PROCEED 2,"6,376.22"
Rochdale,25/04/2014,HAYS SOCIAL CARE,Human Resources,CHILDREN�S SOCIAL CARE,CHILD PROTECT & CARE PROCEED 2,"2,588.17"
Rochdale,14/04/2014,HAYS SOCIAL CARE,Human Resources,CHILDREN�S SOCIAL CARE,CIC SOCIAL WORK,"3,203.15"
Rochdale,14/04/2014,HAYS SOCIAL CARE,Human Resources,CHILDREN�S SOCIAL CARE,CIC SOCIAL WORK,"5,004.66"
Rochdale,25/04/2014,HAYS SOCIAL CARE,Human Resources,CHILDREN�S SOCIAL CARE,CIC SOCIAL WORK,"3,508.86"
Rochdale,25/04/2014,HAYS SOCIAL CARE,Human Resources,CHILDREN�S SOCIAL CARE,CIC SOCIAL WORK,"2,917.42"
Rochdale,14/04/2014,HAYS SOCIAL CARE,Human Resources,CUSTOMERS & CORPORATE SERVICES,COMMITTEE SERVICES,821.04
Rochdale,14/04/2014,HAYS SOCIAL CARE,Human Resources,CUSTOMERS & CORPORATE SERVICES,COMMITTEE SERVICES,821.04
Rochdale,25/04/2014,HAYS SOCIAL CARE,Human Resources,CUSTOMERS & CORPORATE SERVICES,COMMITTEE SERVICES,821.04
Rochdale,25/04/2014,HAYS SOCIAL CARE,Human Resources,CUSTOMERS & CORPORATE SERVICES,COMMITTEE SERVICES,821.02
Rochdale,14/04/2014,HAYS SOCIAL CARE,Human Resources,CUSTOMERS & CORPORATE SERVICES,CORONERS SERVICE GENERAL,"1,133.99"
Rochdale,14/04/2014,HAYS SOCIAL CARE,Human Resources,CUSTOMERS & CORPORATE SERVICES,CORONERS SERVICE GENERAL,"1,140.67"
Rochdale,25/04/2014,HAYS SOCIAL CARE,Human Resources,CUSTOMERS & CORPORATE SERVICES,CORONERS SERVICE GENERAL,778.14
Rochdale,25/04/2014,HAYS SOCIAL CARE,Human Resources,CUSTOMERS & CORPORATE SERVICES,CORONERS SERVICE GENERAL,"1,142.77"
Rochdale,14/04/2014,HAYS SOCIAL CARE,Human Resources,FINANCE SERVICES,CORPORATE PROCUREMENT,632.10
Rochdale,14/04/2014,HAYS SOCIAL CARE,Human Resources,FINANCE SERVICES,CORPORATE PROCUREMENT,679.33
Rochdale,25/04/2014,HAYS SOCIAL CARE,Human Resources,FINANCE SERVICES,CORPORATE PROCUREMENT,679.32
Rochdale,25/04/2014,HAYS SOCIAL CARE,Human Resources,FINANCE SERVICES,CORPORATE PROCUREMENT,745.92
Rochdale,14/04/2014,HAYS SOCIAL CARE,Human Resources,FINANCE SERVICES,COUNCIL TAX LIABILITY AND RECOVERY,"1,124.41"
Rochdale,14/04/2014,HAYS SOCIAL CARE,Human Resources,FINANCE SERVICES,COUNCIL TAX LIABILITY AND RECOVERY,"1,111.10"
Rochdale,25/04/2014,HAYS SOCIAL CARE,Human Resources,FINANCE SERVICES,COUNCIL TAX LIABILITY AND RECOVERY,"1,111.10"
Rochdale,25/04/2014,HAYS SOCIAL CARE,Human Resources,FINANCE SERVICES,COUNCIL TAX LIABILITY AND RECOVERY,"1,111.11"
Rochdale,14/04/2014,HAYS SOCIAL CARE,Human Resources,CHILDREN�S SOCIAL CARE,CP SOCIAL WORK,"9,774.12"
Rochdale,14/04/2014,HAYS SOCIAL CARE,Human Resources,CHILDREN�S SOCIAL CARE,CP SOCIAL WORK,"6,438.98"
Rochdale,25/04/2014,HAYS SOCIAL CARE,Human Resources,CHILDREN�S SOCIAL CARE,CP SOCIAL WORK,"4,856.65"
Rochdale,25/04/2014,HAYS SOCIAL CARE,Human Resources,CHILDREN�S SOCIAL CARE,CP SOCIAL WORK,"10,092.56"
Rochdale,14/04/2014,HAYS SOCIAL CARE,Human Resources,CUSTOMERS & CORPORATE SERVICES,CSE RESOURCES,"10,235.10"
Rochdale,14/04/2014,HAYS SOCIAL CARE,Human Resources,CUSTOMERS & CORPORATE SERVICES,CSE RESOURCES,"5,887.18"
Rochdale,14/04/2014,HAYS SOCIAL CARE,Human Resources,CUSTOMERS & CORPORATE SERVICES,CUSTOMER ADVOCACY,"4,607.00"
Rochdale,14/04/2014,HAYS SOCIAL CARE,Human Resources,CUSTOMERS & CORPORATE SERVICES,CUSTOMER ADVOCACY,"3,591.58"
Rochdale,25/04/2014,HAYS SOCIAL CARE,Human Resources,CUSTOMERS & CORPORATE SERVICES,CUSTOMER ADVOCACY,"3,634.74"
Rochdale,25/04/2014,HAYS SOCIAL CARE,Human Resources,CUSTOMERS & CORPORATE SERVICES,CUSTOMER ADVOCACY,"2,136.36"
Rochdale,14/04/2014,HAYS SOCIAL CARE,Human Resources,FINANCE SERVICES,DEBT RECOVERY TEAM,"2,455.57"
Rochdale,14/04/2014,HAYS SOCIAL CARE,Human Resources,FINANCE SERVICES,DEBT RECOVERY TEAM,"2,793.10"
Rochdale,25/04/2014,HAYS SOCIAL CARE,Human Resources,FINANCE SERVICES,DEBT RECOVERY TEAM,"2,694.59"
Rochdale,25/04/2014,HAYS SOCIAL CARE,Human Resources,FINANCE SERVICES,DEBT RECOVERY TEAM,"1,664.87"
Rochdale,14/04/2014,HAYS SOCIAL CARE,Human Resources,EARLY HELP AND SCHOOLS,DISABILITIES SOCIAL WORK,"1,297.57"
Rochdale,14/04/2014,HAYS SOCIAL CARE,Human Resources,EARLY HELP AND SCHOOLS,DISABILITIES SOCIAL WORK,"3,376.87"
Rochdale,25/04/2014,HAYS SOCIAL CARE,Human Resources,EARLY HELP AND SCHOOLS,DISABILITIES SOCIAL WORK,"2,366.85"
Rochdale,25/04/2014,HAYS SOCIAL CARE,Human Resources,EARLY HELP AND SCHOOLS,DISABILITIES SOCIAL WORK,"3,539.77"
Rochdale,14/04/2014,HAYS SOCIAL CARE,Human Resources,ECONOMY AND ENVIRONMENT,DOMESTIC WASTE,"16,799.49"
Rochdale,14/04/2014,HAYS SOCIAL CARE,Human Resources,ECONOMY AND ENVIRONMENT,DOMESTIC WASTE,"14,687.32"
Rochdale,25/04/2014,HAYS SOCIAL CARE,Human Resources,ECONOMY AND ENVIRONMENT,DOMESTIC WASTE,"1,518.85"
Rochdale,25/04/2014,HAYS SOCIAL CARE,Human Resources,ECONOMY AND ENVIRONMENT,DOMESTIC WASTE,"2,624.42"
Rochdale,25/04/2014,HAYS SOCIAL CARE,Human Resources,EARLY HELP AND SCHOOLS,EARLY HELP STRATEGY,737.81
Rochdale,14/04/2014,HAYS SOCIAL CARE,Human Resources,CUSTOMERS & CORPORATE SERVICES,EDUCATION INFORMATION SYSTEMS TEAM,"1,152.44"
Rochdale,14/04/2014,HAYS SOCIAL CARE,Human Resources,CUSTOMERS & CORPORATE SERVICES,EDUCATION INFORMATION SYSTEMS TEAM,"1,165.41"
Rochdale,25/04/2014,HAYS SOCIAL CARE,Human Resources,CUSTOMERS & CORPORATE SERVICES,EDUCATION INFORMATION SYSTEMS TEAM,814.08
Rochdale,25/04/2014,HAYS SOCIAL CARE,Human Resources,CUSTOMERS & CORPORATE SERVICES,EDUCATION INFORMATION SYSTEMS TEAM,"1,707.87"
Rochdale,14/04/2014,HAYS SOCIAL CARE,Human Resources,ECONOMY AND ENVIRONMENT,EM MAIL ROOM,641.54
Rochdale,14/04/2014,HAYS SOCIAL CARE,Human Resources,CHILDREN�S SOCIAL CARE,EMERGENCY DUTY TEAM,"7,995.17"
Rochdale,14/04/2014,HAYS SOCIAL CARE,Human Resources,CHILDREN�S SOCIAL CARE,EMERGENCY DUTY TEAM,"3,960.12"
Rochdale,25/04/2014,HAYS SOCIAL CARE,Human Resources,CHILDREN�S SOCIAL CARE,EMERGENCY DUTY TEAM,"1,999.16"
Rochdale,25/04/2014,HAYS SOCIAL CARE,Human Resources,CHILDREN�S SOCIAL CARE,EMERGENCY DUTY TEAM,"4,448.52"
Rochdale,14/04/2014,HAYS SOCIAL CARE,Human Resources,ECONOMY AND ENVIRONMENT,EMPLOYMENTS LINKS,727.85
Rochdale,14/04/2014,HAYS SOCIAL CARE,Human Resources,ECONOMY AND ENVIRONMENT,EMPLOYMENTS LINKS,509.01
Rochdale,25/04/2014,HAYS SOCIAL CARE,Human Resources,ECONOMY AND ENVIRONMENT,EMPLOYMENTS LINKS,"1,606.39"
Rochdale,25/04/2014,HAYS SOCIAL CARE,Human Resources,ECONOMY AND ENVIRONMENT,EMPLOYMENTS LINKS,"1,057.70"
Rochdale,14/04/2014,HAYS SOCIAL CARE,Human Resources,ECONOMY AND ENVIRONMENT,EMPTY PROPERTY GRANT,576.37
Rochdale,14/04/2014,HAYS SOCIAL CARE,Human Resources,CUSTOMERS & CORPORATE SERVICES,ENTERPRISING LEADERSHIP,"2,336.41"
Rochdale,14/04/2014,HAYS SOCIAL CARE,Human Resources,CUSTOMERS & CORPORATE SERVICES,ENTERPRISING LEADERSHIP,"1,484.82"
Rochdale,25/04/2014,HAYS SOCIAL CARE,Human Resources,CUSTOMERS & CORPORATE SERVICES,ENTERPRISING LEADERSHIP,"2,461.23"
Rochdale,25/04/2014,HAYS SOCIAL CARE,Human Resources,CUSTOMERS & CORPORATE SERVICES,ENTERPRISING LEADERSHIP,590.52
Rochdale,14/04/2014,HAYS SOCIAL CARE,Human Resources,FINANCE SERVICES,FINANCIAL SUPPORT CROSS SERVICE BUDGETS,826.55
Rochdale,14/04/2014,HAYS SOCIAL CARE,Human Resources,FINANCE SERVICES,FINANCIAL SUPPORT CROSS SERVICE BUDGETS,814.53
Rochdale,25/04/2014,HAYS SOCIAL CARE,Human Resources,FINANCE SERVICES,FINANCIAL SUPPORT CROSS SERVICE BUDGETS,844.57
Rochdale,25/04/2014,HAYS SOCIAL CARE,Human Resources,FINANCE SERVICES,FINANCIAL SUPPORT CROSS SERVICE BUDGETS,850.61
Rochdale,25/04/2014,HAYS SOCIAL CARE,Human Resources,CHILDREN�S SOCIAL CARE,FIRST RESPONSE 1,"3,176.08"
Rochdale,25/04/2014,HAYS SOCIAL CARE,Human Resources,CHILDREN�S SOCIAL CARE,FIRST RESPONSE 1,"1,588.04"
Rochdale,25/04/2014,HAYS SOCIAL CARE,Human Resources,CHILDREN�S SOCIAL CARE,FIRST RESPONSE 5,"1,033.42"
Rochdale,25/04/2014,HAYS SOCIAL CARE,Human Resources,CHILDREN�S SOCIAL CARE,FIRST RESPONSE 5,"1,033.40"
Rochdale,25/04/2014,HAYS SOCIAL CARE,Human Resources,CHILDREN�S SOCIAL CARE,FIRST RESPONSE 6,"1,022.29"
Rochdale,25/04/2014,HAYS SOCIAL CARE,Human Resources,CHILDREN�S SOCIAL CARE,FIRST RESPONSE 6,"1,022.29"
Rochdale,14/04/2014,HAYS SOCIAL CARE,Human Resources,ECONOMY AND ENVIRONMENT,FLEET MAINTENANCE,810.27
Rochdale,25/04/2014,HAYS SOCIAL CARE,Human Resources,ECONOMY AND ENVIRONMENT,FLEET MAINTENANCE,"1,218.31"
Rochdale,25/04/2014,HAYS SOCIAL CARE,Human Resources,ECONOMY AND ENVIRONMENT,FLEET MAINTENANCE,655.63
Rochdale,14/04/2014,HAYS SOCIAL CARE,Human Resources,CHILDREN�S SOCIAL CARE,FOSTERING TEAM,"2,126.96"
Rochdale,14/04/2014,HAYS SOCIAL CARE,Human Resources,CHILDREN�S SOCIAL CARE,FOSTERING TEAM,"2,784.70"
Rochdale,25/04/2014,HAYS SOCIAL CARE,Human Resources,CHILDREN�S SOCIAL CARE,FOSTERING TEAM,"4,347.62"
Rochdale,25/04/2014,HAYS SOCIAL CARE,Human Resources,CHILDREN�S SOCIAL CARE,FOSTERING TEAM,"4,173.02"
Rochdale,14/04/2014,HAYS SOCIAL CARE,Human Resources,CUSTOMERS & CORPORATE SERVICES,HEAD OF SERVICE,850.26
Rochdale,14/04/2014,HAYS SOCIAL CARE,Human Resources,CUSTOMERS & CORPORATE SERVICES,HEAD OF SERVICE,850.26
Rochdale,25/04/2014,HAYS SOCIAL CARE,Human Resources,PROPERTY AND HIGHWAYS,HIGHWAYS CAPITAL INVESTMENT,603.09
Rochdale,25/04/2014,HAYS SOCIAL CARE,Human Resources,PROPERTY AND HIGHWAYS,HIGHWAYS CAPITAL INVESTMENT,626.89
Rochdale,14/04/2014,HAYS SOCIAL CARE,Human Resources,CUSTOMERS & CORPORATE SERVICES,LITIGATION SECTION,"2,022.03"
Rochdale,25/04/2014,HAYS SOCIAL CARE,Human Resources,CUSTOMERS & CORPORATE SERVICES,LITIGATION SECTION,"3,909.40"
Rochdale,25/04/2014,HAYS SOCIAL CARE,Human Resources,CUSTOMERS & CORPORATE SERVICES,LITIGATION SECTION,"2,857.86"
Rochdale,14/04/2014,HAYS SOCIAL CARE,Human Resources,CHILDREN�S SOCIAL CARE,MANAGEMENT STRUCTURE,"1,150.93"
Rochdale,14/04/2014,HAYS SOCIAL CARE,Human Resources,CHILDREN�S SOCIAL CARE,MANAGEMENT STRUCTURE,"1,119.29"
Rochdale,25/04/2014,HAYS SOCIAL CARE,Human Resources,CHILDREN�S SOCIAL CARE,MANAGEMENT STRUCTURE,954.90
Rochdale,14/04/2014,HAYS SOCIAL CARE,Human Resources,ECONOMY AND ENVIRONMENT,MIDD PIF & TOWNSHIP FUNDING STREET SERV,"10,989.38"
Rochdale,14/04/2014,HAYS SOCIAL CARE,Human Resources,ECONOMY AND ENVIRONMENT,MIDD PIF & TOWNSHIP FUNDING STREET SERV,"6,707.48"
Rochdale,25/04/2014,HAYS SOCIAL CARE,Human Resources,ECONOMY AND ENVIRONMENT,MIDD PIF & TOWNSHIP FUNDING STREET SERV,"13,266.31"
Rochdale,14/04/2014,HAYS SOCIAL CARE,Human Resources,PHYSICAL DIS & OLDER PEOPLE,NHS DELAYED TRANSFER,762.94
Rochdale,14/04/2014,HAYS SOCIAL CARE,Human Resources,PHYSICAL DIS & OLDER PEOPLE,NHS DELAYED TRANSFER,762.94
Rochdale,14/04/2014,HAYS SOCIAL CARE,Human Resources,CHILDREN�S SOCIAL CARE,OTHER CWDC FUNDS,"5,874.33"
Rochdale,14/04/2014,HAYS SOCIAL CARE,Human Resources,CHILDREN�S SOCIAL CARE,OTHER CWDC FUNDS,"1,066.29"
Rochdale,25/04/2014,HAYS SOCIAL CARE,Human Resources,CHILDREN�S SOCIAL CARE,OTHER CWDC FUNDS,"5,494.15"
Rochdale,25/04/2014,HAYS SOCIAL CARE,Human Resources,CHILDREN�S SOCIAL CARE,OTHER CWDC FUNDS,"7,524.13"
Rochdale,14/04/2014,HAYS SOCIAL CARE,Human Resources,FINANCE SERVICES,PR MEDIA AND MARKETING,"3,864.48"
Rochdale,14/04/2014,HAYS SOCIAL CARE,Human Resources,FINANCE SERVICES,PR MEDIA AND MARKETING,"3,575.78"
Rochdale,25/04/2014,HAYS SOCIAL CARE,Human Resources,FINANCE SERVICES,PR MEDIA AND MARKETING,"3,074.87"
Rochdale,25/04/2014,HAYS SOCIAL CARE,Human Resources,FINANCE SERVICES,PR MEDIA AND MARKETING,"7,000.20"
Rochdale,14/04/2014,HAYS SOCIAL CARE,Human Resources,PROPERTY AND HIGHWAYS,PROJECT TEAM,"2,308.92"
Rochdale,14/04/2014,HAYS SOCIAL CARE,Human Resources,PROPERTY AND HIGHWAYS,PROJECT TEAM,"2,069.79"
Rochdale,25/04/2014,HAYS SOCIAL CARE,Human Resources,PROPERTY AND HIGHWAYS,PROJECT TEAM,"2,440.67"
Rochdale,25/04/2014,HAYS SOCIAL CARE,Human Resources,PROPERTY AND HIGHWAYS,PROJECT TEAM,"1,441.76"
Rochdale,14/04/2014,HAYS SOCIAL CARE,Human Resources,CUSTOMERS & CORPORATE SERVICES,PROPERTY SECTION,"2,440.54"
Rochdale,14/04/2014,HAYS SOCIAL CARE,Human Resources,CUSTOMERS & CORPORATE SERVICES,PROPERTY SECTION,"2,440.55"
Rochdale,14/04/2014,HAYS SOCIAL CARE,Human Resources,CUSTOMERS & CORPORATE SERVICES,REFRESH PROGRAMME,"16,808.78"
Rochdale,14/04/2014,HAYS SOCIAL CARE,Human Resources,CUSTOMERS & CORPORATE SERVICES,REFRESH PROGRAMME,"14,084.84"
Rochdale,25/04/2014,HAYS SOCIAL CARE,Human Resources,CUSTOMERS & CORPORATE SERVICES,REFRESH PROGRAMME,"15,696.12"
Rochdale,25/04/2014,HAYS SOCIAL CARE,Human Resources,CUSTOMERS & CORPORATE SERVICES,REFRESH PROGRAMME,"10,431.34"
Rochdale,14/04/2014,HAYS SOCIAL CARE,Human Resources,CHILDREN�S SOCIAL CARE,REMODELLING SOCIAL WORK,"2,796.66"
Rochdale,14/04/2014,HAYS SOCIAL CARE,Human Resources,CHILDREN�S SOCIAL CARE,REMODELLING SOCIAL WORK,"4,606.44"
Rochdale,25/04/2014,HAYS SOCIAL CARE,Human Resources,CHILDREN�S SOCIAL CARE,REMODELLING SOCIAL WORK,"2,269.81"
Rochdale,25/04/2014,HAYS SOCIAL CARE,Human Resources,CHILDREN�S SOCIAL CARE,REMODELLING SOCIAL WORK,"4,333.47"
Rochdale,14/04/2014,HAYS SOCIAL CARE,Human Resources,ECONOMY AND ENVIRONMENT,ROCH PIF & TOWNSHIP FUNDING FOR STREETS,"2,989.04"
Rochdale,14/04/2014,HAYS SOCIAL CARE,Human Resources,ECONOMY AND ENVIRONMENT,ROCH PIF & TOWNSHIP FUNDING FOR STREETS,"2,095.74"
Rochdale,25/04/2014,HAYS SOCIAL CARE,Human Resources,ECONOMY AND ENVIRONMENT,ROCH PIF & TOWNSHIP FUNDING FOR STREETS,711.88
Rochdale,25/04/2014,HAYS SOCIAL CARE,Human Resources,ECONOMY AND ENVIRONMENT,ROCH PIF & TOWNSHIP FUNDING FOR STREETS,"5,405.41"
Rochdale,25/04/2014,HAYS SOCIAL CARE,Human Resources,CHILDREN�S SOCIAL CARE,RUGBY ROAD,664.70
Rochdale,14/04/2014,HAYS SOCIAL CARE,Human Resources,CHILDREN�S SOCIAL CARE,SAFEGUARDING CHILDREN UNIT,"3,316.59"
Rochdale,14/04/2014,HAYS SOCIAL CARE,Human Resources,CHILDREN�S SOCIAL CARE,SAFEGUARDING CHILDREN UNIT,"6,897.30"
Rochdale,25/04/2014,HAYS SOCIAL CARE,Human Resources,CHILDREN�S SOCIAL CARE,SAFEGUARDING CHILDREN UNIT,"5,019.25"
Rochdale,25/04/2014,HAYS SOCIAL CARE,Human Resources,CHILDREN�S SOCIAL CARE,SAFEGUARDING CHILDREN UNIT,"7,143.67"
Rochdale,14/04/2014,HAYS SOCIAL CARE,Human Resources,CUSTOMERS & CORPORATE SERVICES,SCRUTINY & PERFORMANCE,"1,677.86"
Rochdale,14/04/2014,HAYS SOCIAL CARE,Human Resources,CUSTOMERS & CORPORATE SERVICES,SCRUTINY & PERFORMANCE,"1,566.07"
Rochdale,25/04/2014,HAYS SOCIAL CARE,Human Resources,CUSTOMERS & CORPORATE SERVICES,SCRUTINY & PERFORMANCE,"1,671.36"
Rochdale,25/04/2014,HAYS SOCIAL CARE,Human Resources,CUSTOMERS & CORPORATE SERVICES,SCRUTINY & PERFORMANCE,659.19
Rochdale,25/04/2014,HAYS SOCIAL CARE,Human Resources,ECONOMY AND ENVIRONMENT,STREETS HEYWOOD RBH,"1,857.40"
Rochdale,25/04/2014,HAYS SOCIAL CARE,Human Resources,ECONOMY AND ENVIRONMENT,STREETS HEYWOOD RBH,928.70
Rochdale,25/04/2014,HAYS SOCIAL CARE,Human Resources,ECONOMY AND ENVIRONMENT,STREETS ROCHDALE RBH,"6,500.55"
Rochdale,25/04/2014,HAYS SOCIAL CARE,Human Resources,ECONOMY AND ENVIRONMENT,STREETS ROCHDALE RBH,"2,919.86"
Rochdale,14/04/2014,HAYS SOCIAL CARE,Human Resources,EARLY HELP AND SCHOOLS,STRONGER FAMILIES PROGRAMME DELIVERY,520.70
Rochdale,25/04/2014,HAYS SOCIAL CARE,Human Resources,EARLY HELP AND SCHOOLS,STRONGER FAMILIES PROGRAMME DELIVERY,677.03
Rochdale,25/04/2014,HAYS SOCIAL CARE,Human Resources,EARLY HELP AND SCHOOLS,STRONGER FAMILIES PROGRAMME DELIVERY,616.64
Rochdale,14/04/2014,HAYS SOCIAL CARE,Human Resources,PROPERTY AND HIGHWAYS,TECHNICAL TEAM,"1,446.98"
Rochdale,14/04/2014,HAYS SOCIAL CARE,Human Resources,PROPERTY AND HIGHWAYS,TECHNICAL TEAM,810.36
Rochdale,25/04/2014,HAYS SOCIAL CARE,Human Resources,PROPERTY AND HIGHWAYS,TECHNICAL TEAM,"1,263.78"
Rochdale,25/04/2014,HAYS SOCIAL CARE,Human Resources,PROPERTY AND HIGHWAYS,TECHNICAL TEAM,"1,152.06"
Rochdale,14/04/2014,HAYS SOCIAL CARE,Human Resources,EARLY HELP AND SCHOOLS,WOODLAND CHILDRENS CENTRE,"1,326.28"
Rochdale,14/04/2014,HAYS SOCIAL CARE,Human Resources,CHILDREN�S SOCIAL CARE,YOUNG PEOPLES SUPPORT TEAM,"1,355.29"
Rochdale,14/04/2014,HAYS SOCIAL CARE,Human Resources,CHILDREN�S SOCIAL CARE,YOUNG PEOPLES SUPPORT TEAM,769.22
Rochdale,02/04/2014,JUST TEACHERS LIMITED,Human Resources,EARLY HELP AND SCHOOLS,AUTISM,"1,037.00"
Rochdale,02/04/2014,JUST TEACHERS LIMITED,Human Resources,EARLY HELP AND SCHOOLS,AUTISM,"1,037.00"
Rochdale,16/04/2014,JUST TEACHERS LIMITED,Human Resources,EARLY HELP AND SCHOOLS,AUTISM,"1,037.00"
Rochdale,16/04/2014,JUST TEACHERS LIMITED,Human Resources,EARLY HELP AND SCHOOLS,AUTISM,518.50
Rochdale,16/04/2014,KORUS RECRUITMENT GROUP LTD,Human Resources,CUSTOMERS & CORPORATE SERVICES,REFRESH PROGRAMME,"3,740.00"
Rochdale,15/04/2014,LEYTON HEALTHCARE NO 12 LTD,Human Resources,PHYSICAL DIS & OLDER PEOPLE,TRAINING COMMISSIONING,"4,860.00"
Rochdale,25/04/2014,LINKUP TRANSLATION LIMITED,Human Resources,CHILDREN�S SOCIAL CARE,SAFEGUARDING CHILDREN UNIT,631.80
Rochdale,22/04/2014,LOCAL GOVERNMENT ASSOCIATION,Human Resources,CUSTOMERS & CORPORATE SERVICES,SUBSCRIPTIONS GRANTS AND DONATIONS,"32,767.40"
Rochdale,03/04/2014,LORD AND CO HR LTD,Human Resources,LEARNING DIS & MENTAL HEALTH,LD PROVIDER MANAGEMENT & ADMIN,750.00
Rochdale,10/04/2014,MEADOWS CARE LIMITED,Human Resources,CHILDREN�S SOCIAL CARE,EXTERNAL RESIDENTIAL PLACEMENTS,"4,982.01"
Rochdale,17/04/2014,MENCAP,Human Resources,LEARNING DIS & MENTAL HEALTH,LD FORUM - HOME SUPPORT,633.60
Rochdale,17/04/2014,MENCAP,Human Resources,LEARNING DIS & MENTAL HEALTH,LD FORUM - HOME SUPPORT,528.00
Rochdale,08/04/2014,MENCAP,Human Resources,LEARNING DIS & MENTAL HEALTH,LD FORUM - PERSONAL BUDGETS,607.20
Rochdale,17/04/2014,MENCAP,Human Resources,LEARNING DIS & MENTAL HEALTH,LD FORUM - PERSONAL BUDGETS,"1,012.00"
Rochdale,17/04/2014,MENCAP,Human Resources,LEARNING DIS & MENTAL HEALTH,LD FORUM - PERSONAL BUDGETS,802.00
Rochdale,11/04/2014,MERITEC LIMITED,Human Resources,FINANCE SERVICES,HSG BEN & CNCIL TAX SUPPORT ASSESSMENTS,"79,966.25"
Rochdale,08/04/2014,MOTT MACDONALD LIMITED,Human Resources,EARLY HELP AND SCHOOLS,BSF DEVELOPMENT (MOD0809),"5,795.11"
Rochdale,03/04/2014,NHBC,Human Resources,ECONOMY AND ENVIRONMENT,BUILDING CONTROL MANAGEMENT,835.00
Rochdale,14/04/2014,NORTHENDEN TRAVEL,Human Resources,CHILDREN�S SOCIAL CARE,FOSTERING TEAM,"1,251.00"
Rochdale,08/04/2014,OLDHAM COLLEGE,Human Resources,CHILDREN�S SOCIAL CARE,CSC TRAINING EXPENSES,"6,904.00"
Rochdale,08/04/2014,OLDHAM COLLEGE,Human Resources,CHILDREN�S SOCIAL CARE,CSC TRAINING EXPENSES,"4,653.00"
Rochdale,04/04/2014,PULSE HEALTHCARE LTD,Human Resources,EARLY HELP AND SCHOOLS,DISABILITIES RESPITE CARE,"2,623.71"
Rochdale,08/04/2014,PULSE HEALTHCARE LTD,Human Resources,EARLY HELP AND SCHOOLS,DISABILITIES RESPITE CARE,"2,598.89"
Rochdale,23/04/2014,PULSE HEALTHCARE LTD,Human Resources,EARLY HELP AND SCHOOLS,DISABILITIES RESPITE CARE,"2,592.42"
Rochdale,04/04/2014,RAY BRAITHWAITE,Human Resources,CHILDREN�S SOCIAL CARE,CHILDREN'S WORKFORCE DEVELOPMENT,"1,100.00"
Rochdale,02/04/2014,REACH TRAINING,Human Resources,PUBLIC HEALTH,SUPPORTING CHANGE & COMMUNITIES,530.00
Rochdale,07/04/2014,REACH TRAINING,Human Resources,PUBLIC HEALTH,SUPPORTING CHANGE & COMMUNITIES,520.00
Rochdale,16/04/2014,REACH TRAINING,Human Resources,PUBLIC HEALTH,SUPPORTING CHANGE & COMMUNITIES,530.00
Rochdale,16/04/2014,REACH TRAINING,Human Resources,PUBLIC HEALTH,SUPPORTING CHANGE & COMMUNITIES,510.00
Rochdale,11/04/2014,REAL STAFFING GROUP,Human Resources,CUSTOMERS & CORPORATE SERVICES,E-HR TRANSFORMATION PROGAMME,"1,500.00"
Rochdale,10/04/2014,REDACTED-PERSONAL DATA,Human Resources,CHILDREN�S SOCIAL CARE,EXTERNAL RESIDENTIAL PLACEMENTS,"14,734.83"
Rochdale,10/04/2014,ROC NORTHWEST LTD,Human Resources,CHILDREN�S SOCIAL CARE,EXTERNAL RESIDENTIAL PLACEMENTS,"16,430.00"
Rochdale,23/04/2014,ROYAL SCHOOL FOR THE DEAF DERBY,Human Resources,EARLY HELP AND SCHOOLS,PRE 16 RDALE PUPILS IN NON MAINTAINED,"11,992.34"
Rochdale,03/04/2014,S P TRAVEL,Human Resources,ECONOMY AND ENVIRONMENT,EDUCATION HOME TO SCHOOL,"1,890.00"
Rochdale,23/04/2014,SEASHELL TRUST,Human Resources,EARLY HELP AND SCHOOLS,NON MAINTAINED POST 16,"15,623.73"
Rochdale,23/04/2014,SEASHELL TRUST,Human Resources,EARLY HELP AND SCHOOLS,NON MAINTAINED POST 16,"18,956.67"
Rochdale,03/04/2014,SELLICK PARTNERSHIP,Human Resources,CUSTOMERS & CORPORATE SERVICES,LEGAL SERVICES,"1,600.00"
Rochdale,11/04/2014,STHREE PARTNERSHIP LLP,Human Resources,CUSTOMERS & CORPORATE SERVICES,BUSINESS INTELLIGENCE SYSTEMS,"1,500.00"
Rochdale,23/04/2014,THOMASSON MEMORIAL SCHOOL,Human Resources,EARLY HELP AND SCHOOLS,PRE 16 RDALE PUPILS IN OLA SPECIAL,"10,677.10"
Rochdale,04/04/2014,TIMOTHY JAMES CONSULTANCY LTD,Human Resources,CHILDREN�S SOCIAL CARE,MANAGEMENT STRUCTURE,"2,000.00"
Rochdale,24/04/2014,TIMOTHY JAMES CONSULTANCY LTD,Human Resources,CHILDREN�S SOCIAL CARE,MANAGEMENT STRUCTURE,"1,400.00"
Rochdale,08/04/2014,TSL EDUCATION LIMITED,Human Resources,EARLY HELP AND SCHOOLS,PERSONNEL,"1,041.25"
Rochdale,16/04/2014,VIRTUAL COLLEGE,Human Resources,CUSTOMERS & CORPORATE SERVICES,AGMA E-LEARNING,"2,982.00"
Rochdale,10/04/2014,WINGS EDUCATION LTD,Human Resources,CHILDREN�S SOCIAL CARE,EXTERNAL RESIDENTIAL PLACEMENTS,"17,207.00"
Rochdale,10/04/2014,WINGS EDUCATION LTD,Human Resources,CHILDREN�S SOCIAL CARE,EXTERNAL RESIDENTIAL PLACEMENTS,"16,117.00"
Rochdale,08/04/2014,WINGS EDUCATION LTD,Human Resources,EARLY HELP AND SCHOOLS,IND SCHOOLS  RESIDENTIAL,"31,848.00"
Rochdale,11/04/2014,ASSOCIATED COMPUTER SUPPLIES,Information Communication Technology,EARLY HELP AND SCHOOLS,LITTLEBOROUGH CHILDRENS CENTRE,507.72
Rochdale,22/04/2014,ASTEC ASSISTIVE TECHNOLOGY SOLUTIONS LTD,Information Communication Technology,CUSTOMERS & CORPORATE SERVICES,LEGAL SERVICES,"2,475.00"
Rochdale,16/04/2014,AVANQUEST SOLUTIONS UK LIMITED,Information Communication Technology,CUSTOMERS & CORPORATE SERVICES,BUSINESS INTELLIGENCE SYSTEMS,"9,204.00"
Rochdale,07/04/2014,BREEZE LIMITED,Information Communication Technology,FINANCE SERVICES,TECHNICAL SUPPORT,"7,129.05"
Rochdale,11/04/2014,CABLE & WIRELESS,Information Communication Technology,CUSTOMERS & CORPORATE SERVICES,THIRD PARTY CONTRACTS,864.61
Rochdale,15/04/2014,CBL DATA RECOVERY,Information Communication Technology,CUSTOMERS & CORPORATE SERVICES,ICT OVERHEADS,"4,650.00"
Rochdale,16/04/2014,EMBARCADERO EUROPE LIMITED,Information Communication Technology,CUSTOMERS & CORPORATE SERVICES,THIRD PARTY CONTRACTS,"1,104.62"
Rochdale,22/04/2014,FISCAL TECHNOLOGIES LTD,Information Communication Technology,FINANCE SERVICES,CENTRAL FINANCE  SYSTEMS AND ADMIN,"16,408.00"
Rochdale,16/04/2014,GEOWISE LTD,Information Communication Technology,CUSTOMERS & CORPORATE SERVICES,SCRUTINY & PERFORMANCE,"8,750.00"
Rochdale,02/04/2014,HENRY ALTY LIMITED,Information Communication Technology,ECONOMY AND ENVIRONMENT,BOWLEE AND GARDEN MAILSHOP,"2,876.40"
Rochdale,25/04/2014,HENRY ALTY LIMITED,Information Communication Technology,ECONOMY AND ENVIRONMENT,BOWLEE AND GARDEN MAILSHOP,"1,839.49"
Rochdale,11/04/2014,INSIGHT MEDIA INTERNET LTD,Information Communication Technology,CUSTOMERS & CORPORATE SERVICES,THIRD PARTY CONTRACTS,"3,040.92"
Rochdale,22/04/2014,IT GUY AND COM SYSTEMS PLC,Information Communication Technology,LEARNING DIS & MENTAL HEALTH,SE SET UP COSTS,"20,905.21"
Rochdale,22/04/2014,IT GUY AND COM SYSTEMS PLC,Information Communication Technology,LEARNING DIS & MENTAL HEALTH,SE SET UP COSTS,781.76
Rochdale,23/04/2014,LEARNING POOL LIMITED,Information Communication Technology,EARLY HELP AND SCHOOLS,GOVERNORS SERVICES,"2,937.00"
Rochdale,08/04/2014,MAYRISE LTD,Information Communication Technology,CUSTOMERS & CORPORATE SERVICES,INSURANCE,"2,600.00"
Rochdale,07/04/2014,MERIDIAN LAW LTD,Information Communication Technology,CUSTOMERS & CORPORATE SERVICES,CORONERS CLIENT ROLE,"11,700.00"
Rochdale,03/04/2014,MIDLAND SOFTWARE LTD,Information Communication Technology,CUSTOMERS & CORPORATE SERVICES,THIRD PARTY CONTRACTS,"2,403.99"
Rochdale,15/04/2014,MISCO,Information Communication Technology,CUSTOMERS & CORPORATE SERVICES,REFRESH PROGRAMME,"4,432.63"
Rochdale,15/04/2014,MISCO,Information Communication Technology,CUSTOMERS & CORPORATE SERVICES,REFRESH PROGRAMME,763.50
Rochdale,15/04/2014,MISCO,Information Communication Technology,CUSTOMERS & CORPORATE SERVICES,REFRESH PROGRAMME,772.22
Rochdale,11/04/2014,NETWORKS FIRST LTD,Information Communication Technology,ECONOMY AND ENVIRONMENT,ENV HEAD OF SERVICE M AND SS,"1,809.00"
Rochdale,11/04/2014,NETWORKS FIRST LTD,Information Communication Technology,CUSTOMERS & CORPORATE SERVICES,REFRESH PROGRAMME,"4,784.00"
Rochdale,25/04/2014,NOMIX ENVIRO,Information Communication Technology,ECONOMY AND ENVIRONMENT,STREETS ROCHDALE GENERAL,715.00
Rochdale,03/04/2014,NORTHGATE INFORMATION SOLUTIONS UK LTD,Information Communication Technology,FINANCE SERVICES,BLUE BADGES,"1,607.88"
Rochdale,03/04/2014,NORTHGATE INFORMATION SOLUTIONS UK LTD,Information Communication Technology,FINANCE SERVICES,SOCIAL FUND,"105,950.00"
Rochdale,22/04/2014,PARAGON GROUP UK LTD,Information Communication Technology,FINANCE SERVICES,HEAD OF SERVICE MANAGEMENT,"1,024.98"
Rochdale,02/04/2014,SAP (UK) LTD,Information Communication Technology,CUSTOMERS & CORPORATE SERVICES,REFRESH PROGRAMME,"17,464.00"
Rochdale,15/04/2014,SHAW TRUST,Information Communication Technology,LEARNING DIS & MENTAL HEALTH,PERSONAL BUDGET SUPPORT,804.00
Rochdale,16/04/2014,SHAW TRUST,Information Communication Technology,LEARNING DIS & MENTAL HEALTH,PERSONAL BUDGET SUPPORT,960.00
Rochdale,11/04/2014,SIMPLE TECHNOLOGY,Information Communication Technology,CUSTOMERS & CORPORATE SERVICES,EDIT GENERAL,"7,805.00"
Rochdale,11/04/2014,SPECIALIST COMPUTER CENTRES PLC,Information Communication Technology,CUSTOMERS & CORPORATE SERVICES,REFRESH PROGRAMME,"4,736.00"
Rochdale,11/04/2014,SPECIALIST COMPUTER CENTRES PLC,Information Communication Technology,CUSTOMERS & CORPORATE SERVICES,REFRESH PROGRAMME,825.00
Rochdale,16/04/2014,SPECIALIST COMPUTER CENTRES PLC,Information Communication Technology,CUSTOMERS & CORPORATE SERVICES,REFRESH PROGRAMME,"108,895.00"
Rochdale,25/04/2014,SUPPLIES TEAM LIMITED,Information Communication Technology,CHILDREN�S SOCIAL CARE,ACCESS AND SUPPORT SOCIAL WORK,593.75
Rochdale,24/04/2014,SYMOLOGY LTD,Information Communication Technology,PROPERTY AND HIGHWAYS,BUSINESS SUPPORT TEAM,"13,848.00"
Rochdale,24/04/2014,THE NCC GROUP,Information Communication Technology,PROPERTY AND HIGHWAYS,STREET LIGHTING CLIENT TEAM,587.50
Rochdale,16/04/2014,THUS,Information Communication Technology,CUSTOMERS & CORPORATE SERVICES,THIRD PARTY CONTRACTS,"2,428.52"
Rochdale,23/04/2014,UNITY PARTNERSHIP LTD,Information Communication Technology,PROPERTY AND HIGHWAYS,HIGHWAYS MANAGEMENT,"1,890.00"
Rochdale,11/04/2014,UNITY PARTNERSHIP LTD,Information Communication Technology,PROPERTY AND HIGHWAYS,NETWORK DEVELOPMENT TEAM,"17,902.00"
Rochdale,04/04/2014,UPDATA INFRASTRUCTURE UK LTD,Information Communication Technology,CUSTOMERS & CORPORATE SERVICES,REFRESH PROGRAMME,"1,660.00"
Rochdale,03/04/2014,UPDATA INFRASTRUCTURE UK LTD,Information Communication Technology,CUSTOMERS & CORPORATE SERVICES,THIRD PARTY CONTRACTS,"1,542.75"
Rochdale,11/04/2014,UPDATA INFRASTRUCTURE UK LTD,Information Communication Technology,CUSTOMERS & CORPORATE SERVICES,THIRD PARTY CONTRACTS,"3,355.16"
Rochdale,15/04/2014,UPDATA INFRASTRUCTURE UK LTD,Information Communication Technology,CUSTOMERS & CORPORATE SERVICES,THIRD PARTY CONTRACTS,"30,291.45"
Rochdale,11/04/2014,VIGLEN LIMITED,Information Communication Technology,CUSTOMERS & CORPORATE SERVICES,EDIT GENERAL,"2,158.00"
Rochdale,11/04/2014,XN LEISURE SYSTEMS LTD,Information Communication Technology,CUSTOMERS & CORPORATE SERVICES,ICT OVERHEADS,"2,400.00"
Rochdale,16/04/2014,DAC BEACHCROFT LLP,Legal Services,CUSTOMERS & CORPORATE SERVICES,LEGAL SERVICES,"2,800.00"
Rochdale,16/04/2014,DAC BEACHCROFT LLP,Legal Services,CUSTOMERS & CORPORATE SERVICES,STANDARDS,"1,636.00"
Rochdale,16/04/2014,DAC BEACHCROFT LLP,Legal Services,CUSTOMERS & CORPORATE SERVICES,STANDARDS,"1,000.00"
Rochdale,16/04/2014,DAC BEACHCROFT LLP,Legal Services,CUSTOMERS & CORPORATE SERVICES,STANDARDS,"3,200.00"
Rochdale,16/04/2014,DAC BEACHCROFT LLP,Legal Services,CUSTOMERS & CORPORATE SERVICES,STANDARDS,"1,698.00"
Rochdale,08/04/2014,JASON COPPEL,Legal Services,CUSTOMERS & CORPORATE SERVICES,LEGAL SERVICES,"1,800.00"
Rochdale,08/04/2014,JASON COPPEL,Legal Services,CUSTOMERS & CORPORATE SERVICES,LEGAL SERVICES,"4,500.00"
Rochdale,25/04/2014,JMW SOLICITORS,Legal Services,FINANCE SERVICES,BUSINESS RATES BILLING AND COLLECTION,"1,000.00"
Rochdale,17/04/2014,PINSENT MASONS LLP,Legal Services,CUSTOMERS & CORPORATE SERVICES,LEGAL SERVICES,"1,350.50"
Rochdale,16/04/2014,PINSENT MASONS LLP,Legal Services,CUSTOMERS & CORPORATE SERVICES,LEGAL SERVICES,814.00
Rochdale,08/04/2014,REDACTED-PERSONAL DATA,Legal Services,CUSTOMERS & CORPORATE SERVICES,CORONERS SERVICE GENERAL,707.25
Rochdale,08/04/2014,REDACTED-PERSONAL DATA,Legal Services,CUSTOMERS & CORPORATE SERVICES,CORONERS SERVICE GENERAL,852.80
Rochdale,08/04/2014,REDACTED-PERSONAL DATA,Legal Services,CUSTOMERS & CORPORATE SERVICES,CORONERS SERVICE GENERAL,683.84
Rochdale,08/04/2014,REDACTED-PERSONAL DATA,Legal Services,CUSTOMERS & CORPORATE SERVICES,CORONERS SERVICE GENERAL,690.92
Rochdale,08/04/2014,REDACTED-PERSONAL DATA,Legal Services,CUSTOMERS & CORPORATE SERVICES,CORONERS SERVICE GENERAL,761.80
Rochdale,08/04/2014,REDACTED-PERSONAL DATA,Legal Services,CUSTOMERS & CORPORATE SERVICES,CORONERS SERVICE GENERAL,680.00
Rochdale,23/04/2014,STOCKPORT PSYCHOLOGY SERVICES LIMITED,Legal Services,CHILDREN�S SOCIAL CARE,INDEPENDENT FOSTER CARE,"2,746.60"
Rochdale,08/04/2014,ROYAL MAIL GROUP PLC,Mail Services�,ECONOMY AND ENVIRONMENT,EM MAIL ROOM,"29,653.31"
Rochdale,08/04/2014,ROYAL MAIL GROUP PLC,Mail Services�,PHYSICAL DIS & OLDER PEOPLE,INCOME GENERATION,624.89
Rochdale,08/04/2014,ROYAL MAIL GROUP PLC,Mail Services�,FINANCE SERVICES,TECHNICAL SUPPORT,"1,272.08"
Rochdale,22/04/2014,ROYAL MAIL GROUP PLC,Mail Services�,FINANCE SERVICES,TECHNICAL SUPPORT,"1,228.12"
Rochdale,08/04/2014,CARDIFF UNIVERSITY,Public Bodies,CUSTOMERS & CORPORATE SERVICES,CORONERS SERVICE GENERAL,500.00
Rochdale,08/04/2014,CARDIFF UNIVERSITY,Public Bodies,CUSTOMERS & CORPORATE SERVICES,CORONERS SERVICE GENERAL,500.00
Rochdale,08/04/2014,CARDIFF UNIVERSITY,Public Bodies,CUSTOMERS & CORPORATE SERVICES,CORONERS SERVICE GENERAL,500.00
Rochdale,08/04/2014,CARDIFF UNIVERSITY,Public Bodies,CUSTOMERS & CORPORATE SERVICES,CORONERS SERVICE GENERAL,500.00
Rochdale,08/04/2014,CARDIFF UNIVERSITY,Public Bodies,CUSTOMERS & CORPORATE SERVICES,CORONERS SERVICE GENERAL,500.00
Rochdale,08/04/2014,CARDIFF UNIVERSITY,Public Bodies,CUSTOMERS & CORPORATE SERVICES,CORONERS SERVICE GENERAL,500.00
Rochdale,08/04/2014,CARDIFF UNIVERSITY,Public Bodies,CUSTOMERS & CORPORATE SERVICES,CORONERS SERVICE GENERAL,500.00
Rochdale,08/04/2014,CARDIFF UNIVERSITY,Public Bodies,CUSTOMERS & CORPORATE SERVICES,CORONERS SERVICE GENERAL,500.00
Rochdale,08/04/2014,CARDIFF UNIVERSITY,Public Bodies,CUSTOMERS & CORPORATE SERVICES,CORONERS SERVICE GENERAL,500.00
Rochdale,08/04/2014,CARDIFF UNIVERSITY,Public Bodies,CUSTOMERS & CORPORATE SERVICES,CORONERS SERVICE GENERAL,500.00
Rochdale,08/04/2014,CARDIFF UNIVERSITY,Public Bodies,CUSTOMERS & CORPORATE SERVICES,CORONERS SERVICE GENERAL,500.00
Rochdale,08/04/2014,CARDIFF UNIVERSITY,Public Bodies,CUSTOMERS & CORPORATE SERVICES,CORONERS SERVICE GENERAL,500.00
Rochdale,08/04/2014,CARDIFF UNIVERSITY,Public Bodies,CUSTOMERS & CORPORATE SERVICES,CORONERS SERVICE GENERAL,500.00
Rochdale,08/04/2014,CARDIFF UNIVERSITY,Public Bodies,CUSTOMERS & CORPORATE SERVICES,CORONERS SERVICE GENERAL,500.00
Rochdale,08/04/2014,CARDIFF UNIVERSITY,Public Bodies,CUSTOMERS & CORPORATE SERVICES,CORONERS SERVICE GENERAL,500.00
Rochdale,08/04/2014,CARDIFF UNIVERSITY,Public Bodies,CUSTOMERS & CORPORATE SERVICES,CORONERS SERVICE GENERAL,500.00
Rochdale,08/04/2014,CARDIFF UNIVERSITY,Public Bodies,CUSTOMERS & CORPORATE SERVICES,CORONERS SERVICE GENERAL,500.00
Rochdale,04/04/2014,CITY OF BRADFORD MET DISTRICT COUNCIL,Public Bodies,PROPERTY AND HIGHWAYS,ST LTG MISC XMAS ILLUMINA,"11,700.00"
Rochdale,08/04/2014,DISCLOSURE & BARRING SERVICE,Public Bodies,ECONOMY AND ENVIRONMENT,REG LIC  GENERAL,"1,628.00"
Rochdale,25/04/2014,HM REVENUES & CUSTOMS SHIPLEY,Public Bodies,PHYSICAL DIS & OLDER PEOPLE,ADULT CARE HEAD OF SERVICE,"10,650.00"
Rochdale,08/04/2014,LANCASHIRE COUNTY COUNCIL,Public Bodies,CHILDREN�S SOCIAL CARE,INTER AGENCY ADOPTION,"9,000.00"
Rochdale,10/04/2014,LANCASHIRE COUNTY COUNCIL,Public Bodies,PHYSICAL DIS & OLDER PEOPLE,OLDER PEOPLES AGENCY PROVISION,"1,927.80"
Rochdale,15/04/2014,LEVER PARK LEARNING TRUST,Public Bodies,EARLY HELP AND SCHOOLS,PRE 16 RDALE PUPILS IN OLA SPECIAL,"3,027.67"
Rochdale,09/04/2014,MANCHESTER CITY COUNCIL,Public Bodies,EARLY HELP AND SCHOOLS,SEN HOME 2 SCHOOL TRANSPORT,752.98
Rochdale,02/04/2014,MIDDLETON TECHNOLOGY SCHOOL FUND,Public Bodies,EARLY HELP AND SCHOOLS,CLC RUNNING COSTS 2011/12,"8,120.12"
Rochdale,23/04/2014,NEW COLLEGE WORCESTER,Public Bodies,EARLY HELP AND SCHOOLS,NON MAINTAINED POST 16,815.00
Rochdale,23/04/2014,OLDHAM METROPOLITAN BOROUGH COUNCIL,Public Bodies,EARLY HELP AND SCHOOLS,PRE 16 RDALE PUPILS  IN OLA MAINSTREAM,"2,021.00"
Rochdale,08/04/2014,ROCHDALE SIXTH FORM COLLEGE,Public Bodies,EARLY HELP AND SCHOOLS,POST 16 RDALE PUPILS IN COLLEGES/ISP,"16,032.97"
Rochdale,23/04/2014,SALFORD CITY COUNCIL,Public Bodies,EARLY HELP AND SCHOOLS,PRE 16 RDALE PUPILS IN OLA SPECIAL,"28,533.00"
Rochdale,22/04/2014,STOCKPORT METROPOLITAN BOROUGH COUNCIL,Public Bodies,CHILDREN�S SOCIAL CARE,EXTERNAL RESIDENTIAL PLACEMENTS,"11,184.77"
Rochdale,23/04/2014,STOCKPORT METROPOLITAN BOROUGH COUNCIL,Public Bodies,EARLY HELP AND SCHOOLS,PRE 16 RDALE PUPILS  IN OLA MAINSTREAM,923.00
Rochdale,02/04/2014,TAMESIDE METROPOLITAN BOROUGH COUNCIL,Public Bodies,FINANCE SERVICES,FRAUD TEAM,"2,477.00"
Rochdale,10/04/2014,THE ROYAL NATIONAL COLLEGE FOR THE BLIND,Public Bodies,EARLY HELP AND SCHOOLS,NON MAINTAINED POST 16,"10,317.66"
Rochdale,14/04/2014,WIGAN METROPOLITAN BOROUGH COUNCIL,Public Bodies,ECONOMY AND ENVIRONMENT,TRADING STANDARDS GENERAL,"6,071.00"
Rochdale,16/04/2014,WIGAN METROPOLITAN BOROUGH COUNCIL,Public Bodies,ECONOMY AND ENVIRONMENT,TRADING STANDARDS GENERAL,"6,071.00"
Rochdale,25/04/2014,CAR 2000 (HEYWOOD) LLP,Public Transport,ECONOMY AND ENVIRONMENT,EDUCATION HOME TO SCHOOL,"2,315.25"
Rochdale,25/04/2014,CAR 2000 (HEYWOOD) LLP,Public Transport,ECONOMY AND ENVIRONMENT,EDUCATION HOME TO SCHOOL,720.00
Rochdale,25/04/2014,CAR 2000 (HEYWOOD) LLP,Public Transport,ECONOMY AND ENVIRONMENT,EDUCATION HOME TO SCHOOL,588.00
Rochdale,25/04/2014,CAR 2000 (HEYWOOD) LLP,Public Transport,ECONOMY AND ENVIRONMENT,EDUCATION HOME TO SCHOOL,"1,696.00"
Rochdale,25/04/2014,CAR 2000 (HEYWOOD) LLP,Public Transport,ECONOMY AND ENVIRONMENT,EDUCATION HOME TO SCHOOL,777.00
Rochdale,25/04/2014,CAR 2000 (HEYWOOD) LLP,Public Transport,ECONOMY AND ENVIRONMENT,EDUCATION HOME TO SCHOOL,"1,302.00"
Rochdale,04/04/2014,CARLTON MINIBUSES,Public Transport,ECONOMY AND ENVIRONMENT,EDUCATION HOME TO SCHOOL,"4,368.00"
Rochdale,03/04/2014,COACH OPTIONS LIMITED,Public Transport,ECONOMY AND ENVIRONMENT,EDUCATION HOME TO SCHOOL,"1,800.00"
Rochdale,03/04/2014,COACH OPTIONS LIMITED,Public Transport,ECONOMY AND ENVIRONMENT,EDUCATION HOME TO SCHOOL,"2,210.00"
Rochdale,03/04/2014,COACH OPTIONS LIMITED,Public Transport,ECONOMY AND ENVIRONMENT,EDUCATION HOME TO SCHOOL,"1,496.00"
Rochdale,03/04/2014,CONNECT CARS (MIDDLETON) LIMITED,Public Transport,ECONOMY AND ENVIRONMENT,EDUCATION HOME TO SCHOOL,"1,082.00"
Rochdale,03/04/2014,CONNECT CARS (MIDDLETON) LIMITED,Public Transport,ECONOMY AND ENVIRONMENT,EDUCATION HOME TO SCHOOL,"1,028.50"
Rochdale,14/04/2014,CONNECT CARS (MIDDLETON) LIMITED,Public Transport,ECONOMY AND ENVIRONMENT,EDUCATION HOME TO SCHOOL,950.00
Rochdale,14/04/2014,CONNECT CARS (MIDDLETON) LIMITED,Public Transport,ECONOMY AND ENVIRONMENT,EDUCATION HOME TO SCHOOL,"1,001.50"
Rochdale,17/04/2014,COZY CARS,Public Transport,ECONOMY AND ENVIRONMENT,EDUCATION HOME TO SCHOOL,720.00
Rochdale,17/04/2014,COZY CARS,Public Transport,ECONOMY AND ENVIRONMENT,EDUCATION HOME TO SCHOOL,696.00
Rochdale,17/04/2014,COZY CARS,Public Transport,ECONOMY AND ENVIRONMENT,EDUCATION HOME TO SCHOOL,606.00
Rochdale,17/04/2014,COZY CARS,Public Transport,ECONOMY AND ENVIRONMENT,EDUCATION HOME TO SCHOOL,"1,280.00"
Rochdale,03/04/2014,DALE INDUSTRIAL SERVICES LIMITED,Public Transport,ECONOMY AND ENVIRONMENT,EDUCATION HOME TO SCHOOL,"16,128.00"
Rochdale,03/04/2014,DALE INDUSTRIAL SERVICES LIMITED,Public Transport,ECONOMY AND ENVIRONMENT,EDUCATION HOME TO SCHOOL,"7,362.00"
Rochdale,08/04/2014,EAST LANCASHIRE RAILWAY TRUST LTD,Public Transport,ECONOMY AND ENVIRONMENT,EAST LANCASHIRE RAILWAY,"12,000.00"
Rochdale,08/04/2014,EAST LANCASHIRE RAILWAY TRUST LTD,Public Transport,ECONOMY AND ENVIRONMENT,EAST LANCASHIRE RAILWAY,"1,590.75"
Rochdale,03/04/2014,J & S TRAVEL,Public Transport,ECONOMY AND ENVIRONMENT,EDUCATION HOME TO SCHOOL,915.00
Rochdale,10/04/2014,J & S TRAVEL,Public Transport,ECONOMY AND ENVIRONMENT,EDUCATION HOME TO SCHOOL,915.00
Rochdale,04/04/2014,LITTLEBOROUGH PRIVATE HIRE,Public Transport,ECONOMY AND ENVIRONMENT,EDUCATION HOME TO SCHOOL,"4,123.00"
Rochdale,04/04/2014,MILNROW CARS,Public Transport,ECONOMY AND ENVIRONMENT,EDUCATION HOME TO SCHOOL,655.00
Rochdale,25/04/2014,ROCHDALE COMMUNITY TRANSPORT,Public Transport,ECONOMY AND ENVIRONMENT,EDUCATION HOME TO SCHOOL,"1,785.00"
Rochdale,25/04/2014,ROCHDALE COMMUNITY TRANSPORT,Public Transport,ECONOMY AND ENVIRONMENT,EDUCATION HOME TO SCHOOL,"1,890.00"
Rochdale,25/04/2014,ROCHDALE COMMUNITY TRANSPORT,Public Transport,ECONOMY AND ENVIRONMENT,EDUCATION HOME TO SCHOOL,"1,890.00"
Rochdale,25/04/2014,ROCHDALE COMMUNITY TRANSPORT,Public Transport,ECONOMY AND ENVIRONMENT,EDUCATION HOME TO SCHOOL,"1,470.00"
Rochdale,25/04/2014,ROCHDALE COMMUNITY TRANSPORT,Public Transport,ECONOMY AND ENVIRONMENT,EDUCATION HOME TO SCHOOL,"1,050.00"
Rochdale,10/04/2014,ROYTON MINIBUSES LIMITED,Public Transport,ECONOMY AND ENVIRONMENT,EDUCATION HOME TO SCHOOL,"6,470.00"
Rochdale,10/04/2014,SAFE CARE SERVICES LIMITED,Public Transport,CHILDREN�S SOCIAL CARE,EXTERNAL RESIDENTIAL PLACEMENTS,840.00
Rochdale,17/04/2014,TOWN TAXI CLEARING LIMITED,Public Transport,ECONOMY AND ENVIRONMENT,EDUCATION HOME TO SCHOOL,564.60
Rochdale,07/04/2014,AD CHILDRENS  SOCIAL CARE SOLUTIONS LTD,Social Community Care Supplies & Services,CHILDREN�S SOCIAL CARE,MANAGEMENT STRUCTURE,"9,450.00"
Rochdale,07/04/2014,ASTOR-BANNERMAN (MEDICAL) LTD,Social Community Care Supplies & Services,EARLY HELP AND SCHOOLS,DOWLING STREET OCC THERAPY,850.15
Rochdale,01/04/2014,BANGLADESH ASSOCIATION AND COMMUNITY PROJECT,Social Community Care Supplies & Services,CUSTOMERS & CORPORATE SERVICES,BANGLADESH COMMUNITY PROJ,"8,375.00"
Rochdale,08/04/2014,BEECHKEYS CARE AND EDUCATION,Social Community Care Supplies & Services,EARLY HELP AND SCHOOLS,IND SCHOOLS  RESIDENTIAL,"10,427.00"
Rochdale,02/04/2014,BLACKBURN WITH DARWEN BC,Social Community Care Supplies & Services,EARLY HELP AND SCHOOLS,PRE 16 RDALE PUPILS  IN OLA MAINSTREAM,"6,085.00"
Rochdale,07/04/2014,BOLTON M B C,Social Community Care Supplies & Services,CUSTOMERS & CORPORATE SERVICES,INSURANCE,984.25
Rochdale,24/04/2014,BOLTON M B C,Social Community Care Supplies & Services,CUSTOMERS & CORPORATE SERVICES,INSURANCE,782.75
Rochdale,08/04/2014,BOLTON M B C,Social Community Care Supplies & Services,EARLY HELP AND SCHOOLS,SEN HOME 2 SCHOOL TRANSPORT,"1,232.55"
Rochdale,04/04/2014,BRAMBLETON LIMITED,Social Community Care Supplies & Services,PHYSICAL DIS & OLDER PEOPLE,OLDER PEOPLES AGENCY PROVISION,"10,129.50"
Rochdale,14/04/2014,BRAMBLETON LIMITED,Social Community Care Supplies & Services,PHYSICAL DIS & OLDER PEOPLE,OLDER PEOPLES AGENCY PROVISION,"10,557.42"
Rochdale,17/04/2014,BRAMBLETON LIMITED,Social Community Care Supplies & Services,PHYSICAL DIS & OLDER PEOPLE,OLDER PEOPLES AGENCY PROVISION,"11,137.19"
Rochdale,25/04/2014,BRAMBLETON LIMITED,Social Community Care Supplies & Services,PHYSICAL DIS & OLDER PEOPLE,OLDER PEOPLES AGENCY PROVISION,"10,761.03"
Rochdale,08/04/2014,BRITISH ASSOC FOR ADOPTION & FOSTERING,Social Community Care Supplies & Services,CHILDREN�S SOCIAL CARE,INDEPENDENT FOSTER CARE,"1,988.00"
Rochdale,17/04/2014,BUILDING BLOCKS DAY NURSERY NW LTD,Social Community Care Supplies & Services,EARLY HELP AND SCHOOLS,FREE NURSERY PLACES 2 YEAR OLDS,"11,226.60"
Rochdale,17/04/2014,BUILDING BLOCKS DAY NURSERY NW LTD,Social Community Care Supplies & Services,EARLY HELP AND SCHOOLS,NURSERY EDUCATION GRANT  3YR OLDS,"11,890.80"
Rochdale,25/04/2014,BUILDING BLOCKS DAY NURSERY NW LTD,Social Community Care Supplies & Services,EARLY HELP AND SCHOOLS,NURSERY EDUCATION GRANT  3YR OLDS,"1,000.00"
Rochdale,04/04/2014,CARE 4 U,Social Community Care Supplies & Services,PHYSICAL DIS & OLDER PEOPLE,OLDER PEOPLES AGENCY PROVISION,"9,232.85"
Rochdale,14/04/2014,CARE 4 U,Social Community Care Supplies & Services,PHYSICAL DIS & OLDER PEOPLE,OLDER PEOPLES AGENCY PROVISION,"9,072.07"
Rochdale,17/04/2014,CARE 4 U,Social Community Care Supplies & Services,PHYSICAL DIS & OLDER PEOPLE,OLDER PEOPLES AGENCY PROVISION,"9,097.85"
Rochdale,25/04/2014,CARE 4 U,Social Community Care Supplies & Services,PHYSICAL DIS & OLDER PEOPLE,OLDER PEOPLES AGENCY PROVISION,"9,019.49"
Rochdale,04/04/2014,CARE MONITORING 2000 LTD,Social Community Care Supplies & Services,LEARNING DIS & MENTAL HEALTH,ADULT CARE ADMIN,"5,000.00"
Rochdale,10/04/2014,CARE TODAY CHILDRENS SERVICES,Social Community Care Supplies & Services,CHILDREN�S SOCIAL CARE,EXTERNAL RESIDENTIAL PLACEMENTS,"12,377.99"
Rochdale,07/04/2014,CARERS FEDERATION,Social Community Care Supplies & Services,PHYSICAL DIS & OLDER PEOPLE,OLDER PEOPLES AGENCY PROVISION,"7,857.15"
Rochdale,04/04/2014,CAREWEST (NORTHERN) LIMITED,Social Community Care Supplies & Services,PHYSICAL DIS & OLDER PEOPLE,OLDER PEOPLES AGENCY PROVISION,"6,022.81"
Rochdale,07/04/2014,CAREWEST (NORTHERN) LIMITED,Social Community Care Supplies & Services,PHYSICAL DIS & OLDER PEOPLE,OLDER PEOPLES AGENCY PROVISION,"36,426.84"
Rochdale,14/04/2014,CAREWEST (NORTHERN) LIMITED,Social Community Care Supplies & Services,PHYSICAL DIS & OLDER PEOPLE,OLDER PEOPLES AGENCY PROVISION,"6,449.72"
Rochdale,17/04/2014,CAREWEST (NORTHERN) LIMITED,Social Community Care Supplies & Services,PHYSICAL DIS & OLDER PEOPLE,OLDER PEOPLES AGENCY PROVISION,"6,903.02"
Rochdale,25/04/2014,CAREWEST (NORTHERN) LIMITED,Social Community Care Supplies & Services,PHYSICAL DIS & OLDER PEOPLE,OLDER PEOPLES AGENCY PROVISION,"36,426.84"
Rochdale,25/04/2014,CAREWEST (NORTHERN) LIMITED,Social Community Care Supplies & Services,PHYSICAL DIS & OLDER PEOPLE,OLDER PEOPLES AGENCY PROVISION,"5,989.31"
Rochdale,04/04/2014,CASTLEROCK CARE SERVICES LIMITED,Social Community Care Supplies & Services,PHYSICAL DIS & OLDER PEOPLE,OLDER PEOPLES AGENCY PROVISION,"3,856.59"
Rochdale,14/04/2014,CASTLEROCK CARE SERVICES LIMITED,Social Community Care Supplies & Services,PHYSICAL DIS & OLDER PEOPLE,OLDER PEOPLES AGENCY PROVISION,"3,529.97"
Rochdale,17/04/2014,CASTLEROCK CARE SERVICES LIMITED,Social Community Care Supplies & Services,PHYSICAL DIS & OLDER PEOPLE,OLDER PEOPLES AGENCY PROVISION,"3,503.98"
Rochdale,25/04/2014,CASTLEROCK CARE SERVICES LIMITED,Social Community Care Supplies & Services,PHYSICAL DIS & OLDER PEOPLE,OLDER PEOPLES AGENCY PROVISION,"3,353.36"
Rochdale,17/04/2014,CASTLETON COMMUNITY PLAYGROUP,Social Community Care Supplies & Services,EARLY HELP AND SCHOOLS,FREE NURSERY PLACES 2 YEAR OLDS,"3,742.20"
Rochdale,17/04/2014,CASTLETON COMMUNITY PLAYGROUP,Social Community Care Supplies & Services,EARLY HELP AND SCHOOLS,NURSERY EDUCATION GRANT  3YR OLDS,"6,568.78"
Rochdale,25/04/2014,CASTLETON COMMUNITY PLAYGROUP,Social Community Care Supplies & Services,EARLY HELP AND SCHOOLS,NURSERY EDUCATION GRANT  3YR OLDS,"1,000.00"
Rochdale,07/04/2014,CATHOLIC CHILDRENS RESCUE SOCIETY,Social Community Care Supplies & Services,EARLY HELP AND SCHOOLS,DISABILITIES RESPITE CARE,"2,597.75"
Rochdale,01/04/2014,CLEWORTH CHILDRENS ACTIVITY CENTRE,Social Community Care Supplies & Services,CUSTOMERS & CORPORATE SERVICES,CLEWORTH CHILDRENS ACTIVITY CENTRE,"5,800.00"
Rochdale,17/04/2014,CLOVERLEAF CHILDCARE,Social Community Care Supplies & Services,EARLY HELP AND SCHOOLS,FREE NURSERY PLACES 2 YEAR OLDS,"4,276.80"
Rochdale,23/04/2014,CLOVERLEAF CHILDCARE,Social Community Care Supplies & Services,EARLY HELP AND SCHOOLS,FREE NURSERY PLACES 2 YEAR OLDS,"4,811.40"
Rochdale,17/04/2014,CLOVERLEAF CHILDCARE,Social Community Care Supplies & Services,EARLY HELP AND SCHOOLS,NURSERY EDUCATION GRANT  3YR OLDS,"7,305.12"
Rochdale,25/04/2014,CLOVERLEAF CHILDCARE,Social Community Care Supplies & Services,EARLY HELP AND SCHOOLS,NURSERY EDUCATION GRANT  3YR OLDS,"1,000.00"
Rochdale,04/04/2014,COMMUNITY CARE LINE SERVICES,Social Community Care Supplies & Services,PHYSICAL DIS & OLDER PEOPLE,OLDER PEOPLES AGENCY PROVISION,"2,863.52"
Rochdale,14/04/2014,COMMUNITY CARE LINE SERVICES,Social Community Care Supplies & Services,PHYSICAL DIS & OLDER PEOPLE,OLDER PEOPLES AGENCY PROVISION,"2,797.95"
Rochdale,17/04/2014,COMMUNITY CARE LINE SERVICES,Social Community Care Supplies & Services,PHYSICAL DIS & OLDER PEOPLE,OLDER PEOPLES AGENCY PROVISION,"2,682.24"
Rochdale,25/04/2014,COMMUNITY CARE LINE SERVICES,Social Community Care Supplies & Services,PHYSICAL DIS & OLDER PEOPLE,OLDER PEOPLES AGENCY PROVISION,"2,703.55"
Rochdale,17/04/2014,COSY TOES CHILDCARE LIMITED,Social Community Care Supplies & Services,EARLY HELP AND SCHOOLS,FREE NURSERY PLACES 2 YEAR OLDS,"3,207.60"
Rochdale,17/04/2014,COSY TOES CHILDCARE LIMITED,Social Community Care Supplies & Services,EARLY HELP AND SCHOOLS,FREE NURSERY PLACES 2 YEAR OLDS,"2,138.40"
Rochdale,17/04/2014,COSY TOES CHILDCARE LIMITED,Social Community Care Supplies & Services,EARLY HELP AND SCHOOLS,FREE NURSERY PLACES 2 YEAR OLDS,"4,276.80"
Rochdale,17/04/2014,COSY TOES CHILDCARE LIMITED,Social Community Care Supplies & Services,EARLY HELP AND SCHOOLS,NURSERY EDUCATION GRANT  3YR OLDS,"8,210.16"
Rochdale,25/04/2014,COSY TOES CHILDCARE LIMITED,Social Community Care Supplies & Services,EARLY HELP AND SCHOOLS,NURSERY EDUCATION GRANT  3YR OLDS,"1,000.00"
Rochdale,25/04/2014,COSY TOES CHILDCARE LIMITED,Social Community Care Supplies & Services,EARLY HELP AND SCHOOLS,NURSERY EDUCATION GRANT  3YR OLDS,"1,000.00"
Rochdale,17/04/2014,COSY TOES CHILDCARE LIMITED,Social Community Care Supplies & Services,EARLY HELP AND SCHOOLS,NURSERY EDUCATION GRANT  3YR OLDS,"9,491.12"
Rochdale,25/04/2014,COSY TOES CHILDCARE LIMITED,Social Community Care Supplies & Services,EARLY HELP AND SCHOOLS,NURSERY EDUCATION GRANT  3YR OLDS,"1,000.00"
Rochdale,02/04/2014,COSY TOES CHILDCARE LIMITED,Social Community Care Supplies & Services,EARLY HELP AND SCHOOLS,WOODLAND CHILDRENS CENTRE,575.00
Rochdale,17/04/2014,COTS AND TOTS,Social Community Care Supplies & Services,EARLY HELP AND SCHOOLS,NURSERY EDUCATION GRANT  3YR OLDS,"9,539.64"
Rochdale,25/04/2014,COTS AND TOTS,Social Community Care Supplies & Services,EARLY HELP AND SCHOOLS,NURSERY EDUCATION GRANT  3YR OLDS,"1,000.00"
Rochdale,17/04/2014,CRECHE N CO LIMITED,Social Community Care Supplies & Services,EARLY HELP AND SCHOOLS,FREE NURSERY PLACES 2 YEAR OLDS,"4,811.40"
Rochdale,17/04/2014,CRECHE N CO LIMITED,Social Community Care Supplies & Services,EARLY HELP AND SCHOOLS,NURSERY EDUCATION GRANT  3YR OLDS,"9,910.66"
Rochdale,25/04/2014,CRECHE N CO LIMITED,Social Community Care Supplies & Services,EARLY HELP AND SCHOOLS,NURSERY EDUCATION GRANT  3YR OLDS,"1,000.00"
Rochdale,17/04/2014,CRESCENT DAY NURSERY,Social Community Care Supplies & Services,EARLY HELP AND SCHOOLS,FREE NURSERY PLACES 2 YEAR OLDS,"5,880.60"
Rochdale,17/04/2014,CRESCENT DAY NURSERY,Social Community Care Supplies & Services,EARLY HELP AND SCHOOLS,NURSERY EDUCATION GRANT  3YR OLDS,"4,193.64"
Rochdale,25/04/2014,CRESCENT DAY NURSERY,Social Community Care Supplies & Services,EARLY HELP AND SCHOOLS,NURSERY EDUCATION GRANT  3YR OLDS,"1,000.00"
Rochdale,23/04/2014,CROSSROADS CARE IN GREATER MANCHESTER,Social Community Care Supplies & Services,EARLY HELP AND SCHOOLS,CROSSROADS,580.50
Rochdale,23/04/2014,CROSSROADS CARE IN GREATER MANCHESTER,Social Community Care Supplies & Services,EARLY HELP AND SCHOOLS,CROSSROADS,"2,676.38"
Rochdale,02/04/2014,CROSSROADS CARE IN GREATER MANCHESTER,Social Community Care Supplies & Services,LEARNING DIS & MENTAL HEALTH,LD FORUM - PERSONAL BUDGETS,502.43
Rochdale,02/04/2014,CROSSROADS CARE IN GREATER MANCHESTER,Social Community Care Supplies & Services,LEARNING DIS & MENTAL HEALTH,LD FORUM - PERSONAL BUDGETS,"1,711.29"
Rochdale,04/04/2014,CROSSROADS CARE IN GREATER MANCHESTER,Social Community Care Supplies & Services,PHYSICAL DIS & OLDER PEOPLE,OLDER PEOPLES AGENCY PROVISION,"1,691.19"
Rochdale,07/04/2014,CROSSROADS CARE IN GREATER MANCHESTER,Social Community Care Supplies & Services,PHYSICAL DIS & OLDER PEOPLE,OLDER PEOPLES AGENCY PROVISION,"6,589.38"
Rochdale,07/04/2014,CROSSROADS CARE IN GREATER MANCHESTER,Social Community Care Supplies & Services,PHYSICAL DIS & OLDER PEOPLE,OLDER PEOPLES AGENCY PROVISION,"6,717.27"
Rochdale,07/04/2014,CROSSROADS CARE IN GREATER MANCHESTER,Social Community Care Supplies & Services,PHYSICAL DIS & OLDER PEOPLE,OLDER PEOPLES AGENCY PROVISION,"6,796.44"
Rochdale,07/04/2014,CROSSROADS CARE IN GREATER MANCHESTER,Social Community Care Supplies & Services,PHYSICAL DIS & OLDER PEOPLE,OLDER PEOPLES AGENCY PROVISION,"6,016.92"
Rochdale,14/04/2014,CROSSROADS CARE IN GREATER MANCHESTER,Social Community Care Supplies & Services,PHYSICAL DIS & OLDER PEOPLE,OLDER PEOPLES AGENCY PROVISION,"2,500.00"
Rochdale,14/04/2014,CROSSROADS CARE IN GREATER MANCHESTER,Social Community Care Supplies & Services,PHYSICAL DIS & OLDER PEOPLE,OLDER PEOPLES AGENCY PROVISION,"2,500.00"
Rochdale,14/04/2014,CROSSROADS CARE IN GREATER MANCHESTER,Social Community Care Supplies & Services,PHYSICAL DIS & OLDER PEOPLE,OLDER PEOPLES AGENCY PROVISION,"2,500.00"
Rochdale,14/04/2014,CROSSROADS CARE IN GREATER MANCHESTER,Social Community Care Supplies & Services,PHYSICAL DIS & OLDER PEOPLE,OLDER PEOPLES AGENCY PROVISION,"2,500.00"
Rochdale,14/04/2014,CROSSROADS CARE IN GREATER MANCHESTER,Social Community Care Supplies & Services,PHYSICAL DIS & OLDER PEOPLE,OLDER PEOPLES AGENCY PROVISION,"1,613.85"
Rochdale,17/04/2014,CROSSROADS CARE IN GREATER MANCHESTER,Social Community Care Supplies & Services,PHYSICAL DIS & OLDER PEOPLE,OLDER PEOPLES AGENCY PROVISION,"1,579.14"
Rochdale,25/04/2014,CROSSROADS CARE IN GREATER MANCHESTER,Social Community Care Supplies & Services,PHYSICAL DIS & OLDER PEOPLE,OLDER PEOPLES AGENCY PROVISION,"1,500.98"
Rochdale,07/04/2014,CROSSROADS CARE IN GREATER MANCHESTER,Social Community Care Supplies & Services,PHYSICAL DIS & OLDER PEOPLE,OPERATIONAL MANAGER 1 H & C,645.26
Rochdale,04/04/2014,DIRECT HEALTH HOMECARE LIMITED,Social Community Care Supplies & Services,PHYSICAL DIS & OLDER PEOPLE,OLDER PEOPLES AGENCY PROVISION,"5,173.05"
Rochdale,14/04/2014,DIRECT HEALTH HOMECARE LIMITED,Social Community Care Supplies & Services,PHYSICAL DIS & OLDER PEOPLE,OLDER PEOPLES AGENCY PROVISION,"4,832.82"
Rochdale,17/04/2014,DIRECT HEALTH HOMECARE LIMITED,Social Community Care Supplies & Services,PHYSICAL DIS & OLDER PEOPLE,OLDER PEOPLES AGENCY PROVISION,"5,368.94"
Rochdale,25/04/2014,DIRECT HEALTH HOMECARE LIMITED,Social Community Care Supplies & Services,PHYSICAL DIS & OLDER PEOPLE,OLDER PEOPLES AGENCY PROVISION,"5,147.67"
Rochdale,01/04/2014,EARLY BREAK,Social Community Care Supplies & Services,CUSTOMERS & CORPORATE SERVICES,DRUGS & ALCOHOL - SPECIALIST D&A SRVC,"99,850.00"
Rochdale,04/04/2014,EDEN CARE (NORTH WEST) LTD,Social Community Care Supplies & Services,EARLY HELP AND SCHOOLS,DISABILITIES RESPITE CARE,660.00
Rochdale,04/04/2014,EDEN CARE (NORTH WEST) LTD,Social Community Care Supplies & Services,EARLY HELP AND SCHOOLS,DISABILITIES RESPITE CARE,535.00
Rochdale,04/04/2014,EDEN CARE (NORTH WEST) LTD,Social Community Care Supplies & Services,EARLY HELP AND SCHOOLS,DISABILITIES RESPITE CARE,675.00
Rochdale,08/04/2014,EDEN CARE (NORTH WEST) LTD,Social Community Care Supplies & Services,EARLY HELP AND SCHOOLS,DISABILITIES RESPITE CARE,750.00
Rochdale,08/04/2014,EDEN CARE (NORTH WEST) LTD,Social Community Care Supplies & Services,EARLY HELP AND SCHOOLS,DISABILITIES RESPITE CARE,562.50
Rochdale,08/04/2014,EDEN CARE (NORTH WEST) LTD,Social Community Care Supplies & Services,EARLY HELP AND SCHOOLS,HOLLINGWORTH HIGH SUPPLY CHARGES,630.00
Rochdale,17/04/2014,EDEN CARE (NORTH WEST) LTD,Social Community Care Supplies & Services,LEARNING DIS & MENTAL HEALTH,LD FORUM - PERSONAL BUDGETS,"1,380.00"
Rochdale,17/04/2014,EDEN CARE (NORTH WEST) LTD,Social Community Care Supplies & Services,LEARNING DIS & MENTAL HEALTH,LD FORUM - PERSONAL BUDGETS,"1,198.00"
Rochdale,23/04/2014,EDEN CARE (NORTH WEST) LTD,Social Community Care Supplies & Services,LEARNING DIS & MENTAL HEALTH,LD FORUM - PERSONAL BUDGETS,750.00
Rochdale,23/04/2014,EDEN CARE (NORTH WEST) LTD,Social Community Care Supplies & Services,EARLY HELP AND SCHOOLS,PRE 16 RDALE PUPILS IN OLA SPECIAL,630.00
Rochdale,23/04/2014,EDEN CARE (NORTH WEST) LTD,Social Community Care Supplies & Services,EARLY HELP AND SCHOOLS,PRE 16 RDALE PUPILS IN OLA SPECIAL,630.00
Rochdale,08/04/2014,EDEN CARE (NORTH WEST) LTD,Social Community Care Supplies & Services,EARLY HELP AND SCHOOLS,SHORT BREAKS REVENUE,630.00
Rochdale,17/04/2014,EDU PLAY LIMITED,Social Community Care Supplies & Services,EARLY HELP AND SCHOOLS,FREE NURSERY PLACES 2 YEAR OLDS,534.60
Rochdale,17/04/2014,EDU PLAY LIMITED,Social Community Care Supplies & Services,EARLY HELP AND SCHOOLS,NURSERY EDUCATION GRANT  3YR OLDS,"14,585.40"
Rochdale,25/04/2014,EDU PLAY LIMITED,Social Community Care Supplies & Services,EARLY HELP AND SCHOOLS,NURSERY EDUCATION GRANT  3YR OLDS,"1,000.00"
Rochdale,17/04/2014,FIELDHOUSE PRESCHOOL,Social Community Care Supplies & Services,EARLY HELP AND SCHOOLS,FREE NURSERY PLACES 2 YEAR OLDS,"5,880.60"
Rochdale,25/04/2014,FIELDHOUSE PRESCHOOL,Social Community Care Supplies & Services,EARLY HELP AND SCHOOLS,NURSERY EDUCATION GRANT  3YR OLDS,"1,000.00"
Rochdale,25/04/2014,FIELDHOUSE PRESCHOOL,Social Community Care Supplies & Services,EARLY HELP AND SCHOOLS,NURSERY EDUCATION GRANT  3YR OLDS,"3,110.40"
Rochdale,17/04/2014,FISHERFIELD FARM NURSERY,Social Community Care Supplies & Services,EARLY HELP AND SCHOOLS,NURSERY EDUCATION GRANT  3YR OLDS,"11,457.50"
Rochdale,25/04/2014,FISHERFIELD FARM NURSERY,Social Community Care Supplies & Services,EARLY HELP AND SCHOOLS,NURSERY EDUCATION GRANT  3YR OLDS,"1,000.00"
Rochdale,10/04/2014,FOOTSTEPS A PATH TO CHANGE,Social Community Care Supplies & Services,CHILDREN�S SOCIAL CARE,EXTERNAL RESIDENTIAL PLACEMENTS,"15,500.00"
Rochdale,25/04/2014,FRIENDS OF OLDER PARENT CARERS,Social Community Care Supplies & Services,LEARNING DIS & MENTAL HEALTH,CARERS COMMISSIONED SERVICES,"3,743.16"
Rochdale,25/04/2014,G & S SMIRTHWAITE LIMITED,Social Community Care Supplies & Services,EARLY HELP AND SCHOOLS,DOWLING STREET OCC THERAPY,721.00
Rochdale,04/04/2014,GREAT CARE UK,Social Community Care Supplies & Services,PHYSICAL DIS & OLDER PEOPLE,OLDER PEOPLES AGENCY PROVISION,"2,377.33"
Rochdale,14/04/2014,GREAT CARE UK,Social Community Care Supplies & Services,PHYSICAL DIS & OLDER PEOPLE,OLDER PEOPLES AGENCY PROVISION,"2,304.86"
Rochdale,17/04/2014,GREAT CARE UK,Social Community Care Supplies & Services,PHYSICAL DIS & OLDER PEOPLE,OLDER PEOPLES AGENCY PROVISION,"2,384.64"
Rochdale,25/04/2014,GREAT CARE UK,Social Community Care Supplies & Services,PHYSICAL DIS & OLDER PEOPLE,OLDER PEOPLES AGENCY PROVISION,"2,250.86"
Rochdale,04/04/2014,HEALEY CARE LTD,Social Community Care Supplies & Services,EARLY HELP AND SCHOOLS,DISABILITIES RESPITE CARE,"2,510.00"
Rochdale,04/04/2014,HEALEY CARE LTD,Social Community Care Supplies & Services,EARLY HELP AND SCHOOLS,DISABILITIES RESPITE CARE,"2,510.00"
Rochdale,17/04/2014,HEALEY CARE LTD,Social Community Care Supplies & Services,LEARNING DIS & MENTAL HEALTH,LD FORUM - PERSONAL BUDGETS,"4,495.00"
Rochdale,01/04/2014,HIGH LEVEL (NORTHERN) TRUST,Social Community Care Supplies & Services,CUSTOMERS & CORPORATE SERVICES,DRUGS & ALCOHOL - SPECIALIST D&A SRVC,"92,500.00"
Rochdale,04/04/2014,HOMECARE SUPPORT,Social Community Care Supplies & Services,PHYSICAL DIS & OLDER PEOPLE,OLDER PEOPLES AGENCY PROVISION,"5,915.42"
Rochdale,14/04/2014,HOMECARE SUPPORT,Social Community Care Supplies & Services,PHYSICAL DIS & OLDER PEOPLE,OLDER PEOPLES AGENCY PROVISION,"5,749.16"
Rochdale,17/04/2014,HOMECARE SUPPORT,Social Community Care Supplies & Services,PHYSICAL DIS & OLDER PEOPLE,OLDER PEOPLES AGENCY PROVISION,"5,224.61"
Rochdale,25/04/2014,HOMECARE SUPPORT,Social Community Care Supplies & Services,PHYSICAL DIS & OLDER PEOPLE,OLDER PEOPLES AGENCY PROVISION,"4,949.34"
Rochdale,07/04/2014,INDEPENDENT HOME CARE SERVICES,Social Community Care Supplies & Services,PHYSICAL DIS & OLDER PEOPLE,CENTRAL FORUM PHYS DIS,"1,365.28"
Rochdale,07/04/2014,INDEPENDENT HOME CARE SERVICES,Social Community Care Supplies & Services,PHYSICAL DIS & OLDER PEOPLE,CENTRAL FORUM PHYS DIS,"1,353.10"
Rochdale,14/04/2014,INDEPENDENT HOME CARE SERVICES,Social Community Care Supplies & Services,PHYSICAL DIS & OLDER PEOPLE,CENTRAL FORUM PHYS DIS,"1,365.28"
Rochdale,04/04/2014,INDEPENDENT HOME CARE SERVICES,Social Community Care Supplies & Services,PHYSICAL DIS & OLDER PEOPLE,OLDER PEOPLES AGENCY PROVISION,"1,576.30"
Rochdale,14/04/2014,INDEPENDENT HOME CARE SERVICES,Social Community Care Supplies & Services,PHYSICAL DIS & OLDER PEOPLE,OLDER PEOPLES AGENCY PROVISION,"1,597.00"
Rochdale,17/04/2014,INDEPENDENT HOME CARE SERVICES,Social Community Care Supplies & Services,PHYSICAL DIS & OLDER PEOPLE,OLDER PEOPLES AGENCY PROVISION,"1,623.39"
Rochdale,25/04/2014,INDEPENDENT HOME CARE SERVICES,Social Community Care Supplies & Services,PHYSICAL DIS & OLDER PEOPLE,OLDER PEOPLES AGENCY PROVISION,"1,733.62"
Rochdale,15/04/2014,INTACT PROJECTS LTD,Social Community Care Supplies & Services,CHILDREN�S SOCIAL CARE,YOUNG PEOPLES SUPPORT TEAM,585.00
Rochdale,01/04/2014,KASHMIR YOUTH PROJECT,Social Community Care Supplies & Services,CUSTOMERS & CORPORATE SERVICES,KASHMIR YOUTH PROJECT,"4,200.00"
Rochdale,24/04/2014,KASHMIR YOUTH PROJECT,Social Community Care Supplies & Services,ECONOMY AND ENVIRONMENT,RETROFIT,"4,147.23"
Rochdale,10/04/2014,KEYS CHILDCARE,Social Community Care Supplies & Services,CHILDREN�S SOCIAL CARE,EXTERNAL RESIDENTIAL PLACEMENTS,"15,500.00"
Rochdale,22/04/2014,KYP APNA GHAR ELDERS CENTRE,Social Community Care Supplies & Services,PHYSICAL DIS & OLDER PEOPLE,OLDER PEOPLES AGENCY PROVISION,"2,430.00"
Rochdale,17/04/2014,LEYTON HEALTHCARE GROUP LIMITED,Social Community Care Supplies & Services,LEARNING DIS & MENTAL HEALTH,LD FORUM - PERSONAL BUDGETS,640.00
Rochdale,10/04/2014,LIFETIME OPPORTUNITIES,Social Community Care Supplies & Services,CHILDREN�S SOCIAL CARE,EXTERNAL RESIDENTIAL PLACEMENTS,"12,400.00"
Rochdale,17/04/2014,LITTLE GEMS PDN,Social Community Care Supplies & Services,EARLY HELP AND SCHOOLS,FREE NURSERY PLACES 2 YEAR OLDS,"7,484.40"
Rochdale,15/04/2014,LITTLE GEMS PDN,Social Community Care Supplies & Services,EARLY HELP AND SCHOOLS,GRADUATE LEADER FUND,"1,000.00"
Rochdale,17/04/2014,LITTLE GEMS PDN,Social Community Care Supplies & Services,EARLY HELP AND SCHOOLS,NURSERY EDUCATION GRANT  3YR OLDS,"6,220.80"
Rochdale,25/04/2014,LITTLE GEMS PDN,Social Community Care Supplies & Services,EARLY HELP AND SCHOOLS,NURSERY EDUCATION GRANT  3YR OLDS,"1,000.00"
Rochdale,01/04/2014,MAKING SPACE,Social Community Care Supplies & Services,LEARNING DIS & MENTAL HEALTH,CARERS COMMISSIONED SERVICES,"16,366.00"
Rochdale,10/04/2014,NEW HORIZONS (STOCKPORT) LIMITED,Social Community Care Supplies & Services,CHILDREN�S SOCIAL CARE,EXTERNAL RESIDENTIAL PLACEMENTS,"8,200.00"
Rochdale,23/04/2014,NEW HORIZONS (STOCKPORT) LIMITED,Social Community Care Supplies & Services,CHILDREN�S SOCIAL CARE,EXTERNAL RESIDENTIAL PLACEMENTS,"8,200.00"
Rochdale,04/04/2014,NEWBARN LTD,Social Community Care Supplies & Services,LEARNING DIS & MENTAL HEALTH,GENERAL,"1,543.76"
Rochdale,04/04/2014,NEWBARN LTD,Social Community Care Supplies & Services,LEARNING DIS & MENTAL HEALTH,GENERAL,520.00
Rochdale,04/04/2014,NEWBARN LTD,Social Community Care Supplies & Services,LEARNING DIS & MENTAL HEALTH,GENERAL,518.14
Rochdale,04/04/2014,NEWBARN LTD,Social Community Care Supplies & Services,LEARNING DIS & MENTAL HEALTH,GENERAL,"1,709.16"
Rochdale,04/04/2014,NEWBARN LTD,Social Community Care Supplies & Services,LEARNING DIS & MENTAL HEALTH,GENERAL,575.71
Rochdale,23/04/2014,NEWBARN LTD,Social Community Care Supplies & Services,LEARNING DIS & MENTAL HEALTH,GENERAL,575.71
Rochdale,23/04/2014,NEWBARN LTD,Social Community Care Supplies & Services,LEARNING DIS & MENTAL HEALTH,GENERAL,"1,318.57"
Rochdale,17/04/2014,NEWBOLD COMMUNITY PLAYGROUP,Social Community Care Supplies & Services,EARLY HELP AND SCHOOLS,FREE NURSERY PLACES 2 YEAR OLDS,"1,603.80"
Rochdale,17/04/2014,NEWBOLD COMMUNITY PLAYGROUP,Social Community Care Supplies & Services,EARLY HELP AND SCHOOLS,NURSERY EDUCATION GRANT  3YR OLDS,"4,123.22"
Rochdale,25/04/2014,NEWBOLD COMMUNITY PLAYGROUP,Social Community Care Supplies & Services,EARLY HELP AND SCHOOLS,NURSERY EDUCATION GRANT  3YR OLDS,"1,000.00"
Rochdale,03/04/2014,NOMS AGENCY,Social Community Care Supplies & Services,CUSTOMERS & CORPORATE SERVICES,DRUGS & ALCOHOL - SPECIALIST D&A SRVC,"3,042.00"
Rochdale,10/04/2014,NORTHERNCARE,Social Community Care Supplies & Services,CHILDREN�S SOCIAL CARE,EXTERNAL RESIDENTIAL PLACEMENTS,"15,190.00"
Rochdale,10/04/2014,NORTHERNCARE,Social Community Care Supplies & Services,CHILDREN�S SOCIAL CARE,EXTERNAL RESIDENTIAL PLACEMENTS,"11,049.29"
Rochdale,10/04/2014,NORTHERNCARE,Social Community Care Supplies & Services,CHILDREN�S SOCIAL CARE,EXTERNAL RESIDENTIAL PLACEMENTS,"13,500.00"
Rochdale,23/04/2014,NUGENT CARE,Social Community Care Supplies & Services,CHILDREN�S SOCIAL CARE,EXTERNAL RESIDENTIAL PLACEMENTS,"67,140.95"
Rochdale,23/04/2014,NUGENT CARE,Social Community Care Supplies & Services,EARLY HELP AND SCHOOLS,IND SCHOOLS  RESIDENTIAL,"26,666.66"
Rochdale,24/04/2014,PENNINE CARE NHS TRUST,Social Community Care Supplies & Services,CHILDREN�S SOCIAL CARE,CAMHS GRANT,"6,102.00"
Rochdale,16/04/2014,PENNINE CARE NHS TRUST,Social Community Care Supplies & Services,EARLY HELP AND SCHOOLS,CASTLETON LANGUAGE UNIT,"7,362.00"
Rochdale,22/04/2014,PENNINE CARE NHS TRUST,Social Community Care Supplies & Services,LEARNING DIS & MENTAL HEALTH,CMHT ROCHDALE,"9,250.00"
Rochdale,22/04/2014,PENNINE CARE NHS TRUST,Social Community Care Supplies & Services,LEARNING DIS & MENTAL HEALTH,CMHT ROCHDALE,"9,250.00"
Rochdale,01/04/2014,PENNINE CARE NHS TRUST,Social Community Care Supplies & Services,CUSTOMERS & CORPORATE SERVICES,DRUGS & ALCOHOL - SPECIALIST D&A SRVC,"160,051.00"
Rochdale,16/04/2014,PENNINE CARE NHS TRUST,Social Community Care Supplies & Services,EARLY HELP AND SCHOOLS,ICAN,"15,653.00"
Rochdale,08/04/2014,PENNINE CARE NHS TRUST,Social Community Care Supplies & Services,PUBLIC HEALTH,PUBLIC HEALTH COMMISSIONING,"19,591.61"
Rochdale,04/04/2014,PENNINE CARE NHS TRUST,Social Community Care Supplies & Services,EARLY HELP AND SCHOOLS,SEN EARLY YEARS,"13,086.32"
Rochdale,10/04/2014,PENNINE CARE NHS TRUST,Social Community Care Supplies & Services,PUBLIC HEALTH,SEXUAL HEALTH SERVICES,"216,020.00"
Rochdale,16/04/2014,PHONAK GROUP LIMITED,Social Community Care Supplies & Services,EARLY HELP AND SCHOOLS,HEARING IMPAIRED SUPPORT,697.00
Rochdale,02/04/2014,POSSABILITIES CIC TRADING,Social Community Care Supplies & Services,LEARNING DIS & MENTAL HEALTH,SOCIAL ENTERPRISE CONTRACTS,"265,020.00"
Rochdale,04/04/2014,PREMIER CARE,Social Community Care Supplies & Services,PHYSICAL DIS & OLDER PEOPLE,OLDER PEOPLES AGENCY PROVISION,"7,055.06"
Rochdale,14/04/2014,PREMIER CARE,Social Community Care Supplies & Services,PHYSICAL DIS & OLDER PEOPLE,OLDER PEOPLES AGENCY PROVISION,"6,713.62"
Rochdale,17/04/2014,PREMIER CARE,Social Community Care Supplies & Services,PHYSICAL DIS & OLDER PEOPLE,OLDER PEOPLES AGENCY PROVISION,"6,442.21"
Rochdale,25/04/2014,PREMIER CARE,Social Community Care Supplies & Services,PHYSICAL DIS & OLDER PEOPLE,OLDER PEOPLES AGENCY PROVISION,"4,128.21"
Rochdale,02/04/2014,PRESTIGE NURSING & CARE,Social Community Care Supplies & Services,PHYSICAL DIS & OLDER PEOPLE,NHS DELAYED TRANSFER,989.17
Rochdale,17/04/2014,PRESTIGE NURSING & CARE,Social Community Care Supplies & Services,PHYSICAL DIS & OLDER PEOPLE,NHS DELAYED TRANSFER,965.98
Rochdale,03/04/2014,PRIESTLEYS & SMITHIES (ROCHDALE) LIMITED,Social Community Care Supplies & Services,PHYSICAL DIS & OLDER PEOPLE,POOLED ICES,"1,485.95"
Rochdale,02/04/2014,PRISM UK MEDICAL LIMITED,Social Community Care Supplies & Services,LEARNING DIS & MENTAL HEALTH,DAY SERVICES MANAGEMENT/ADMIN,"1,941.97"
Rochdale,02/04/2014,PRISM UK MEDICAL LIMITED,Social Community Care Supplies & Services,LEARNING DIS & MENTAL HEALTH,DAY SERVICES MANAGEMENT/ADMIN,"3,331.38"
Rochdale,02/04/2014,PRISM UK MEDICAL LIMITED,Social Community Care Supplies & Services,PHYSICAL DIS & OLDER PEOPLE,POOLED ICES,"2,687.86"
Rochdale,08/04/2014,PRISM UK MEDICAL LIMITED,Social Community Care Supplies & Services,PHYSICAL DIS & OLDER PEOPLE,POOLED ICES,"3,900.77"
Rochdale,08/04/2014,PRISM UK MEDICAL LIMITED,Social Community Care Supplies & Services,PHYSICAL DIS & OLDER PEOPLE,POOLED ICES,"2,423.12"
Rochdale,09/04/2014,PRISM UK MEDICAL LIMITED,Social Community Care Supplies & Services,PHYSICAL DIS & OLDER PEOPLE,POOLED ICES,"3,375.00"
Rochdale,10/04/2014,REDACTED-PERSONAL DATA,Social Community Care Supplies & Services,CHILDREN�S SOCIAL CARE,EXTERNAL RESIDENTIAL PLACEMENTS,"10,943.00"
Rochdale,23/04/2014,RESPITE NORTH WEST LIMITED,Social Community Care Supplies & Services,PHYSICAL DIS & OLDER PEOPLE,CENTRAL FORUM PHYS DIS,"1,698.95"
Rochdale,08/04/2014,RESPITE NORTH WEST LIMITED,Social Community Care Supplies & Services,EARLY HELP AND SCHOOLS,DISABILITIES RESPITE CARE,862.98
Rochdale,08/04/2014,RESPITE NORTH WEST LIMITED,Social Community Care Supplies & Services,EARLY HELP AND SCHOOLS,DISABILITIES RESPITE CARE,817.56
Rochdale,23/04/2014,RESPITE NORTH WEST LIMITED,Social Community Care Supplies & Services,LEARNING DIS & MENTAL HEALTH,GENERAL,"1,698.96"
Rochdale,04/04/2014,RESPITE NORTH WEST LIMITED,Social Community Care Supplies & Services,PHYSICAL DIS & OLDER PEOPLE,OLDER PEOPLES AGENCY PROVISION,"1,402.73"
Rochdale,14/04/2014,RESPITE NORTH WEST LIMITED,Social Community Care Supplies & Services,PHYSICAL DIS & OLDER PEOPLE,OLDER PEOPLES AGENCY PROVISION,"1,362.33"
Rochdale,17/04/2014,RESPITE NORTH WEST LIMITED,Social Community Care Supplies & Services,PHYSICAL DIS & OLDER PEOPLE,OLDER PEOPLES AGENCY PROVISION,"1,374.72"
Rochdale,25/04/2014,RESPITE NORTH WEST LIMITED,Social Community Care Supplies & Services,PHYSICAL DIS & OLDER PEOPLE,OLDER PEOPLES AGENCY PROVISION,"1,239.52"
Rochdale,17/04/2014,RIGHT START DAY NURSERIES LTD,Social Community Care Supplies & Services,EARLY HELP AND SCHOOLS,FREE NURSERY PLACES 2 YEAR OLDS,"4,811.40"
Rochdale,17/04/2014,RIGHT START DAY NURSERIES LTD,Social Community Care Supplies & Services,EARLY HELP AND SCHOOLS,NURSERY EDUCATION GRANT  3YR OLDS,"7,346.16"
Rochdale,25/04/2014,RIGHT START DAY NURSERIES LTD,Social Community Care Supplies & Services,EARLY HELP AND SCHOOLS,NURSERY EDUCATION GRANT  3YR OLDS,"1,000.00"
Rochdale,08/04/2014,ROC NORTHWEST LTD,Social Community Care Supplies & Services,EARLY HELP AND SCHOOLS,IND SCHOOLS  RESIDENTIAL,"16,052.76"
Rochdale,01/04/2014,ROCHDALE & DIST CITIZENS ADVICE BUREAU,Social Community Care Supplies & Services,CUSTOMERS & CORPORATE SERVICES,ADVICE TEAM,"28,167.00"
Rochdale,01/04/2014,ROCHDALE & DISTRICT DISABLED ACTION GRP,Social Community Care Supplies & Services,CUSTOMERS & CORPORATE SERVICES,GENERAL EQUAL OPPORTUNITIES,"6,775.00"
Rochdale,16/04/2014,ROCHDALE & DISTRICT MIND,Social Community Care Supplies & Services,PUBLIC HEALTH,SPECIALIST PUBLIC HEALTH TEAM,"12,000.00"
Rochdale,04/04/2014,ROCHDALE COMMUNITY SUPPORT TRUST,Social Community Care Supplies & Services,PHYSICAL DIS & OLDER PEOPLE,OLDER PEOPLES AGENCY PROVISION,"3,571.49"
Rochdale,14/04/2014,ROCHDALE COMMUNITY SUPPORT TRUST,Social Community Care Supplies & Services,PHYSICAL DIS & OLDER PEOPLE,OLDER PEOPLES AGENCY PROVISION,"3,947.68"
Rochdale,17/04/2014,ROCHDALE COMMUNITY SUPPORT TRUST,Social Community Care Supplies & Services,PHYSICAL DIS & OLDER PEOPLE,OLDER PEOPLES AGENCY PROVISION,"4,060.55"
Rochdale,25/04/2014,ROCHDALE COMMUNITY SUPPORT TRUST,Social Community Care Supplies & Services,PHYSICAL DIS & OLDER PEOPLE,OLDER PEOPLES AGENCY PROVISION,"3,996.15"
Rochdale,24/04/2014,ROCHDALE GATEWAY LEISURE LIMITED,Social Community Care Supplies & Services,LEARNING DIS & MENTAL HEALTH,CARERS COMMISSIONED SERVICES,"5,247.00"
Rochdale,04/04/2014,ROCHDALE GATEWAY LEISURE LIMITED,Social Community Care Supplies & Services,LEARNING DIS & MENTAL HEALTH,LD FORUM - PERSONAL BUDGETS,505.50
Rochdale,04/04/2014,ROCHDALE GATEWAY LEISURE LIMITED,Social Community Care Supplies & Services,LEARNING DIS & MENTAL HEALTH,LD FORUM - PERSONAL BUDGETS,505.50
Rochdale,04/04/2014,ROCHDALE GATEWAY LEISURE LIMITED,Social Community Care Supplies & Services,LEARNING DIS & MENTAL HEALTH,LD FORUM - PERSONAL BUDGETS,505.50
Rochdale,04/04/2014,ROCHDALE GATEWAY LEISURE LIMITED,Social Community Care Supplies & Services,LEARNING DIS & MENTAL HEALTH,LD FORUM - PERSONAL BUDGETS,"1,348.00"
Rochdale,04/04/2014,ROCHDALE GATEWAY LEISURE LIMITED,Social Community Care Supplies & Services,LEARNING DIS & MENTAL HEALTH,LD FORUM - PERSONAL BUDGETS,674.00
Rochdale,17/04/2014,ROLY POLEYS PRIVATE DAY NURSERY,Social Community Care Supplies & Services,EARLY HELP AND SCHOOLS,FREE NURSERY PLACES 2 YEAR OLDS,"13,365.00"
Rochdale,17/04/2014,ROLY POLEYS PRIVATE DAY NURSERY,Social Community Care Supplies & Services,EARLY HELP AND SCHOOLS,NURSERY EDUCATION GRANT  3YR OLDS,"15,542.28"
Rochdale,25/04/2014,ROLY POLEYS PRIVATE DAY NURSERY,Social Community Care Supplies & Services,EARLY HELP AND SCHOOLS,NURSERY EDUCATION GRANT  3YR OLDS,"1,000.00"
Rochdale,07/04/2014,ROSS CARE,Social Community Care Supplies & Services,EARLY HELP AND SCHOOLS,CAPITAL EQUIPMENT DISABLED CHILDREN,"1,462.91"
Rochdale,02/04/2014,ROSS CARE,Social Community Care Supplies & Services,PHYSICAL DIS & OLDER PEOPLE,POOLED ICES,"14,077.77"
Rochdale,14/04/2014,ROUTES HEALTHCARE,Social Community Care Supplies & Services,EARLY HELP AND SCHOOLS,DISABILITIES RESPITE CARE,771.12
Rochdale,17/04/2014,SEEROS PRIVATE DAY NURSURY,Social Community Care Supplies & Services,EARLY HELP AND SCHOOLS,FREE NURSERY PLACES 2 YEAR OLDS,"10,692.00"
Rochdale,17/04/2014,SEEROS PRIVATE DAY NURSURY,Social Community Care Supplies & Services,EARLY HELP AND SCHOOLS,NURSERY EDUCATION GRANT  3YR OLDS,"13,976.64"
Rochdale,25/04/2014,SEEROS PRIVATE DAY NURSURY,Social Community Care Supplies & Services,EARLY HELP AND SCHOOLS,NURSERY EDUCATION GRANT  3YR OLDS,"1,000.00"
Rochdale,10/04/2014,SOCIAL CARE SERVICES LIMITED,Social Community Care Supplies & Services,CHILDREN�S SOCIAL CARE,EXTERNAL RESIDENTIAL PLACEMENTS,"9,145.00"
Rochdale,10/04/2014,STEP AHEAD,Social Community Care Supplies & Services,CHILDREN�S SOCIAL CARE,EXTERNAL RESIDENTIAL PLACEMENTS,850.00
Rochdale,10/04/2014,STEP AHEAD,Social Community Care Supplies & Services,CHILDREN�S SOCIAL CARE,EXTERNAL RESIDENTIAL PLACEMENTS,850.00
Rochdale,10/04/2014,STEP AHEAD,Social Community Care Supplies & Services,CHILDREN�S SOCIAL CARE,EXTERNAL RESIDENTIAL PLACEMENTS,850.00
Rochdale,23/04/2014,STEP AHEAD,Social Community Care Supplies & Services,CHILDREN�S SOCIAL CARE,EXTERNAL RESIDENTIAL PLACEMENTS,850.00
Rochdale,17/04/2014,THE APPLE TREE PRIVATE DAY NURSERY,Social Community Care Supplies & Services,EARLY HELP AND SCHOOLS,FREE NURSERY PLACES 2 YEAR OLDS,534.60
Rochdale,17/04/2014,THE APPLE TREE PRIVATE DAY NURSERY,Social Community Care Supplies & Services,EARLY HELP AND SCHOOLS,NURSERY EDUCATION GRANT  3YR OLDS,"9,116.28"
Rochdale,25/04/2014,THE APPLE TREE PRIVATE DAY NURSERY,Social Community Care Supplies & Services,EARLY HELP AND SCHOOLS,NURSERY EDUCATION GRANT  3YR OLDS,"1,000.00"
Rochdale,04/04/2014,THE MEARS GROUP,Social Community Care Supplies & Services,PHYSICAL DIS & OLDER PEOPLE,OLDER PEOPLES AGENCY PROVISION,"2,940.05"
Rochdale,14/04/2014,THE MEARS GROUP,Social Community Care Supplies & Services,PHYSICAL DIS & OLDER PEOPLE,OLDER PEOPLES AGENCY PROVISION,"2,890.52"
Rochdale,17/04/2014,THE MEARS GROUP,Social Community Care Supplies & Services,PHYSICAL DIS & OLDER PEOPLE,OLDER PEOPLES AGENCY PROVISION,"2,986.94"
Rochdale,25/04/2014,THE MEARS GROUP,Social Community Care Supplies & Services,PHYSICAL DIS & OLDER PEOPLE,OLDER PEOPLES AGENCY PROVISION,"3,007.04"
Rochdale,10/04/2014,THE PARAMOUNT GROUP,Social Community Care Supplies & Services,CHILDREN�S SOCIAL CARE,EXTERNAL RESIDENTIAL PLACEMENTS,"8,000.00"
Rochdale,10/04/2014,THE TOGETHER TRUST,Social Community Care Supplies & Services,CHILDREN�S SOCIAL CARE,EXTERNAL RESIDENTIAL PLACEMENTS,"15,742.73"
Rochdale,10/04/2014,THE TOGETHER TRUST,Social Community Care Supplies & Services,CHILDREN�S SOCIAL CARE,EXTERNAL RESIDENTIAL PLACEMENTS,"10,185.67"
Rochdale,10/04/2014,THE TOGETHER TRUST,Social Community Care Supplies & Services,CHILDREN�S SOCIAL CARE,EXTERNAL RESIDENTIAL PLACEMENTS,"10,181.02"
Rochdale,23/04/2014,THE TOGETHER TRUST,Social Community Care Supplies & Services,CHILDREN�S SOCIAL CARE,EXTERNAL RESIDENTIAL PLACEMENTS,510.00
Rochdale,10/04/2014,THE TOGETHER TRUST,Social Community Care Supplies & Services,CHILDREN�S SOCIAL CARE,INDEPENDENT FOSTER CARE,"11,067.00"
Rochdale,08/04/2014,THE TOGETHER TRUST,Social Community Care Supplies & Services,EARLY HELP AND SCHOOLS,NON MAINTAINED POST 16,"12,831.04"
Rochdale,08/04/2014,THE TOGETHER TRUST,Social Community Care Supplies & Services,EARLY HELP AND SCHOOLS,NON MAINTAINED POST 16,"12,209.76"
Rochdale,08/04/2014,THE TOGETHER TRUST,Social Community Care Supplies & Services,EARLY HELP AND SCHOOLS,NON MAINTAINED POST 16,"11,433.57"
Rochdale,08/04/2014,THE TOGETHER TRUST,Social Community Care Supplies & Services,EARLY HELP AND SCHOOLS,NON MAINTAINED POST 16,"2,000.00"
Rochdale,08/04/2014,THE TOGETHER TRUST,Social Community Care Supplies & Services,EARLY HELP AND SCHOOLS,NON MAINTAINED POST 16,"2,000.00"
Rochdale,08/04/2014,THE TOGETHER TRUST,Social Community Care Supplies & Services,EARLY HELP AND SCHOOLS,NON MAINTAINED POST 16,"2,000.00"
Rochdale,14/04/2014,THE TOGETHER TRUST,Social Community Care Supplies & Services,EARLY HELP AND SCHOOLS,PRE 16 RDALE PUPILS IN NON MAINTAINED,"8,310.37"
Rochdale,14/04/2014,THE TOGETHER TRUST,Social Community Care Supplies & Services,EARLY HELP AND SCHOOLS,PRE 16 RDALE PUPILS IN NON MAINTAINED,"9,857.55"
Rochdale,14/04/2014,THE TOGETHER TRUST,Social Community Care Supplies & Services,EARLY HELP AND SCHOOLS,PRE 16 RDALE PUPILS IN NON MAINTAINED,"9,984.18"
Rochdale,14/04/2014,THE TOGETHER TRUST,Social Community Care Supplies & Services,EARLY HELP AND SCHOOLS,PRE 16 RDALE PUPILS IN NON MAINTAINED,"8,745.88"
Rochdale,14/04/2014,THE TOGETHER TRUST,Social Community Care Supplies & Services,EARLY HELP AND SCHOOLS,PRE 16 RDALE PUPILS IN NON MAINTAINED,"13,495.14"
Rochdale,14/04/2014,THE TOGETHER TRUST,Social Community Care Supplies & Services,EARLY HELP AND SCHOOLS,PRE 16 RDALE PUPILS IN NON MAINTAINED,"19,372.16"
Rochdale,14/04/2014,THE TOGETHER TRUST,Social Community Care Supplies & Services,EARLY HELP AND SCHOOLS,PRE 16 RDALE PUPILS IN NON MAINTAINED,"8,310.37"
Rochdale,23/04/2014,TOGETHER WORKING FOR WELLBEING,Social Community Care Supplies & Services,LEARNING DIS & MENTAL HEALTH,GENERAL,"1,019.76"
Rochdale,23/04/2014,TOGETHER WORKING FOR WELLBEING,Social Community Care Supplies & Services,LEARNING DIS & MENTAL HEALTH,GENERAL,"1,019.76"
Rochdale,09/04/2014,TOGETHER WORKING FOR WELLBEING,Social Community Care Supplies & Services,PHYSICAL DIS & OLDER PEOPLE,OLDER PEOPLES AGENCY PROVISION,"16,450.00"
Rochdale,08/04/2014,TRAFFORD MBC,Social Community Care Supplies & Services,CHILDREN�S SOCIAL CARE,INTER AGENCY ADOPTION,"43,500.00"
Rochdale,10/04/2014,TRAX CARE LTD,Social Community Care Supplies & Services,CHILDREN�S SOCIAL CARE,EXTERNAL RESIDENTIAL PLACEMENTS,"19,928.57"
Rochdale,04/04/2014,TUNSTALL HEALTHCARE (UK) LTD,Social Community Care Supplies & Services,PHYSICAL DIS & OLDER PEOPLE,CARELINE,"1,124.10"
Rochdale,24/04/2014,TUNSTALL HEALTHCARE (UK) LTD,Social Community Care Supplies & Services,PHYSICAL DIS & OLDER PEOPLE,CARELINE,"1,498.80"
Rochdale,02/04/2014,VICTIM SUPPORT & WITNESS SERVICE,Social Community Care Supplies & Services,CUSTOMERS & CORPORATE SERVICES,CRIME PREVENTION AND COMMUNITY SAFETY,"6,771.61"
Rochdale,02/04/2014,VICTIM SUPPORT & WITNESS SERVICE,Social Community Care Supplies & Services,CUSTOMERS & CORPORATE SERVICES,CRIME PREVENTION AND COMMUNITY SAFETY,"21,691.67"
Rochdale,17/04/2014,WARDLE CHILDCARE PARTNERSHIP,Social Community Care Supplies & Services,EARLY HELP AND SCHOOLS,NURSERY EDUCATION GRANT  3YR OLDS,"9,045.50"
Rochdale,25/04/2014,WARDLE CHILDCARE PARTNERSHIP,Social Community Care Supplies & Services,EARLY HELP AND SCHOOLS,NURSERY EDUCATION GRANT  3YR OLDS,"1,000.00"
Rochdale,10/04/2014,WRIXON CARE SERVICES,Social Community Care Supplies & Services,CHILDREN�S SOCIAL CARE,EXTERNAL RESIDENTIAL PLACEMENTS,691.95
Rochdale,17/04/2014,J S C PLAY SERVICES LIMITED,Sports & Playground Equipment & Maintenance,ECONOMY AND ENVIRONMENT,PLAYGROUND REPLACEMENT EQUIP,"26,525.00"
Rochdale,08/04/2014,LUDUS LEISURE LTD,Sports & Playground Equipment & Maintenance,ECONOMY AND ENVIRONMENT,PLAYGROUND SERVICES,"1,450.00"
Rochdale,09/04/2014,H JENKINSON & CO LTD,Stationery,CUSTOMERS & CORPORATE SERVICES,SUCCESSION PLANNING,"2,394.80"
Rochdale,08/04/2014,OFFICE DEPOT UK LIMITED,Stationery,CUSTOMERS & CORPORATE SERVICES,LEGAL & DEMOCRATIC GENERAL,"2,762.86"
Rochdale,08/04/2014,OFFICE DEPOT UK LIMITED,Stationery,FINANCE SERVICES,PR MEDIA AND MARKETING,"3,136.00"
Rochdale,02/04/2014,OFFICE DEPOT UK LIMITED,Stationery,FINANCE SERVICES,PR MEDIA AND MARKETING,548.80
Rochdale,02/04/2014,OFFICE DEPOT UK LIMITED,Stationery,FINANCE SERVICES,PR MEDIA AND MARKETING,"1,010.24"
Rochdale,23/04/2014,OFFICE DEPOT UK LIMITED,Stationery,ECONOMY AND ENVIRONMENT,REG LIC  GENERAL,768.68
Rochdale,22/04/2014,OFFICE DEPOT UK LIMITED,Stationery,FINANCE SERVICES,TECHNICAL SUPPORT,"18,491.29"
Rochdale,16/04/2014,NSL LIMITED,Street & Traffic Management,PROPERTY AND HIGHWAYS,DECRIMINALISATION OF CAR PARKING,"6,148.00"
Rochdale,16/04/2014,NSL LIMITED,Street & Traffic Management,PROPERTY AND HIGHWAYS,DECRIMINALISATION OF CAR PARKING,"29,670.04"
Rochdale,04/04/2014,A & W DAWSON,Unclassifiable,ECONOMY AND ENVIRONMENT,EDUCATION HOME TO SCHOOL,500.00
Rochdale,04/04/2014,A & W DAWSON,Unclassifiable,ECONOMY AND ENVIRONMENT,EDUCATION HOME TO SCHOOL,705.80
Rochdale,14/04/2014,A & W DAWSON,Unclassifiable,ECONOMY AND ENVIRONMENT,EDUCATION HOME TO SCHOOL,758.60
Rochdale,14/04/2014,A & W DAWSON,Unclassifiable,ECONOMY AND ENVIRONMENT,EDUCATION HOME TO SCHOOL,500.00
Rochdale,15/04/2014,A J ASSOCIATES,Unclassifiable,EARLY HELP AND SCHOOLS,CLC RUNNING COSTS 2011/12,500.00
Rochdale,04/04/2014,A W COLEMAN,Unclassifiable,ECONOMY AND ENVIRONMENT,EDUCATION HOME TO SCHOOL,"8,498.20"
Rochdale,17/04/2014,ANDY HARROP,Unclassifiable,ECONOMY AND ENVIRONMENT,EDUCATION HOME TO SCHOOL,"2,352.00"
Rochdale,15/04/2014,AUDREY WILLIAMSON,Unclassifiable,CHILDREN�S SOCIAL CARE,SAFEGUARDING CHILDREN BOARD,"2,321.64"
Rochdale,01/04/2014,CASTLEMERE COMMUNITY CENTRE,Unclassifiable,CUSTOMERS & CORPORATE SERVICES,CASTLEMERE COMMUNITY CENTRE,"3,275.00"
Rochdale,11/04/2014,CASTLEMERE COMMUNITY CENTRE,Unclassifiable,CUSTOMERS & CORPORATE SERVICES,CASTLEMERE COMMUNITY CENTRE,"8,155.00"
Rochdale,02/04/2014,CHANCES,Unclassifiable,EARLY HELP AND SCHOOLS,LOOKED AFTER CHILDREN PUPIL PREMIUM,"1,905.00"
Rochdale,10/04/2014,DB ROCHDALE LTD,Unclassifiable,LEARNING DIS & MENTAL HEALTH,GENERAL,852.50
Rochdale,08/04/2014,DONNY BRYAN,Unclassifiable,PHYSICAL DIS & OLDER PEOPLE,OLDER PEOPLES AGENCY PROVISION,"2,084.00"
Rochdale,03/04/2014,FAISAL S BUTT,Unclassifiable,ECONOMY AND ENVIRONMENT,EDUCATION HOME TO SCHOOL,"2,000.00"
Rochdale,04/04/2014,H A BURROW,Unclassifiable,ECONOMY AND ENVIRONMENT,EDUCATION HOME TO SCHOOL,882.00
Rochdale,04/04/2014,H A BURROW,Unclassifiable,ECONOMY AND ENVIRONMENT,EDUCATION HOME TO SCHOOL,856.00
Rochdale,04/04/2014,H A BURROW,Unclassifiable,ECONOMY AND ENVIRONMENT,EDUCATION HOME TO SCHOOL,"1,004.00"
Rochdale,16/04/2014,JOHN MARLAND,Unclassifiable,CHILDREN�S SOCIAL CARE,TRAINER FLATS NON SP FUNDING,505.00
Rochdale,16/04/2014,MR D ROUND,Unclassifiable,ECONOMY AND ENVIRONMENT,MISCELLANEOUS ECR,665.00
Rochdale,24/04/2014,MR D ROUND,Unclassifiable,ECONOMY AND ENVIRONMENT,MISCELLANEOUS ECR,685.00
Rochdale,03/04/2014,MR GARY P DAWSON,Unclassifiable,ECONOMY AND ENVIRONMENT,EDUCATION HOME TO SCHOOL,"2,094.75"
Rochdale,10/04/2014,MR J P O`HARA,Unclassifiable,ECONOMY AND ENVIRONMENT,EDUCATION HOME TO SCHOOL,"2,083.83"
Rochdale,10/04/2014,MR J P O`HARA,Unclassifiable,ECONOMY AND ENVIRONMENT,EDUCATION HOME TO SCHOOL,"2,520.00"
Rochdale,10/04/2014,MR J P O`HARA,Unclassifiable,ECONOMY AND ENVIRONMENT,EDUCATION HOME TO SCHOOL,"2,083.83"
Rochdale,10/04/2014,MR J P O`HARA,Unclassifiable,ECONOMY AND ENVIRONMENT,EDUCATION HOME TO SCHOOL,"1,963.50"
Rochdale,14/04/2014,MR JOHN HUNTER,Unclassifiable,ECONOMY AND ENVIRONMENT,PLANNING ENFORCEMENT,"2,250.00"
Rochdale,11/04/2014,MR PAUL SMITH,Unclassifiable,CUSTOMERS & CORPORATE SERVICES,LEGAL SERVICES,"1,200.00"
Rochdale,02/04/2014,NORMAN SHAWCROSS,Unclassifiable,EARLY HELP AND SCHOOLS,ELMWOOD ROOF REPLACEMENT,"8,110.49"
Rochdale,22/04/2014,PRIORY ROSES,Unclassifiable,ECONOMY AND ENVIRONMENT,BOWLEE AND GARDEN MAILSHOP,"1,117.90"
Rochdale,23/04/2014,REDACTED-PERSONAL DATA,Unclassifiable,EARLY HELP AND SCHOOLS,FREE NURSERY PLACES 2 YEAR OLDS,534.60
Rochdale,17/04/2014,REDACTED-PERSONAL DATA,Unclassifiable,EARLY HELP AND SCHOOLS,FREE NURSERY PLACES 2 YEAR OLDS,"1,603.80"
Rochdale,17/04/2014,REDACTED-PERSONAL DATA,Unclassifiable,EARLY HELP AND SCHOOLS,FREE NURSERY PLACES 2 YEAR OLDS,534.60
Rochdale,17/04/2014,REDACTED-PERSONAL DATA,Unclassifiable,EARLY HELP AND SCHOOLS,FREE NURSERY PLACES 2 YEAR OLDS,534.60
Rochdale,23/04/2014,REDACTED-PERSONAL DATA,Unclassifiable,EARLY HELP AND SCHOOLS,FREE NURSERY PLACES 2 YEAR OLDS,534.60
Rochdale,17/04/2014,REDACTED-PERSONAL DATA,Unclassifiable,EARLY HELP AND SCHOOLS,FREE NURSERY PLACES 2 YEAR OLDS,534.60
Rochdale,17/04/2014,REDACTED-PERSONAL DATA,Unclassifiable,EARLY HELP AND SCHOOLS,FREE NURSERY PLACES 2 YEAR OLDS,534.60
Rochdale,22/04/2014,REDACTED-PERSONAL DATA,Unclassifiable,EARLY HELP AND SCHOOLS,FREE NURSERY PLACES 2 YEAR OLDS,534.60
Rochdale,17/04/2014,REDACTED-PERSONAL DATA,Unclassifiable,EARLY HELP AND SCHOOLS,FREE NURSERY PLACES 2 YEAR OLDS,534.60
Rochdale,17/04/2014,REDACTED-PERSONAL DATA,Unclassifiable,EARLY HELP AND SCHOOLS,FREE NURSERY PLACES 2 YEAR OLDS,534.60
Rochdale,17/04/2014,REDACTED-PERSONAL DATA,Unclassifiable,EARLY HELP AND SCHOOLS,FREE NURSERY PLACES 2 YEAR OLDS,"1,603.80"
Rochdale,23/04/2014,REDACTED-PERSONAL DATA,Unclassifiable,EARLY HELP AND SCHOOLS,FREE NURSERY PLACES 2 YEAR OLDS,"1,069.20"
Rochdale,23/04/2014,REDACTED-PERSONAL DATA,Unclassifiable,EARLY HELP AND SCHOOLS,FREE NURSERY PLACES 2 YEAR OLDS,534.60
Rochdale,22/04/2014,REDACTED-PERSONAL DATA,Unclassifiable,EARLY HELP AND SCHOOLS,FREE NURSERY PLACES 2 YEAR OLDS,534.60
Rochdale,23/04/2014,REDACTED-PERSONAL DATA,Unclassifiable,EARLY HELP AND SCHOOLS,FREE NURSERY PLACES 2 YEAR OLDS,534.60
Rochdale,17/04/2014,REDACTED-PERSONAL DATA,Unclassifiable,EARLY HELP AND SCHOOLS,NURSERY EDUCATION GRANT  3YR OLDS,946.08
Rochdale,17/04/2014,REDACTED-PERSONAL DATA,Unclassifiable,EARLY HELP AND SCHOOLS,NURSERY EDUCATION GRANT  3YR OLDS,628.56
Rochdale,17/04/2014,REDACTED-PERSONAL DATA,Unclassifiable,EARLY HELP AND SCHOOLS,NURSERY EDUCATION GRANT  3YR OLDS,534.60
Rochdale,17/04/2014,REDACTED-PERSONAL DATA,Unclassifiable,EARLY HELP AND SCHOOLS,NURSERY EDUCATION GRANT  3YR OLDS,609.12
Rochdale,22/04/2014,REDACTED-PERSONAL DATA,Unclassifiable,EARLY HELP AND SCHOOLS,NURSERY EDUCATION GRANT  3YR OLDS,534.60
Rochdale,17/04/2014,REDACTED-PERSONAL DATA,Unclassifiable,EARLY HELP AND SCHOOLS,NURSERY EDUCATION GRANT  3YR OLDS,609.12
Rochdale,17/04/2014,REDACTED-PERSONAL DATA,Unclassifiable,EARLY HELP AND SCHOOLS,NURSERY EDUCATION GRANT  3YR OLDS,936.36
Rochdale,17/04/2014,REDACTED-PERSONAL DATA,Unclassifiable,EARLY HELP AND SCHOOLS,NURSERY EDUCATION GRANT  3YR OLDS,"1,528.20"
Rochdale,17/04/2014,REDACTED-PERSONAL DATA,Unclassifiable,EARLY HELP AND SCHOOLS,NURSERY EDUCATION GRANT  3YR OLDS,609.12
Rochdale,17/04/2014,REDACTED-PERSONAL DATA,Unclassifiable,EARLY HELP AND SCHOOLS,NURSERY EDUCATION GRANT  3YR OLDS,641.52
Rochdale,17/04/2014,REDACTED-PERSONAL DATA,Unclassifiable,EARLY HELP AND SCHOOLS,NURSERY EDUCATION GRANT  3YR OLDS,641.52
Rochdale,17/04/2014,REDACTED-PERSONAL DATA,Unclassifiable,EARLY HELP AND SCHOOLS,NURSERY EDUCATION GRANT  3YR OLDS,534.60
Rochdale,17/04/2014,REDACTED-PERSONAL DATA,Unclassifiable,EARLY HELP AND SCHOOLS,NURSERY EDUCATION GRANT  3YR OLDS,962.28
Rochdale,09/04/2014,SHANLEY WRIGHT JUDGE,Unclassifiable,PHYSICAL DIS & OLDER PEOPLE,ADULT CARE HEAD OF SERVICE,"355,000.00"
Rochdale,03/04/2014,TARIQ CHOHAN,Unclassifiable,ECONOMY AND ENVIRONMENT,EDUCATION HOME TO SCHOOL,"2,440.00"
Rochdale,17/04/2014,THE OLD LIBRARY PDN,Unclassifiable,EARLY HELP AND SCHOOLS,FREE NURSERY PLACES 2 YEAR OLDS,"8,019.00"
Rochdale,17/04/2014,THE OLD LIBRARY PDN,Unclassifiable,EARLY HELP AND SCHOOLS,NURSERY EDUCATION GRANT  3YR OLDS,"10,936.08"
Rochdale,25/04/2014,THE OLD LIBRARY PDN,Unclassifiable,EARLY HELP AND SCHOOLS,NURSERY EDUCATION GRANT  3YR OLDS,"1,000.00"
Rochdale,17/04/2014,WENDYS,Unclassifiable,EARLY HELP AND SCHOOLS,FREE NURSERY PLACES 2 YEAR OLDS,"3,207.60"
Rochdale,17/04/2014,WENDYS,Unclassifiable,EARLY HELP AND SCHOOLS,NURSERY EDUCATION GRANT  3YR OLDS,"14,505.48"
Rochdale,25/04/2014,WENDYS,Unclassifiable,EARLY HELP AND SCHOOLS,NURSERY EDUCATION GRANT  3YR OLDS,"1,000.00"
Rochdale,15/04/2014,ASC RENEWABLES LTD,Utilities,ECONOMY AND ENVIRONMENT,WIND ENERGY PROJECT - PILOT PHASE,"7,735.00"
Rochdale,16/04/2014,BRITISH GAS BUSINESS,Utilities,ECONOMY AND ENVIRONMENT,BOWLING GREENS,"1,478.91"
Rochdale,16/04/2014,BRITISH GAS BUSINESS,Utilities,EARLY HELP AND SCHOOLS,BRIDGEFOLD LODGE,513.05
Rochdale,16/04/2014,BRITISH GAS BUSINESS,Utilities,PROPERTY AND HIGHWAYS,CAR PARKS  GENERAL,876.31
Rochdale,16/04/2014,BRITISH GAS BUSINESS,Utilities,ECONOMY AND ENVIRONMENT,CEMETERIES GENERAL,508.70
Rochdale,16/04/2014,BRITISH GAS BUSINESS,Utilities,LEARNING DIS & MENTAL HEALTH,COMMUNITY RESTART,508.86
Rochdale,16/04/2014,BRITISH GAS BUSINESS,Utilities,ECONOMY AND ENVIRONMENT,COUNTRYSIDE OPERATIONS,"1,346.10"
Rochdale,16/04/2014,BRITISH GAS BUSINESS,Utilities,CHILDREN�S SOCIAL CARE,CROSSFIELD MILL,"1,385.42"
Rochdale,16/04/2014,BRITISH GAS BUSINESS,Utilities,ECONOMY AND ENVIRONMENT,DEPOT GREEN LANE GENERAL,"2,004.70"
Rochdale,16/04/2014,BRITISH GAS BUSINESS,Utilities,ECONOMY AND ENVIRONMENT,GREAT HOWARTH HOSTEL,659.10
Rochdale,16/04/2014,BRITISH GAS BUSINESS,Utilities,PROPERTY AND HIGHWAYS,HANSON CLOSE INDUSTRIAL ESTATE,940.64
Rochdale,16/04/2014,BRITISH GAS BUSINESS,Utilities,ECONOMY AND ENVIRONMENT,LEOPOLD COURT,713.63
Rochdale,16/04/2014,BRITISH GAS BUSINESS,Utilities,PROPERTY AND HIGHWAYS,MANAGEMENT OF PROPERTIES,774.15
Rochdale,16/04/2014,BRITISH GAS BUSINESS,Utilities,ECONOMY AND ENVIRONMENT,PARKS HEYWOOD,577.50
Rochdale,16/04/2014,BRITISH GAS BUSINESS,Utilities,ECONOMY AND ENVIRONMENT,PARKS ROCHDALE,"1,702.04"
Rochdale,16/04/2014,BRITISH GAS BUSINESS,Utilities,PROPERTY AND HIGHWAYS,PHOENIX CLOSE IND ESTATE - MICRO,"1,382.14"
Rochdale,16/04/2014,BRITISH GAS BUSINESS,Utilities,PHYSICAL DIS & OLDER PEOPLE,SPRINGHILL EMI UNIT,991.39
Rochdale,16/04/2014,BRITISH GAS BUSINESS,Utilities,ECONOMY AND ENVIRONMENT,TELEGRAPH HOUSE SERVICE CHARGE ACCOUNT,752.66
Rochdale,16/04/2014,BRITISH GAS BUSINESS,Utilities,CHILDREN�S SOCIAL CARE,TOWNHEAD,699.41
Rochdale,16/04/2014,BRITISH GAS BUSINESS,Utilities,PHYSICAL DIS & OLDER PEOPLE,TUDOR COURT REHAB UNIT,638.31
Rochdale,22/04/2014,BRITISH GAS BUSINESS,Utilities,PHYSICAL DIS & OLDER PEOPLE,WOODCLOUGH,"1,313.34"
Rochdale,08/04/2014,BROOKDALE GAS LTD,Utilities,ECONOMY AND ENVIRONMENT,TOWN HALL,504.00
Rochdale,22/04/2014,CORONA ENERGY RETAIL 4 LIMITED,Utilities,ECONOMY AND ENVIRONMENT,1 RIVERSIDE,"3,654.28"
Rochdale,02/04/2014,CORONA ENERGY RETAIL 4 LIMITED,Utilities,ECONOMY AND ENVIRONMENT,BALDERSTONE DEMOLITION,"1,355.18"
Rochdale,07/04/2014,CORONA ENERGY RETAIL 4 LIMITED,Utilities,ECONOMY AND ENVIRONMENT,BALDERSTONE DEMOLITION,"1,507.22"
Rochdale,07/04/2014,CORONA ENERGY RETAIL 4 LIMITED,Utilities,ECONOMY AND ENVIRONMENT,BALDERSTONE DEMOLITION,"1,668.55"
Rochdale,22/04/2014,CORONA ENERGY RETAIL 4 LIMITED,Utilities,ECONOMY AND ENVIRONMENT,BOWLING GREENS,941.68
Rochdale,22/04/2014,CORONA ENERGY RETAIL 4 LIMITED,Utilities,ECONOMY AND ENVIRONMENT,CEMETERIES GENERAL,"1,123.06"
Rochdale,17/04/2014,CORONA ENERGY RETAIL 4 LIMITED,Utilities,ECONOMY AND ENVIRONMENT,CEMETERIES GENERAL,"3,196.98"
Rochdale,22/04/2014,CORONA ENERGY RETAIL 4 LIMITED,Utilities,LEARNING DIS & MENTAL HEALTH,CMHT HEYWOOD,762.39
Rochdale,22/04/2014,CORONA ENERGY RETAIL 4 LIMITED,Utilities,CHILDREN�S SOCIAL CARE,CROSSFIELD MILL,662.50
Rochdale,17/04/2014,CORONA ENERGY RETAIL 4 LIMITED,Utilities,ECONOMY AND ENVIRONMENT,DEPOT GREEN LANE GENERAL,"1,541.89"
Rochdale,17/04/2014,CORONA ENERGY RETAIL 4 LIMITED,Utilities,PROPERTY AND HIGHWAYS,DISPOSAL COSTS,659.90
Rochdale,22/04/2014,CORONA ENERGY RETAIL 4 LIMITED,Utilities,LEARNING DIS & MENTAL HEALTH,GATEWAY,786.62
Rochdale,17/04/2014,CORONA ENERGY RETAIL 4 LIMITED,Utilities,CUSTOMERS & CORPORATE SERVICES,HEALTH & SAFETY GENERAL,638.41
Rochdale,17/04/2014,CORONA ENERGY RETAIL 4 LIMITED,Utilities,CUSTOMERS & CORPORATE SERVICES,HEYWOOD LIBRARY,679.38
Rochdale,17/04/2014,CORONA ENERGY RETAIL 4 LIMITED,Utilities,LEARNING DIS & MENTAL HEALTH,LD PROVIDER MANAGEMENT & ADMIN,"1,251.35"
Rochdale,22/04/2014,CORONA ENERGY RETAIL 4 LIMITED,Utilities,ECONOMY AND ENVIRONMENT,LEOPOLD COURT,"1,102.52"
Rochdale,17/04/2014,CORONA ENERGY RETAIL 4 LIMITED,Utilities,CUSTOMERS & CORPORATE SERVICES,LITTLEBOROUGH LIBRARY,939.21
Rochdale,22/04/2014,CORONA ENERGY RETAIL 4 LIMITED,Utilities,EARLY HELP AND SCHOOLS,NEWBOLD CHILDRENS CENTRE,584.38
Rochdale,22/04/2014,CORONA ENERGY RETAIL 4 LIMITED,Utilities,PHYSICAL DIS & OLDER PEOPLE,SPRINGHILL EMI UNIT,"1,161.95"
Rochdale,22/04/2014,CORONA ENERGY RETAIL 4 LIMITED,Utilities,ECONOMY AND ENVIRONMENT,TELEGRAPH HOUSE SERVICE CHARGE ACCOUNT,"2,983.66"
Rochdale,22/04/2014,CORONA ENERGY RETAIL 4 LIMITED,Utilities,ECONOMY AND ENVIRONMENT,TOWN HALL,"5,751.70"
Rochdale,22/04/2014,CORONA ENERGY RETAIL 4 LIMITED,Utilities,CHILDREN�S SOCIAL CARE,TOWNHEAD,"1,019.04"
Rochdale,17/04/2014,CORONA ENERGY RETAIL 4 LIMITED,Utilities,PHYSICAL DIS & OLDER PEOPLE,TUDOR COURT REHAB UNIT,"1,313.09"
Rochdale,22/04/2014,CORONA ENERGY RETAIL 4 LIMITED,Utilities,PHYSICAL DIS & OLDER PEOPLE,WOODCLOUGH,527.94
Rochdale,08/04/2014,INTEGRATED WATER SERVICES LIMITED,Utilities,PROPERTY AND HIGHWAYS,SCHOOLS SLA 12/13,"2,764.00"
Rochdale,08/04/2014,INTEGRATED WATER SERVICES LIMITED,Utilities,PROPERTY AND HIGHWAYS,TECHNICAL TEAM,"4,197.80"
Rochdale,23/04/2014,NPOWER LIMITED,Utilities,PROPERTY AND HIGHWAYS,STREET LIGHTING ENERGY,"98,040.52"
Rochdale,07/04/2014,PHS GROUP PLC,Utilities,ECONOMY AND ENVIRONMENT,1 RIVERSIDE,"8,218.76"
Rochdale,16/04/2014,PHS GROUP PLC,Utilities,EARLY HELP AND SCHOOLS,BOARSHAW CHILDRENS CENTRE,634.40
Rochdale,14/04/2014,PHS GROUP PLC,Utilities,ECONOMY AND ENVIRONMENT,GREAT HOWARTH HOSTEL,524.16
Rochdale,09/04/2014,PHS GROUP PLC,Utilities,EARLY HELP AND SCHOOLS,NEWBOLD CHILDRENS CENTRE,783.12
Rochdale,24/04/2014,PHS GROUP PLC,Utilities,PHYSICAL DIS & OLDER PEOPLE,SPRINGHILL EMI UNIT,529.42
Rochdale,15/04/2014,PHS GROUP PLC,Utilities,EARLY HELP AND SCHOOLS,WOODLAND CHILDRENS CENTRE,536.12
Rochdale,15/04/2014,UNITED UTILITIES WATER LIMITED,Utilities,ECONOMY AND ENVIRONMENT,BOWLEE AND GARDEN MAILSHOP,862.66
Rochdale,15/04/2014,UNITED UTILITIES WATER LIMITED,Utilities,ECONOMY AND ENVIRONMENT,BOWLING GREENS,"10,626.15"
Rochdale,15/04/2014,UNITED UTILITIES WATER LIMITED,Utilities,PROPERTY AND HIGHWAYS,CAR PARKS  GENERAL,"5,944.99"
Rochdale,15/04/2014,UNITED UTILITIES WATER LIMITED,Utilities,LEARNING DIS & MENTAL HEALTH,CARERS RESOURCE CENTRE,"1,654.64"
Rochdale,15/04/2014,UNITED UTILITIES WATER LIMITED,Utilities,ECONOMY AND ENVIRONMENT,CEMETERIES GENERAL,"1,806.24"
Rochdale,15/04/2014,UNITED UTILITIES WATER LIMITED,Utilities,LEARNING DIS & MENTAL HEALTH,CMHT ROCHDALE,"1,302.28"
Rochdale,15/04/2014,UNITED UTILITIES WATER LIMITED,Utilities,LEARNING DIS & MENTAL HEALTH,COMMUNITY RESTART,721.66
Rochdale,15/04/2014,UNITED UTILITIES WATER LIMITED,Utilities,ECONOMY AND ENVIRONMENT,COUNTRYSIDE OPERATIONS,"2,679.69"
Rochdale,15/04/2014,UNITED UTILITIES WATER LIMITED,Utilities,CHILDREN�S SOCIAL CARE,CROSSFIELD MILL,"8,317.89"
Rochdale,15/04/2014,UNITED UTILITIES WATER LIMITED,Utilities,LEARNING DIS & MENTAL HEALTH,DAY SERVICES MANAGEMENT/ADMIN,"1,413.74"
Rochdale,15/04/2014,UNITED UTILITIES WATER LIMITED,Utilities,ECONOMY AND ENVIRONMENT,DEPOT GREEN LANE GENERAL,"20,556.25"
Rochdale,15/04/2014,UNITED UTILITIES WATER LIMITED,Utilities,ECONOMY AND ENVIRONMENT,FIRGROVE PLAYING FIELDS,"2,133.19"
Rochdale,15/04/2014,UNITED UTILITIES WATER LIMITED,Utilities,PROPERTY AND HIGHWAYS,HANSON CLOSE INDUSTRIAL ESTATE,"4,382.23"
Rochdale,15/04/2014,UNITED UTILITIES WATER LIMITED,Utilities,ECONOMY AND ENVIRONMENT,HARE HILL,"2,527.92"
Rochdale,15/04/2014,UNITED UTILITIES WATER LIMITED,Utilities,EARLY HELP AND SCHOOLS,HIGHWOOD RESOURCE CENTRE,"3,082.07"
Rochdale,15/04/2014,UNITED UTILITIES WATER LIMITED,Utilities,EARLY HELP AND SCHOOLS,HOLLIN SURE START CENTRE,"3,354.56"
Rochdale,15/04/2014,UNITED UTILITIES WATER LIMITED,Utilities,EARLY HELP AND SCHOOLS,HOLLINGWORTH HIGH SUPPLY CHARGES,651.14
Rochdale,15/04/2014,UNITED UTILITIES WATER LIMITED,Utilities,CUSTOMERS & CORPORATE SERVICES,JUMBO CTRS,"1,027.00"
Rochdale,15/04/2014,UNITED UTILITIES WATER LIMITED,Utilities,ECONOMY AND ENVIRONMENT,LAKESIDE DEMOLITIONS,862.40
Rochdale,15/04/2014,UNITED UTILITIES WATER LIMITED,Utilities,EARLY HELP AND SCHOOLS,LANGLEY CHILDRENS CENTRE,"1,091.72"
Rochdale,15/04/2014,UNITED UTILITIES WATER LIMITED,Utilities,LEARNING DIS & MENTAL HEALTH,LD COMMISSIONER CARE MANAGEMENT TEAM,636.39
Rochdale,15/04/2014,UNITED UTILITIES WATER LIMITED,Utilities,EARLY HELP AND SCHOOLS,LITTLEBOROUGH CAMPUS,"11,842.52"
Rochdale,15/04/2014,UNITED UTILITIES WATER LIMITED,Utilities,EARLY HELP AND SCHOOLS,MATTHEW MOSS YOUTH CENTRE,"1,473.37"
Rochdale,15/04/2014,UNITED UTILITIES WATER LIMITED,Utilities,EARLY HELP AND SCHOOLS,MEANWOOD CHILDRENS CENTRE,651.14
Rochdale,15/04/2014,UNITED UTILITIES WATER LIMITED,Utilities,EARLY HELP AND SCHOOLS,NEWBOLD CHILDRENS CENTRE,"1,085.16"
Rochdale,15/04/2014,UNITED UTILITIES WATER LIMITED,Utilities,ECONOMY AND ENVIRONMENT,PARKS HEYWOOD,615.48
Rochdale,15/04/2014,UNITED UTILITIES WATER LIMITED,Utilities,ECONOMY AND ENVIRONMENT,PARKS ROCHDALE,"6,852.13"
Rochdale,15/04/2014,UNITED UTILITIES WATER LIMITED,Utilities,ECONOMY AND ENVIRONMENT,ROCH VALE CARAVAN SITE,"8,068.14"
Rochdale,15/04/2014,UNITED UTILITIES WATER LIMITED,Utilities,CHILDREN�S SOCIAL CARE,RUGBY ROAD,651.14
Rochdale,07/04/2014,UNITED UTILITIES WATER LIMITED,Utilities,ECONOMY AND ENVIRONMENT,SITE DEVELOPMENT FUND,"4,296.01"
Rochdale,15/04/2014,UNITED UTILITIES WATER LIMITED,Utilities,ECONOMY AND ENVIRONMENT,SPORTS PITCHES BOROUGHWIDE,"1,430.15"
Rochdale,15/04/2014,UNITED UTILITIES WATER LIMITED,Utilities,EARLY HELP AND SCHOOLS,SPRINGVALE,"1,815.99"
Rochdale,15/04/2014,UNITED UTILITIES WATER LIMITED,Utilities,CUSTOMERS & CORPORATE SERVICES,STANNYCLIFFE,599.24
Rochdale,15/04/2014,UNITED UTILITIES WATER LIMITED,Utilities,EARLY HELP AND SCHOOLS,SUTHERLAND CNTR PREMISES COST,"6,852.13"
Rochdale,15/04/2014,UNITED UTILITIES WATER LIMITED,Utilities,ECONOMY AND ENVIRONMENT,TELEGRAPH HOUSE,"1,643.64"
Rochdale,15/04/2014,UNITED UTILITIES WATER LIMITED,Utilities,ECONOMY AND ENVIRONMENT,TOWN HALL,"5,964.29"
Rochdale,15/04/2014,UNITED UTILITIES WATER LIMITED,Utilities,CHILDREN�S SOCIAL CARE,YOT MANAGEMENT,"1,200.13"
Rochdale,23/04/2014,ALLSTAR BUSINESS SOLUTIONS LTD,Vehicle Management,ECONOMY AND ENVIRONMENT,STREETS MIDDLETON GENERAL,501.78
Rochdale,23/04/2014,ALLSTAR BUSINESS SOLUTIONS LTD,Vehicle Management,ECONOMY AND ENVIRONMENT,STREETS ROCHDALE GENERAL,578.71
Rochdale,03/04/2014,CHEVRON LIMITED,Vehicle Management,EARLY HELP AND SCHOOLS,BRIDGEFOLD LODGE,"2,189.95"
Rochdale,03/04/2014,CIVICA UK LIMITED,Vehicle Management,CUSTOMERS & CORPORATE SERVICES,THIRD PARTY CONTRACTS,"12,150.00"
Rochdale,11/04/2014,CIVICA UK LIMITED,Vehicle Management,CUSTOMERS & CORPORATE SERVICES,THIRD PARTY CONTRACTS,"1,762.46"
Rochdale,16/04/2014,CIVICA UK LIMITED,Vehicle Management,CUSTOMERS & CORPORATE SERVICES,THIRD PARTY CONTRACTS,"23,798.81"
Rochdale,03/04/2014,EDF ENERGY 1 LIMITED,Vehicle Management,PROPERTY AND HIGHWAYS,LITTLEBOROUGH COMMUNITY CAMPUS,"8,057.39"
Rochdale,25/04/2014,EDF ENERGY 1 LIMITED,Vehicle Management,PROPERTY AND HIGHWAYS,LITTLEBOROUGH COMMUNITY CAMPUS,"3,353.27"
Rochdale,14/04/2014,EDF ENERGY 1 LIMITED,Vehicle Management,ECONOMY AND ENVIRONMENT,ROCHDALE DEVELOPMENT AGENCY,"31,983.41"
Rochdale,15/04/2014,EDF ENERGY 1 LIMITED,Vehicle Management,ECONOMY AND ENVIRONMENT,TOWN HALL,"2,860.37"
Rochdale,08/04/2014,EMO OIL LIMITED,Vehicle Management,ECONOMY AND ENVIRONMENT,BOWLEE AND GARDEN MAILSHOP,"5,805.65"
Rochdale,17/04/2014,TRAKM8 LIMITED,Vehicle Management,ECONOMY AND ENVIRONMENT,EMS TRANSFORMATION PROJECT PHASE 1 REV,"1,836.00"
Rochdale,03/04/2014,VIP-SYSTEM LIMITED,Vehicle Management,ECONOMY AND ENVIRONMENT,REG LIC  GENERAL,"6,782.67"
Rochdale,04/04/2014,VIP-SYSTEM LIMITED,Vehicle Management,ECONOMY AND ENVIRONMENT,REG LIC  GENERAL,563.27
Rochdale,02/04/2014,BGS LTD,"Works - Construction, Repair & Maintenance",CUSTOMERS & CORPORATE SERVICES,FIRE AT MARLAND,578.00
Rochdale,25/04/2014,BRIAN HAM LANDSCAPES LIMITED,"Works - Construction, Repair & Maintenance",ECONOMY AND ENVIRONMENT,COUNTRYSIDE OPERATIONS,"3,475.00"
Rochdale,02/04/2014,BUILDING DESIGN PARTNERSHIP,"Works - Construction, Repair & Maintenance",ECONOMY AND ENVIRONMENT,RIVER REOPENING SITE,"1,570.42"
Rochdale,25/04/2014,CAS FM LIMITED,"Works - Construction, Repair & Maintenance",PROPERTY AND HIGHWAYS,SCHOOLS SLA 12/13,709.00
Rochdale,25/04/2014,CAS FM LIMITED,"Works - Construction, Repair & Maintenance",PROPERTY AND HIGHWAYS,TECHNICAL TEAM,"2,644.80"
Rochdale,09/04/2014,CONNELL BROTHERS LTD,"Works - Construction, Repair & Maintenance",ECONOMY AND ENVIRONMENT,TOWN CENTRE DEMOLITIONS,"298,048.25"
Rochdale,04/04/2014,CREST ENVIRONMENTAL,"Works - Construction, Repair & Maintenance",PROPERTY AND HIGHWAYS,DEMESNE MEDIA ARTS CENT REPLACE ROOF 349,"4,950.00"
Rochdale,11/04/2014,CRUDEN CONSTRUCTION LIMITED,"Works - Construction, Repair & Maintenance",EARLY HELP AND SCHOOLS,HOPWOOD - PLACE PLANNING,"28,468.13"
Rochdale,15/04/2014,CUNDALL,"Works - Construction, Repair & Maintenance",ECONOMY AND ENVIRONMENT,WHEATSHEAF ENTRANCE WORK,"10,000.00"
Rochdale,15/04/2014,CUNDALL,"Works - Construction, Repair & Maintenance",ECONOMY AND ENVIRONMENT,WHEATSHEAF ENTRANCE WORK,"5,000.00"
Rochdale,09/04/2014,D & M DEMOLITIONS LTD,"Works - Construction, Repair & Maintenance",ECONOMY AND ENVIRONMENT,MISCELLANEOUS ECR,"3,500.00"
Rochdale,23/04/2014,F A B CLIENT SERVICES,"Works - Construction, Repair & Maintenance",LEARNING DIS & MENTAL HEALTH,GENERAL,600.00
Rochdale,08/04/2014,F BRIERLEY & SON LIMITED,"Works - Construction, Repair & Maintenance",ECONOMY AND ENVIRONMENT,1 RIVERSIDE,"2,950.00"
Rochdale,08/04/2014,F BRIERLEY & SON LIMITED,"Works - Construction, Repair & Maintenance",ECONOMY AND ENVIRONMENT,1 RIVERSIDE,"2,775.00"
Rochdale,14/04/2014,F PARKINSON LTD,"Works - Construction, Repair & Maintenance",EARLY HELP AND SCHOOLS,BOARSHAW - PLACE PLANNING,"53,855.59"
Rochdale,04/04/2014,F W SHERRATT LTD,"Works - Construction, Repair & Maintenance",PROPERTY AND HIGHWAYS,TRANSPORT POLICIES PROGRAMME,"38,595.20"
Rochdale,02/04/2014,FREYSSINET LTD,"Works - Construction, Repair & Maintenance",ECONOMY AND ENVIRONMENT,WHEATSHEAF ENTRANCE WORK,"10,179.58"
Rochdale,02/04/2014,FREYSSINET LTD,"Works - Construction, Repair & Maintenance",ECONOMY AND ENVIRONMENT,WHEATSHEAF ENTRANCE WORK,"3,918.79"
Rochdale,17/04/2014,H2O FLOWTECH LTD,"Works - Construction, Repair & Maintenance",ECONOMY AND ENVIRONMENT,CEMETERIES GENERAL,914.57
Rochdale,17/04/2014,H2O FLOWTECH LTD,"Works - Construction, Repair & Maintenance",PROPERTY AND HIGHWAYS,HIGHWAYS DESIGN WORK,"1,045.16"
Rochdale,08/04/2014,HEYWOOD HANDYMAN,"Works - Construction, Repair & Maintenance",ECONOMY AND ENVIRONMENT,HOMELESS TRANSFER COSTS,"2,020.00"
Rochdale,04/04/2014,HEYWOOD HANDYMAN,"Works - Construction, Repair & Maintenance",ECONOMY AND ENVIRONMENT,LEOPOLD COURT,"1,970.00"
Rochdale,03/04/2014,INSPIREDSPACES ROCHDALE LTD,"Works - Construction, Repair & Maintenance",EARLY HELP AND SCHOOLS,BSF ICT CONTRACT,"194,198.27"
Rochdale,03/04/2014,INSPIREDSPACES ROCHDALE LTD,"Works - Construction, Repair & Maintenance",EARLY HELP AND SCHOOLS,BSF ICT CONTRACT,666.81
Rochdale,03/04/2014,INSPIREDSPACES ROCHDALE LTD,"Works - Construction, Repair & Maintenance",EARLY HELP AND SCHOOLS,BSF ICT CONTRACT,"1,558.94"
Rochdale,17/04/2014,INSPIREDSPACES ROCHDALE LTD,"Works - Construction, Repair & Maintenance",EARLY HELP AND SCHOOLS,BSF ICT CONTRACT,"8,274.47"
Rochdale,15/04/2014,INSPIREDSPACES ROCHDALE LTD,"Works - Construction, Repair & Maintenance",EARLY HELP AND SCHOOLS,ST CUTHBERTS RC SECONDARY(BSF),"541,904.31"
Rochdale,14/04/2014,INSPIREDSPACES ROCHDALE LTD,"Works - Construction, Repair & Maintenance",EARLY HELP AND SCHOOLS,WAN CONNECTIVITY CHARGES,"21,124.95"
Rochdale,14/04/2014,INSPIREDSPACES ROCHDALE LTD,"Works - Construction, Repair & Maintenance",EARLY HELP AND SCHOOLS,WAN CONNECTIVITY CHARGES,"21,124.95"
Rochdale,08/04/2014,INSPIREDSPACES ROCHDALE PROJECT CO1 LTD,"Works - Construction, Repair & Maintenance",EARLY HELP AND SCHOOLS,HOLLINGWORTH PFI,"308,638.67"
Rochdale,16/04/2014,INSPIREDSPACES ROCHDALE PROJECTCO2 LTD,"Works - Construction, Repair & Maintenance",EARLY HELP AND SCHOOLS,WARDLE AND FALINGE PFI,"377,982.39"
Rochdale,02/04/2014,ISAAC BUTTERWORTH (IRONFOUNDERS) LIMITED,"Works - Construction, Repair & Maintenance",ECONOMY AND ENVIRONMENT,LANDSCAPE SERVICES,"1,125.00"
Rochdale,04/04/2014,ISAAC BUTTERWORTH (IRONFOUNDERS) LIMITED,"Works - Construction, Repair & Maintenance",ECONOMY AND ENVIRONMENT,LANDSCAPE SERVICES,"2,100.00"
Rochdale,24/04/2014,ISAAC BUTTERWORTH (IRONFOUNDERS) LIMITED,"Works - Construction, Repair & Maintenance",ECONOMY AND ENVIRONMENT,LANDSCAPE SERVICES,840.00
Rochdale,08/04/2014,J A CRYER EXCAVATION & GROUNDWORK CONTRACTORS LTD,"Works - Construction, Repair & Maintenance",ECONOMY AND ENVIRONMENT,EVENTS GENERAL,"2,391.14"
Rochdale,04/04/2014,J COONEY LIMITED,"Works - Construction, Repair & Maintenance",PROPERTY AND HIGHWAYS,HEYWOOD RISING BOLLARD,625.00
Rochdale,16/04/2014,J COONEY LIMITED,"Works - Construction, Repair & Maintenance",PROPERTY AND HIGHWAYS,HIP BRIDGE STREET,"111,319.94"
Rochdale,11/04/2014,J COONEY LIMITED,"Works - Construction, Repair & Maintenance",PROPERTY AND HIGHWAYS,HIP HUDDERSFIELD ROAD,"28,917.41"
Rochdale,16/04/2014,J COONEY LIMITED,"Works - Construction, Repair & Maintenance",PROPERTY AND HIGHWAYS,HIP MANCHESTER ROAD,527.15
Rochdale,09/04/2014,J COONEY LIMITED,"Works - Construction, Repair & Maintenance",PROPERTY AND HIGHWAYS,HIP MARLBOROUGH STREET,"28,849.46"
Rochdale,23/04/2014,J COONEY LIMITED,"Works - Construction, Repair & Maintenance",PROPERTY AND HIGHWAYS,HIP NORDEN ROAD,"41,316.07"
Rochdale,09/04/2014,J COONEY LIMITED,"Works - Construction, Repair & Maintenance",PROPERTY AND HIGHWAYS,HIP QUEENS PARK ROAD - LOCALISED REPAIRS,"86,833.42"
Rochdale,09/04/2014,J COONEY LIMITED,"Works - Construction, Repair & Maintenance",PROPERTY AND HIGHWAYS,HIP RAINES CREST,"20,552.44"
Rochdale,16/04/2014,J COONEY LIMITED,"Works - Construction, Repair & Maintenance",PROPERTY AND HIGHWAYS,PILSWORTH HGV,"6,864.23"
Rochdale,16/04/2014,J COONEY LIMITED,"Works - Construction, Repair & Maintenance",PROPERTY AND HIGHWAYS,PILSWORTH ROAD BOLLARD/CCTV,"54,278.96"
Rochdale,08/04/2014,J GREENWOOD (BUILDERS) LIMITED       (S),"Works - Construction, Repair & Maintenance",EARLY HELP AND SCHOOLS,ST ANDREW'S CE - PLACE PLANNING,"40,094.34"
Rochdale,25/04/2014,KABERRY CONSTRUCTION LIMITED,"Works - Construction, Repair & Maintenance",PROPERTY AND HIGHWAYS,WINTER SERVICE DEPOT,"217,379.58"
Rochdale,04/04/2014,MASSEY & HARRIS (ENGINEERING) LTD,"Works - Construction, Repair & Maintenance",ECONOMY AND ENVIRONMENT,PLAYGROUND SERVICES,"1,402.50"
Rochdale,01/04/2014,MILLS INITIATIVES LIMITED,"Works - Construction, Repair & Maintenance",CHILDREN�S SOCIAL CARE,CROSSFIELD MILL,"50,700.00"
Rochdale,07/04/2014,NEWLINE ADAPTATIONS LTD,"Works - Construction, Repair & Maintenance",PHYSICAL DIS & OLDER PEOPLE,DISABLED FACILITIES GRANT,"15,120.00"
Rochdale,03/04/2014,NORTH WEST REGIONAL YOUTH WORK UNIT,"Works - Construction, Repair & Maintenance",EARLY HELP AND SCHOOLS,GENERAL BOROUGHWIDE YOUTH SERVICE,750.00
Rochdale,03/04/2014,SMW ARCHITECTS,"Works - Construction, Repair & Maintenance",ECONOMY AND ENVIRONMENT,WHEATSHEAF ENTRANCE WORK,"10,500.00"
Rochdale,08/04/2014,SPRINGFIELD MOBILE LIMITED,"Works - Construction, Repair & Maintenance",EARLY HELP AND SCHOOLS,Primary School Place-Planning (Mod10/11),"2,000.00"
Rochdale,08/04/2014,ST JOHNS DOMESTIC LIMITED,"Works - Construction, Repair & Maintenance",PHYSICAL DIS & OLDER PEOPLE,DISABLED FACILITIES GRANT,"4,165.00"
Rochdale,15/04/2014,THOMAS KERSHAW BUILDERS LTD,"Works - Construction, Repair & Maintenance",EARLY HELP AND SCHOOLS,CASTLETON ROOF REPLMT TO KS2 BLDG & CRDS,"4,487.77"
Rochdale,07/04/2014,TYNETEC LTD,"Works - Construction, Repair & Maintenance",PHYSICAL DIS & OLDER PEOPLE,CARELINE,"6,605.95"
Rochdale,07/04/2014,TYNETEC LTD,"Works - Construction, Repair & Maintenance",PHYSICAL DIS & OLDER PEOPLE,CARELINE,600.94
